Workbook

Sheet Development (hidden)
A1: Column1 | B1: Column2 | C1: Version
A2: Developer Comments
A4: 2011-04-14 | B4: Modified GW spreadsheet to use for DS PBT. Added DBP pivot tables and charts. Added DBP goals
B5: tables for TTHM and HAA5.
A6: 2011-04-29 | B6: Pivot tables set to automatically Refresh each time file is opened. Identifed method to display
B7: system wide chlorine concentration by month by dragging Sample Site Field out of box.
B8: Added DBP long-term charts to goals worksheets.
A9: 2011-09-01 | B9: William McClimans added macro to auto update all pivot tables.
A10: 2012-01-04 | B10: Added macro to auto update DBP Goals table based on DBP pivot table quarterly summary table.
B11: DBP LRAA calculations limited to 5 years of data (20 quarters).
A12: 2012-01-17 | B12: Changed DBP number format from ppb to Mg/L.
B13: Modified DBP update macro to allow unlimited number of quarters.
B14: Added worksheet protection.
B15: Added table formatting.
A16: 2012-01-18 | B16: Increased number of DBP LRAA sites to 18 in goals tables and OEL table per Williams suggestion. | C16: Beta 6
B17: Also cosolidated macros to one Update macro and included utility name on sheets.
B18: Set up page print ranges.
A19: 2012-01-27 | B19: Modified macro to not overwrite DBP goals table when # of sites exceeds table limit. | C19: Beta 7
B20: Added date formatting to chlorine and DBP pivot tables (year/month & year/quarter).
A21: 2012-09-17 | B21: Made change to not retain old sample sites in the data source. | C21: Beta 9

Sheet Data Entry
A1: Enter new sample data by inserting rows in table or entering data in the row immediately below the table. | K1: Water System Name
A2: Note: Avoid blank rows in the data entry table. Pivot tables and charts do not like blank rows!
A3: Operational Goals (Individual Samples) | F3: (min) pH (Max)
D4: 0.2 | F4: 6.8 | G4: 7.8 | H4: 0.07 | I4: 0.05
A5: Sample Site | B5: Date | C5: Time | D5: Free Cl2, Mg/L | E5: Total Cl2, Mg/L | F5: Temp | G5: pH | H5: TTHM, Mg/L | I5: HAA5, Mg/L | J5: Other 3 | K5: Other 4 | L5: Other 5 | M5: Latitude | N5: Longitude | O5: Comments | P5: CL2 Rounded
A6: 11405 LARRY LAKE ROAD | B6: 2014-04-07 | H6: 0.00937 | I6: 0.0118 | P6: =VLOOKUP(Table6[[#This Row],[Free Cl2, Mg/L]],CL_RND_TBL[#All],2) -> 0
A7: 13191 DEASON CAMP ROAD | B7: 2014-04-07 | H7: 0.0438 | I7: 0.0273 | P7: =VLOOKUP(Table6[[#This Row],[Free Cl2, Mg/L]],CL_RND_TBL[#All],2) -> 0 | AR7: Chlorine | AS7: Result
A8: 13920 GRAND POINTE ROAD | B8: 2014-04-07 | H8: 0.0284 | I8: 0.0249 | P8: =VLOOKUP(Table6[[#This Row],[Free Cl2, Mg/L]],CL_RND_TBL[#All],2) -> 0 | AR8: 0 | AS8: 0
A9: 3950 3RD STREET SOUTH | B9: 2014-04-07 | H9: 0.0451 | I9: 0.0299 | P9: =VLOOKUP(Table6[[#This Row],[Free Cl2, Mg/L]],CL_RND_TBL[#All],2) -> 0 | AR9: 0.01 | AS9: 0
A10: 6802 MCFARLAND BLVD | B10: 2014-04-07 | H10: 0.0446 | I10: 0.03 | P10: =VLOOKUP(Table6[[#This Row],[Free Cl2, Mg/L]],CL_RND_TBL[#All],2) -> 0 | AR10: 0.04 | AS10: 0
A11: 11405 LARRY LAKE ROAD | B11: 2014-07-08 | H11: 0.0178 | I11: 0.0127 | P11: =VLOOKUP(Table6[[#This Row],[Free Cl2, Mg/L]],CL_RND_TBL[#All],2) -> 0 | AR11: 0.05 | AS11: 0.1
A12: 13191 DEASON CAMP ROAD | B12: 2014-07-08 | H12: 0.0845 | I12: 0.0628 | P12: =VLOOKUP(Table6[[#This Row],[Free Cl2, Mg/L]],CL_RND_TBL[#All],2) -> 0 | AR12: 0.095 | AS12: 0.1
A13: 13920 GRAND POINTE ROAD | B13: 2014-07-08 | H13: 0.0546 | I13: 0.047 | P13: =VLOOKUP(Table6[[#This Row],[Free Cl2, Mg/L]],CL_RND_TBL[#All],2) -> 0 | AR13: 0.1 | AS13: 0.1
A14: 3950 3RD STREET SOUTH | B14: 2014-07-08 | H14: 0.0858 | I14: 0.0609 | P14: =VLOOKUP(Table6[[#This Row],[Free Cl2, Mg/L]],CL_RND_TBL[#All],2) -> 0 | AR14: 0.11 | AS14: 0.2
A15: 6802 MCFARLAND BLVD | B15: 2014-07-08 | H15: 0.0576 | I15: 0.0517 | P15: =VLOOKUP(Table6[[#This Row],[Free Cl2, Mg/L]],CL_RND_TBL[#All],2) -> 0 | AR15: 0.12 | AS15: 0.2
A16: 11405 LARRY LAKE ROAD | B16: 2014-10-08 | H16: 0.0135 | I16: 0.0112 | P16: =VLOOKUP(Table6[[#This Row],[Free Cl2, Mg/L]],CL_RND_TBL[#All],2) -> 0 | AR16: 0.2 | AS16: 0.2
A17: 13191 DEASON CAMP ROAD | B17: 2014-10-08 | H17: 0.0424 | I17: 0.0364 | P17: =VLOOKUP(Table6[[#This Row],[Free Cl2, Mg/L]],CL_RND_TBL[#All],2) -> 0 | AR17: 0.21 | AS17: 0.5
A18: 13920 GRAND POINTE ROAD | B18: 2014-10-08 | H18: 0.0368 | I18: 0.0241 | P18: =VLOOKUP(Table6[[#This Row],[Free Cl2, Mg/L]],CL_RND_TBL[#All],2) -> 0 | AR18: 0.5 | AS18: 0.5
A19: 3950 3RD STREET SOUTH | B19: 2014-10-08 | H19: 0.0614 | I19: 0.0398 | P19: =VLOOKUP(Table6[[#This Row],[Free Cl2, Mg/L]],CL_RND_TBL[#All],2) -> 0 | AR19: 0.51 | AS19: 1
A20: 6802 MCFARLAND BLVD | B20: 2014-10-08 | H20: 0.0521 | I20: 0.0386 | P20: =VLOOKUP(Table6[[#This Row],[Free Cl2, Mg/L]],CL_RND_TBL[#All],2) -> 0 | AR20: 1 | AS20: 1
A21: 11405 LARRY LAKE ROAD | B21: 2015-01-06 | H21: 0.00882 | I21: 0.0166 | P21: =VLOOKUP(Table6[[#This Row],[Free Cl2, Mg/L]],CL_RND_TBL[#All],2) -> 0 | AR21: 1.01 | AS21: 1.5
A22: 13191 DEASON CAMP ROAD | B22: 2015-01-06 | H22: 0.0358 | I22: 0.0356 | P22: =VLOOKUP(Table6[[#This Row],[Free Cl2, Mg/L]],CL_RND_TBL[#All],2) -> 0 | AR22: 1.5 | AS22: 1.5
A23: 13920 GRAND POINTE ROAD | B23: 2015-01-06 | H23: 0.0258 | I23: 0.0316 | P23: =VLOOKUP(Table6[[#This Row],[Free Cl2, Mg/L]],CL_RND_TBL[#All],2) -> 0 | AR23: 1.51 | AS23: 2
A24: 3950 3RD STREET SOUTH | B24: 2015-01-06 | H24: 0.0368 | I24: 0.0345 | P24: =VLOOKUP(Table6[[#This Row],[Free Cl2, Mg/L]],CL_RND_TBL[#All],2) -> 0 | AR24: 2 | AS24: 2
A25: 6802 MCFARLAND BLVD | B25: 2015-01-06 | H25: 0.0352 | I25: 0.0329 | P25: =VLOOKUP(Table6[[#This Row],[Free Cl2, Mg/L]],CL_RND_TBL[#All],2) -> 0 | AR25: 2.01 | AS25: 2.5
A26: 11405 LARRY LAKE ROAD | B26: 2015-04-07 | H26: 0.0105 | I26: 0.01 | P26: =VLOOKUP(Table6[[#This Row],[Free Cl2, Mg/L]],CL_RND_TBL[#All],2) -> 0 | AR26: 2.5 | AS26: 2.5
A27: 13191 DEASON CAMP ROAD | B27: 2015-04-07 | H27: 0.0369 | I27: 0.0296 | P27: =VLOOKUP(Table6[[#This Row],[Free Cl2, Mg/L]],CL_RND_TBL[#All],2) -> 0 | AR27: 2.51 | AS27: 3
A28: 13920 GRAND POINTE ROAD | B28: 2015-04-07 | H28: 0.026 | I28: 0.019 | P28: =VLOOKUP(Table6[[#This Row],[Free Cl2, Mg/L]],CL_RND_TBL[#All],2) -> 0 | AR28: 3 | AS28: 3
A29: 3950 3RD STREET SOUTH | B29: 2015-04-07 | H29: 0.0354 | I29: 0.0272 | P29: =VLOOKUP(Table6[[#This Row],[Free Cl2, Mg/L]],CL_RND_TBL[#All],2) -> 0 | AR29: 3.01 | AS29: 3.5
A30: 6802 MCFARLAND BLVD | B30: 2015-04-07 | H30: 0.037 | I30: 0.0298 | P30: =VLOOKUP(Table6[[#This Row],[Free Cl2, Mg/L]],CL_RND_TBL[#All],2) -> 0 | AR30: 3.5 | AS30: 3.5
A31: 11405 LARRY LAKE ROAD | B31: 2015-07-06 | H31: 0.0167 | I31: 0.0168 | P31: =VLOOKUP(Table6[[#This Row],[Free Cl2, Mg/L]],CL_RND_TBL[#All],2) -> 0 | AR31: 3.51 | AS31: 4
A32: 13191 DEASON CAMP ROAD | B32: 2015-07-06 | H32: 0.0769 | I32: 0.0495 | P32: =VLOOKUP(Table6[[#This Row],[Free Cl2, Mg/L]],CL_RND_TBL[#All],2) -> 0 | AR32: 4 | AS32: 4
A33: 13920 GRAND POINTE ROAD | B33: 2015-07-06 | H33: 0.0419 | I33: 0.0342 | P33: =VLOOKUP(Table6[[#This Row],[Free Cl2, Mg/L]],CL_RND_TBL[#All],2) -> 0 | AR33: 5 | AS33: 4
A34: 3950 3RD STREET SOUTH | B34: 2015-07-06 | H34: 0.0707 | I34: 0.0496 | P34: =VLOOKUP(Table6[[#This Row],[Free Cl2, Mg/L]],CL_RND_TBL[#All],2) -> 0 | AR34: 6 | AS34: 4
A35: 6802 MCFARLAND BLVD | B35: 2015-07-06 | H35: 0.0762 | I35: 0.0482 | P35: =VLOOKUP(Table6[[#This Row],[Free Cl2, Mg/L]],CL_RND_TBL[#All],2) -> 0
A36: 11405 LARRY LAKE ROAD | B36: 2015-10-06 | H36: 0.0142 | I36: 0.0128 | P36: =VLOOKUP(Table6[[#This Row],[Free Cl2, Mg/L]],CL_RND_TBL[#All],2) -> 0
A37: 13191 DEASON CAMP ROAD | B37: 2015-10-06 | H37: 0.0519 | I37: 0.0336 | P37: =VLOOKUP(Table6[[#This Row],[Free Cl2, Mg/L]],CL_RND_TBL[#All],2) -> 0
A38: 13920 GRAND POINTE ROAD | B38: 2015-10-06 | H38: 0.048 | I38: 0.0291 | P38: =VLOOKUP(Table6[[#This Row],[Free Cl2, Mg/L]],CL_RND_TBL[#All],2) -> 0
A39: 3950 3RD STREET SOUTH | B39: 2015-10-06 | H39: 0.059 | I39: 0.0385 | P39: =VLOOKUP(Table6[[#This Row],[Free Cl2, Mg/L]],CL_RND_TBL[#All],2) -> 0
A40: 6802 MCFARLAND BLVD | B40: 2015-10-06 | H40: 0.0449 | I40: 0.0341 | P40: =VLOOKUP(Table6[[#This Row],[Free Cl2, Mg/L]],CL_RND_TBL[#All],2) -> 0
A41: 11405 LARRY LAKE ROAD | B41: 2016-01-12 | H41: 0.0125 | I41: 0.0202 | P41: =VLOOKUP(Table6[[#This Row],[Free Cl2, Mg/L]],CL_RND_TBL[#All],2) -> 0
A42: 13191 DEASON CAMP ROAD | B42: 2016-01-12 | H42: 0.0436 | I42: 0.0504 | P42: =VLOOKUP(Table6[[#This Row],[Free Cl2, Mg/L]],CL_RND_TBL[#All],2) -> 0
A43: 13920 GRAND POINTE ROAD | B43: 2016-01-12 | H43: 0.0311 | I43: 0.0495 | P43: =VLOOKUP(Table6[[#This Row],[Free Cl2, Mg/L]],CL_RND_TBL[#All],2) -> 0
A44: 3950 3RD STREET SOUTH | B44: 2016-01-12 | H44: 0.0437 | I44: 0.0499 | P44: =VLOOKUP(Table6[[#This Row],[Free Cl2, Mg/L]],CL_RND_TBL[#All],2) -> 0
A45: 6802 MCFARLAND BLVD | B45: 2016-01-12 | H45: 0.0439 | I45: 0.0499 | P45: =VLOOKUP(Table6[[#This Row],[Free Cl2, Mg/L]],CL_RND_TBL[#All],2) -> 0
A46: 11405 LARRY LAKE ROAD | B46: 2016-04-11 | H46: 0.011 | I46: 0.014 | P46: =VLOOKUP(Table6[[#This Row],[Free Cl2, Mg/L]],CL_RND_TBL[#All],2) -> 0
A47: 13191 DEASON CAMP ROAD | B47: 2016-04-11 | H47: 0.032 | I47: 0.032 | P47: =VLOOKUP(Table6[[#This Row],[Free Cl2, Mg/L]],CL_RND_TBL[#All],2) -> 0
A48: 13920 GRAND POINTE ROAD | B48: 2016-04-11 | H48: 0.027 | I48: 0.029 | P48: =VLOOKUP(Table6[[#This Row],[Free Cl2, Mg/L]],CL_RND_TBL[#All],2) -> 0
A49: 3950 3RD STREET SOUTH | B49: 2016-04-11 | H49: 0.036 | I49: 0.036 | P49: =VLOOKUP(Table6[[#This Row],[Free Cl2, Mg/L]],CL_RND_TBL[#All],2) -> 0
A50: 6802 MCFARLAND BLVD | B50: 2016-04-11 | H50: 0.038 | I50: 0.034 | P50: =VLOOKUP(Table6[[#This Row],[Free Cl2, Mg/L]],CL_RND_TBL[#All],2) -> 0
A51: 11405 LARRY LAKE ROAD | B51: 2016-07-12 | H51: 0.0141 | I51: 0.0172 | P51: =VLOOKUP(Table6[[#This Row],[Free Cl2, Mg/L]],CL_RND_TBL[#All],2) -> 0
A52: 13191 DEASON CAMP ROAD | B52: 2016-07-12 | H52: 0.0648 | I52: 0.0461 | P52: =VLOOKUP(Table6[[#This Row],[Free Cl2, Mg/L]],CL_RND_TBL[#All],2) -> 0
A53: 13920 GRAND POINTE ROAD | B53: 2016-07-12 | H53: 0.0631 | I53: 0.0478 | P53: =VLOOKUP(Table6[[#This Row],[Free Cl2, Mg/L]],CL_RND_TBL[#All],2) -> 0
A54: 3950 3RD STREET SOUTH | B54: 2016-07-12 | H54: 0.0711 | I54: 0.0464 | P54: =VLOOKUP(Table6[[#This Row],[Free Cl2, Mg/L]],CL_RND_TBL[#All],2) -> 0
A55: 6802 MCFARLAND BLVD | B55: 2016-07-12 | H55: 0.0606 | I55: 0.0429 | P55: =VLOOKUP(Table6[[#This Row],[Free Cl2, Mg/L]],CL_RND_TBL[#All],2) -> 0
A56: 11405 LARRY LAKE ROAD | B56: 2016-10-10 | H56: 0.00861 | I56: 0.00969 | P56: =VLOOKUP(Table6[[#This Row],[Free Cl2, Mg/L]],CL_RND_TBL[#All],2) -> 0
A57: 13191 DEASON CAMP ROAD | B57: 2016-10-10 | H57: 0.0425 | I57: 0.0376 | P57: =VLOOKUP(Table6[[#This Row],[Free Cl2, Mg/L]],CL_RND_TBL[#All],2) -> 0
A58: 13920 GRAND POINTE ROAD | B58: 2016-10-10 | H58: 0.0295 | I58: 0.0274 | P58: =VLOOKUP(Table6[[#This Row],[Free Cl2, Mg/L]],CL_RND_TBL[#All],2) -> 0
A59: 3950 3RD STREET SOUTH | B59: 2016-10-10 | H59: 0.00861 | I59: 0.00969 | P59: =VLOOKUP(Table6[[#This Row],[Free Cl2, Mg/L]],CL_RND_TBL[#All],2) -> 0
A60: 6802 MCFARLAND BLVD | B60: 2016-10-10 | H60: 0.044 | I60: 0.0366 | P60: =VLOOKUP(Table6[[#This Row],[Free Cl2, Mg/L]],CL_RND_TBL[#All],2) -> 0
A61: 11405 LARRY LAKE ROAD | B61: 2017-01-10 | H61: 0.00622 | I61: 0.00742 | P61: =VLOOKUP(Table6[[#This Row],[Free Cl2, Mg/L]],CL_RND_TBL[#All],2) -> 0
A62: 13191 DEASON CAMP ROAD | B62: 2017-01-10 | H62: 0.023 | I62: 0.0202 | P62: =VLOOKUP(Table6[[#This Row],[Free Cl2, Mg/L]],CL_RND_TBL[#All],2) -> 0
A63: 13920 GRAND POINTE ROAD | B63: 2017-01-10 | H63: 0.0185 | I63: 0.018 | P63: =VLOOKUP(Table6[[#This Row],[Free Cl2, Mg/L]],CL_RND_TBL[#All],2) -> 0
A64: 3950 3RD STREET SOUTH | B64: 2017-01-10 | H64: 0.0246 | I64: 0.0184 | P64: =VLOOKUP(Table6[[#This Row],[Free Cl2, Mg/L]],CL_RND_TBL[#All],2) -> 0
A65: 6802 MCFARLAND BLVD | B65: 2017-01-10 | H65: 0.0222 | I65: 0.0219 | P65: =VLOOKUP(Table6[[#This Row],[Free Cl2, Mg/L]],CL_RND_TBL[#All],2) -> 0
A66: 11405 LARRY LAKE ROAD | B66: 2017-04-11 | H66: 0.0177 | I66: 0.0193 | P66: =VLOOKUP(Table6[[#This Row],[Free Cl2, Mg/L]],CL_RND_TBL[#All],2) -> 0
A67: 13191 DEASON CAMP ROAD | B67: 2017-04-11 | H67: 0.0467 | I67: 0.0378 | P67: =VLOOKUP(Table6[[#This Row],[Free Cl2, Mg/L]],CL_RND_TBL[#All],2) -> 0
A68: 13920 GRAND POINTE ROAD | B68: 2017-04-11 | H68: 0.0387 | I68: 0.035 | P68: =VLOOKUP(Table6[[#This Row],[Free Cl2, Mg/L]],CL_RND_TBL[#All],2) -> 0
A69: 3950 3RD STREET SOUTH | B69: 2017-04-11 | H69: 0.0496 | I69: 0.0435 | P69: =VLOOKUP(Table6[[#This Row],[Free Cl2, Mg/L]],CL_RND_TBL[#All],2) -> 0
A70: 6802 MCFARLAND BLVD | B70: 2017-04-11 | H70: 0.0386 | I70: 0.0412 | P70: =VLOOKUP(Table6[[#This Row],[Free Cl2, Mg/L]],CL_RND_TBL[#All],2) -> 0
A71: 11405 LARRY LAKE ROAD | B71: 2017-07-11 | H71: 0.0266 | I71: 0.0328 | P71: =VLOOKUP(Table6[[#This Row],[Free Cl2, Mg/L]],CL_RND_TBL[#All],2) -> 0
A72: 13191 DEASON CAMP ROAD | B72: 2017-07-11 | H72: 0.0793 | I72: 0.0613 | P72: =VLOOKUP(Table6[[#This Row],[Free Cl2, Mg/L]],CL_RND_TBL[#All],2) -> 0
A73: 13920 GRAND POINTE ROAD | B73: 2017-07-11 | H73: 0.0514 | I73: 0.0477 | P73: =VLOOKUP(Table6[[#This Row],[Free Cl2, Mg/L]],CL_RND_TBL[#All],2) -> 0
A74: 3950 3RD STREET SOUTH | B74: 2017-07-11 | H74: 0.0828 | I74: 0.0617 | P74: =VLOOKUP(Table6[[#This Row],[Free Cl2, Mg/L]],CL_RND_TBL[#All],2) -> 0
A75: 6802 MCFARLAND BLVD | B75: 2017-07-11 | H75: 0.0762 | I75: 0.0608 | P75: =VLOOKUP(Table6[[#This Row],[Free Cl2, Mg/L]],CL_RND_TBL[#All],2) -> 0
A76: 11405 LARRY LAKE ROAD | B76: 2017-10-09 | H76: 0.016 | I76: 0.0138 | P76: =VLOOKUP(Table6[[#This Row],[Free Cl2, Mg/L]],CL_RND_TBL[#All],2) -> 0
A77: 13191 DEASON CAMP ROAD | B77: 2017-10-09 | H77: 0.0706 | I77: 0.0443 | P77: =VLOOKUP(Table6[[#This Row],[Free Cl2, Mg/L]],CL_RND_TBL[#All],2) -> 0
A78: 13920 GRAND POINTE ROAD | B78: 2017-10-09 | H78: 0.0505 | I78: 0.0384 | P78: =VLOOKUP(Table6[[#This Row],[Free Cl2, Mg/L]],CL_RND_TBL[#All],2) -> 0
A79: 3950 3RD STREET SOUTH | B79: 2017-10-09 | H79: 0.0642 | I79: 0.0444 | P79: =VLOOKUP(Table6[[#This Row],[Free Cl2, Mg/L]],CL_RND_TBL[#All],2) -> 0
A80: 6802 MCFARLAND BLVD | B80: 2017-10-09 | H80: 0.054 | I80: 0.0479 | P80: =VLOOKUP(Table6[[#This Row],[Free Cl2, Mg/L]],CL_RND_TBL[#All],2) -> 0
A81: 11405 LARRY LAKE ROAD | B81: 2018-01-09 | H81: 0.00869 | I81: 0.00907 | P81: =VLOOKUP(Table6[[#This Row],[Free Cl2, Mg/L]],CL_RND_TBL[#All],2) -> 0
A82: 13191 DEASON CAMP ROAD | B82: 2018-01-09 | H82: 0.0266 | I82: 0.0201 | P82: =VLOOKUP(Table6[[#This Row],[Free Cl2, Mg/L]],CL_RND_TBL[#All],2) -> 0
A83: 13920 GRAND POINTE ROAD | B83: 2018-01-09 | H83: 0.0174 | I83: 0.0152 | P83: =VLOOKUP(Table6[[#This Row],[Free Cl2, Mg/L]],CL_RND_TBL[#All],2) -> 0
A84: 3950 3RD STREET SOUTH | B84: 2018-01-09 | H84: 0.0286 | I84: 0.0191 | P84: =VLOOKUP(Table6[[#This Row],[Free Cl2, Mg/L]],CL_RND_TBL[#All],2) -> 0
A85: 6802 MCFARLAND BLVD | B85: 2018-01-09 | H85: 0.0245 | I85: 0.0182 | P85: =VLOOKUP(Table6[[#This Row],[Free Cl2, Mg/L]],CL_RND_TBL[#All],2) -> 0
A86: #1 BOOTH ESTATES | B86: 2018-04-09 | H86: 0.0426 | I86: 0.0345 | P86: =VLOOKUP(Table6[[#This Row],[Free Cl2, Mg/L]],CL_RND_TBL[#All],2) -> 0
A87: 11405 LARRY LAKE ROAD | B87: 2018-04-09 | H87: 0.014 | I87: 0.0162 | P87: =VLOOKUP(Table6[[#This Row],[Free Cl2, Mg/L]],CL_RND_TBL[#All],2) -> 0
A88: 17689 PINE LAKE RD | B88: 2018-04-09 | H88: 0.0532 | I88: 0.0584 | P88: =VLOOKUP(Table6[[#This Row],[Free Cl2, Mg/L]],CL_RND_TBL[#All],2) -> 0
A89: 2920 39TH ST | B89: 2018-04-09 | H89: 0.0603 | I89: 0.0573 | P89: =VLOOKUP(Table6[[#This Row],[Free Cl2, Mg/L]],CL_RND_TBL[#All],2) -> 0
A90: 6425 5TH ST | B90: 2018-04-09 | H90: 0.0493 | I90: 0.0409 | P90: =VLOOKUP(Table6[[#This Row],[Free Cl2, Mg/L]],CL_RND_TBL[#All],2) -> 0
A91: #1 BOOTH ESTATES | B91: 2018-07-10 | H91: 0.0831 | I91: 0.0656 | P91: =VLOOKUP(Table6[[#This Row],[Free Cl2, Mg/L]],CL_RND_TBL[#All],2) -> 0
A92: 11405 LARRY LAKE ROAD | B92: 2018-07-10 | H92: 0.0118 | I92: 0.0147 | P92: =VLOOKUP(Table6[[#This Row],[Free Cl2, Mg/L]],CL_RND_TBL[#All],2) -> 0
A93: 17689 PINE LAKE RD | B93: 2018-07-10 | H93: 0.0792 | I93: 0.0615 | P93: =VLOOKUP(Table6[[#This Row],[Free Cl2, Mg/L]],CL_RND_TBL[#All],2) -> 0
A94: 2920 39TH ST | B94: 2018-07-10 | H94: 0.0299 | I94: 0.0728 | P94: =VLOOKUP(Table6[[#This Row],[Free Cl2, Mg/L]],CL_RND_TBL[#All],2) -> 0
A95: 6425 5TH ST | B95: 2018-07-10 | H95: 0.0974 | I95: 0.0649 | P95: =VLOOKUP(Table6[[#This Row],[Free Cl2, Mg/L]],CL_RND_TBL[#All],2) -> 0
A96: #1 BOOTH ESTATES | B96: 2018-10-08 | H96: 0.061 | I96: 0.0459 | P96: =VLOOKUP(Table6[[#This Row],[Free Cl2, Mg/L]],CL_RND_TBL[#All],2) -> 0
A97: 11405 LARRY LAKE ROAD | B97: 2018-10-08 | H97: 0.0254 | I97: 0.0225 | P97: =VLOOKUP(Table6[[#This Row],[Free Cl2, Mg/L]],CL_RND_TBL[#All],2) -> 0
A98: 17689 PINE LAKE RD | B98: 2018-10-08 | H98: 0.0628 | I98: 0.0461 | P98: =VLOOKUP(Table6[[#This Row],[Free Cl2, Mg/L]],CL_RND_TBL[#All],2) -> 0
A99: 2920 39TH ST | B99: 2018-10-08 | H99: 0.1062 | I99: 0.0689 | P99: =VLOOKUP(Table6[[#This Row],[Free Cl2, Mg/L]],CL_RND_TBL[#All],2) -> 0
A100: 6425 5TH ST | B100: 2018-10-08 | H100: 0.0699 | I100: 0.0481 | P100: =VLOOKUP(Table6[[#This Row],[Free Cl2, Mg/L]],CL_RND_TBL[#All],2) -> 0
A101: #1 BOOTH ESTATES | B101: 2019-01-17 | H101: 0.0393 | I101: 0.0473 | P101: =VLOOKUP(Table6[[#This Row],[Free Cl2, Mg/L]],CL_RND_TBL[#All],2) -> 0
A102: 11405 LARRY LAKE ROAD | B102: 2019-01-17 | H102: 0.0147 | I102: 0.0222 | P102: =VLOOKUP(Table6[[#This Row],[Free Cl2, Mg/L]],CL_RND_TBL[#All],2) -> 0
A103: 17689 PINE LAKE RD | B103: 2019-01-17 | H103: 0.0352 | I103: 0.0511 | P103: =VLOOKUP(Table6[[#This Row],[Free Cl2, Mg/L]],CL_RND_TBL[#All],2) -> 0
A104: 2920 39TH ST | B104: 2019-01-17 | H104: 0.0316 | I104: 0.038 | P104: =VLOOKUP(Table6[[#This Row],[Free Cl2, Mg/L]],CL_RND_TBL[#All],2) -> 0
A105: 6425 5TH ST | B105: 2019-01-17 | H105: 0.0351 | I105: 0.0469 | P105: =VLOOKUP(Table6[[#This Row],[Free Cl2, Mg/L]],CL_RND_TBL[#All],2) -> 0
A106: #1 BOOTH ESTATES | B106: 2019-04-08 | H106: 0.0298 | I106: 0.035 | P106: =VLOOKUP(Table6[[#This Row],[Free Cl2, Mg/L]],CL_RND_TBL[#All],2) -> 0
A107: 11405 LARRY LAKE ROAD | B107: 2019-04-08 | H107: 0.0173 | I107: 0.022 | P107: =VLOOKUP(Table6[[#This Row],[Free Cl2, Mg/L]],CL_RND_TBL[#All],2) -> 0
A108: 17689 PINE LAKE RD | B108: 2019-04-08 | H108: 0.0316 | I108: 0.036 | P108: =VLOOKUP(Table6[[#This Row],[Free Cl2, Mg/L]],CL_RND_TBL[#All],2) -> 0
A109: 2920 39TH ST | B109: 2019-04-08 | H109: 0.0296 | I109: 0.0323 | P109: =VLOOKUP(Table6[[#This Row],[Free Cl2, Mg/L]],CL_RND_TBL[#All],2) -> 0
A110: 6425 5TH ST | B110: 2019-04-08 | H110: 0.0318 | I110: 0.034 | P110: =VLOOKUP(Table6[[#This Row],[Free Cl2, Mg/L]],CL_RND_TBL[#All],2) -> 0

Sheet Chlorine Summary Table (hidden)
A1: ='Data Entry'!K1:K2 -> Water System Name
A2: Note: If table is not updated go to the "Data Entry" tab and click the "Update Tables" button. If table does not update, make sure that macros are enabled. Go to Trust Center & Macro Settings to enable macros.
A4: Average of Free Cl2, Mg/L | B4: Years | C4: Date
B5: 2014 | E5: 2015 | I5: 2016 | M5: 2017 | Q5: 2018 | U5: 2019 | W5: Average
A6: Sample Site | B6: Apr | C6: Jul | D6: Oct | E6: Jan | F6: Apr | G6: Jul | H6: Oct | I6: Jan | J6: Apr | K6: Jul | L6: Oct | M6: Jan | N6: Apr | O6: Jul | P6: Oct | Q6: Jan | R6: Apr | S6: Jul | T6: Oct | U6: Jan | V6: Apr
A7: #1 BOOTH ESTATES
A8: 11405 LARRY LAKE ROAD
A9: 13191 DEASON CAMP ROAD
A10: 13920 GRAND POINTE ROAD
A11: 17689 PINE LAKE RD
A12: 2920 39TH ST
A13: 3950 3RD STREET SOUTH
A14: 6425 5TH ST
A15: 6802 MCFARLAND BLVD
A16: Average

Sheet Chlorine Chart

Sheet Cl2 Delta Table (hidden)
A1: Sample Site | B1: 11405 LARRY LAKE ROAD | F1: Note: Update this table each time new data is entered in the Data Entry Table.
F2: To update, 'right clicking' on any cell in the table and select Refresh.
A3: Delta Cl2 | F3: Legend
A4: Date | B4: Total | F4: Green Light: Delta less than or equal to 0.19
A5: 2019-04-08 | F5: Yellow Light: Delta less than 0.25 and greater than 0.19
A6: 2019-01-17 | F6: Red Light: Delta greater than or equal to 0.25
A7: 2018-10-08
A8: 2018-07-10
A9: 2018-04-09
A10: 2018-01-09
A11: 2017-10-09
A12: 2017-07-11
A13: 2017-04-11
A14: 2017-01-10
A15: 2016-10-10
A16: 2016-07-12
A17: 2016-04-11
A18: 2016-01-12
A19: 2015-10-06
A20: 2015-07-06
A21: 2015-04-07
A22: 2015-01-06
A23: 2014-10-08
A24: 2014-07-08
A25: 2014-04-07

Sheet pH Summary Table (hidden)
A1: ='Data Entry'!K1:K2 -> Water System Name
A2: Note: If table is not updated go to the "Data Entry" tab and click the "Update Tables" button. If table does not update, make sure that macros are enabled. Go to Trust Center & Macro Settings to enable macros.
A4: Average of pH | B4: Years | C4: Date
B5: 2014 | E5: 2015 | I5: 2016 | M5: 2017 | Q5: 2018 | U5: 2019 | W5: Average
A6: Sample Site | B6: Apr | C6: Jul | D6: Oct | E6: Jan | F6: Apr | G6: Jul | H6: Oct | I6: Jan | J6: Apr | K6: Jul | L6: Oct | M6: Jan | N6: Apr | O6: Jul | P6: Oct | Q6: Jan | R6: Apr | S6: Jul | T6: Oct | U6: Jan | V6: Apr
A7: #1 BOOTH ESTATES
A8: 11405 LARRY LAKE ROAD
A9: 13191 DEASON CAMP ROAD
A10: 13920 GRAND POINTE ROAD
A11: 17689 PINE LAKE RD
A12: 2920 39TH ST
A13: 3950 3RD STREET SOUTH
A14: 6425 5TH ST
A15: 6802 MCFARLAND BLVD
A16: Average

Sheet pH Chart

Sheet Temp Summary Table (hidden)
A1: ='Data Entry'!K1:K2 -> Water System Name
A2: Note: If table is not updated go to the "Data Entry" tab and click the "Update Tables" button. If table does not update, make sure that macros are enabled. Go to Trust Center & Macro Settings to enable macros.
A4: Average of Temp | B4: Years | C4: Date
B5: 2014 | E5: 2015 | I5: 2016 | M5: 2017 | Q5: 2018 | U5: 2019 | W5: Average
A6: Sample Site | B6: Apr | C6: Jul | D6: Oct | E6: Jan | F6: Apr | G6: Jul | H6: Oct | I6: Jan | J6: Apr | K6: Jul | L6: Oct | M6: Jan | N6: Apr | O6: Jul | P6: Oct | Q6: Jan | R6: Apr | S6: Jul | T6: Oct | U6: Jan | V6: Apr
A7: #1 BOOTH ESTATES
A8: 11405 LARRY LAKE ROAD
A9: 13191 DEASON CAMP ROAD
A10: 13920 GRAND POINTE ROAD
A11: 17689 PINE LAKE RD
A12: 2920 39TH ST
A13: 3950 3RD STREET SOUTH
A14: 6425 5TH ST
A15: 6802 MCFARLAND BLVD
A16: Average

Sheet Temp Chart

Sheet TTHM Summary Table (hidden)
B1: Note: If table is not updated go to the "Data Entry" tab and click the "Update Tables" button. If table does not update, make sure that macros are enabled. Go to Trust Center & Macro Settings to enable macros. | N1: ='Data Entry'!K1:K2 -> Water System Name
B3: Average of TTHM, Mg/L | C3: Years | D3: Date
C4: 2014 | F4: 2015 | J4: 2016 | N4: 2017 | R4: 2018 | V4: 2019 | X4: Average
B5: Sample Site | C5: Qtr2 | D5: Qtr3 | E5: Qtr4 | F5: Qtr1 | G5: Qtr2 | H5: Qtr3 | I5: Qtr4 | J5: Qtr1 | K5: Qtr2 | L5: Qtr3 | M5: Qtr4 | N5: Qtr1 | O5: Qtr2 | P5: Qtr3 | Q5: Qtr4 | R5: Qtr1 | S5: Qtr2 | T5: Qtr3 | U5: Qtr4 | V5: Qtr1 | W5: Qtr2
B6: 11405 LARRY LAKE ROAD | C6: 0.00937 | D6: 0.0178 | E6: 0.0135 | F6: 0.00882 | G6: 0.0105 | H6: 0.0167 | I6: 0.0142 | J6: 0.0125 | K6: 0.011 | L6: 0.0141 | M6: 0.00861 | N6: 0.00622 | O6: 0.0177 | P6: 0.0266 | Q6: 0.016 | R6: 0.00869 | S6: 0.014 | T6: 0.0118 | U6: 0.0254 | V6: 0.0147 | W6: 0.0173 | X6: 0.01407190476
B7: 13191 DEASON CAMP ROAD | C7: 0.0438 | D7: 0.0845 | E7: 0.0424 | F7: 0.0358 | G7: 0.0369 | H7: 0.0769 | I7: 0.0519 | J7: 0.0436 | K7: 0.032 | L7: 0.0648 | M7: 0.0425 | N7: 0.023 | O7: 0.0467 | P7: 0.0793 | Q7: 0.0706 | R7: 0.0266 | S7: na | T7: na | U7: na | V7: na | W7: na | X7: 0.05008125
B8: 13920 GRAND POINTE ROAD | C8: 0.0284 | D8: 0.0546 | E8: 0.0368 | F8: 0.0258 | G8: 0.026 | H8: 0.0419 | I8: 0.048 | J8: 0.0311 | K8: 0.027 | L8: 0.0631 | M8: 0.0295 | N8: 0.0185 | O8: 0.0387 | P8: 0.0514 | Q8: 0.0505 | R8: 0.0174 | S8: na | T8: na | U8: na | V8: na | W8: na | X8: 0.03679375
B9: 3950 3RD STREET SOUTH | C9: 0.0451 | D9: 0.0858 | E9: 0.0614 | F9: 0.0368 | G9: 0.0354 | H9: 0.0707 | I9: 0.059 | J9: 0.0437 | K9: 0.036 | L9: 0.0711 | M9: 0.00861 | N9: 0.0246 | O9: 0.0496 | P9: 0.0828 | Q9: 0.0642 | R9: 0.0286 | S9: na | T9: na | U9: na | V9: na | W9: na | X9: 0.050213125
B10: 6802 MCFARLAND BLVD | C10: 0.0446 | D10: 0.0576 | E10: 0.0521 | F10: 0.0352 | G10: 0.037 | H10: 0.0762 | I10: 0.0449 | J10: 0.0439 | K10: 0.038 | L10: 0.0606 | M10: 0.044 | N10: 0.0222 | O10: 0.0386 | P10: 0.0762 | Q10: 0.054 | R10: 0.0245 | S10: na | T10: na | U10: na | V10: na | W10: na | X10: 0.04685
B11: #1 BOOTH ESTATES | C11: na | D11: na | E11: na | F11: na | G11: na | H11: na | I11: na | J11: na | K11: na | L11: na | M11: na | N11: na | O11: na | P11: na | Q11: na | R11: na | S11: 0.0426 | T11: 0.0831 | U11: 0.061 | V11: 0.0393 | W11: 0.0298 | X11: 0.05116
B12: 17689 PINE LAKE RD | C12: na | D12: na | E12: na | F12: na | G12: na | H12: na | I12: na | J12: na | K12: na | L12: na | M12: na | N12: na | O12: na | P12: na | Q12: na | R12: na | S12: 0.0532 | T12: 0.0792 | U12: 0.0628 | V12: 0.0352 | W12: 0.0316 | X12: 0.0524
B13: 2920 39TH ST | C13: na | D13: na | E13: na | F13: na | G13: na | H13: na | I13: na | J13: na | K13: na | L13: na | M13: na | N13: na | O13: na | P13: na | Q13: na | R13: na | S13: 0.0603 | T13: 0.0299 | U13: 0.1062 | V13: 0.0316 | W13: 0.0296 | X13: 0.05152
B14: 6425 5TH ST | C14: na | D14: na | E14: na | F14: na | G14: na | H14: na | I14: na | J14: na | K14: na | L14: na | M14: na | N14: na | O14: na | P14: na | Q14: na | R14: na | S14: 0.0493 | T14: 0.0974 | U14: 0.0699 | V14: 0.0351 | W14: 0.0318 | X14: 0.0567
B15: Average | C15: 0.034254 | D15: 0.06006 | E15: 0.04124 | F15: 0.028484 | G15: 0.02916 | H15: 0.05648 | I15: 0.0436 | J15: 0.03496 | K15: 0.0288 | L15: 0.05474 | M15: 0.026644 | N15: 0.018904 | O15: 0.03826 | P15: 0.06326 | Q15: 0.05106 | R15: 0.021158 | S15: 0.04388 | T15: 0.06028 | U15: 0.06506 | V15: 0.03118 | W15: 0.02802 | X15: 0.04092780952
B38: =RIGHT(LEFT(B42,4),1)&B39 -> Column1
B39: =IF(B41>1,B41,A39) -> Column1
B41: Column1 | C41: Column2 | D41: Column3 | E41: Column4 | F41: Column5 | G41: Column6 | H41: Column7 | I41: Column8 | J41: Column9 | K41: Column10 | L41: Column11 | M41: Column12 | N41: Column13 | O41: Column14 | P41: Column15 | Q41: Column16 | R41: Column17 | S41: Column18 | T41: Column19 | U41: Column20 | V41: Column21 | W41: Column22 | X41: Column23 | Y41: Column24 | Z41: Column25 | AA41: Column26 | AB41: Column27 | AC41: Column28 | AD41: Column29 | AE41: Column30 | AF41: Column31 | AG41: Column32 | AH41: Column33
C42: =RIGHT(LEFT(C46,4),1)&C43 -> 22014 | D42: 32014 | E42: 42014 | F42: 12015 | G42: 22015 | H42: 32015 | I42: 42015 | J42: 12016 | K42: 22016 | L42: 32016 | M42: 42016 | N42: 12017 | O42: 22017 | P42: 32017 | Q42: 42017 | R42: 12018 | S42: 22018 | T42: 32018 | U42: 42018 | V42: 12019 | W42: 22019 | X42: Average | Y42: Average | Z42: Average | AA42: Average | AB42: Average | AC42: Average | AD42: Average | AE42: Average | AF42: Average | AG42: Average | AH42: Average
C43: =IF(C45>1,C45,B43) -> 2014 | D43: 2014 | E43: 2014 | F43: 2015 | G43: 2015 | H43: 2015 | I43: 2015 | J43: 2016 | K43: 2016 | L43: 2016 | M43: 2016 | N43: 2017 | O43: 2017 | P43: 2017 | Q43: 2017 | R43: 2018 | S43: 2018 | T43: 2018 | U43: 2018 | V43: 2019 | W43: 2019 | X43: Average | Y43: Average | Z43: Average | AA43: Average | AB43: Average | AC43: Average | AD43: Average | AE43: Average | AF43: Average | AG43: Average | AH43: Average
B44: Average of TTHM, Mg/L | C44: Years | D44: Date
C45: 2014 | F45: 2015 | J45: 2016 | N45: 2017 | R45: 2018 | V45: 2019 | X45: Average
B46: Sample Site | C46: Qtr2 | D46: Qtr3 | E46: Qtr4 | F46: Qtr1 | G46: Qtr2 | H46: Qtr3 | I46: Qtr4 | J46: Qtr1 | K46: Qtr2 | L46: Qtr3 | M46: Qtr4 | N46: Qtr1 | O46: Qtr2 | P46: Qtr3 | Q46: Qtr4 | R46: Qtr1 | S46: Qtr2 | T46: Qtr3 | U46: Qtr4 | V46: Qtr1 | W46: Qtr2
B47: 11405 LARRY LAKE ROAD | C47: 0.00937 | D47: 0.0178 | E47: 0.0135 | F47: 0.00882 | G47: 0.0105 | H47: 0.0167 | I47: 0.0142 | J47: 0.0125 | K47: 0.011 | L47: 0.0141 | M47: 0.00861 | N47: 0.00622 | O47: 0.0177 | P47: 0.0266 | Q47: 0.016 | R47: 0.00869 | S47: 0.014 | T47: 0.0118 | U47: 0.0254 | V47: 0.0147 | W47: 0.0173 | X47: 0.01407190476
B48: 13191 DEASON CAMP ROAD | C48: 0.0438 | D48: 0.0845 | E48: 0.0424 | F48: 0.0358 | G48: 0.0369 | H48: 0.0769 | I48: 0.0519 | J48: 0.0436 | K48: 0.032 | L48: 0.0648 | M48: 0.0425 | N48: 0.023 | O48: 0.0467 | P48: 0.0793 | Q48: 0.0706 | R48: 0.0266 | S48: na | T48: na | U48: na | V48: na | W48: na | X48: 0.05008125
B49: 13920 GRAND POINTE ROAD | C49: 0.0284 | D49: 0.0546 | E49: 0.0368 | F49: 0.0258 | G49: 0.026 | H49: 0.0419 | I49: 0.048 | J49: 0.0311 | K49: 0.027 | L49: 0.0631 | M49: 0.0295 | N49: 0.0185 | O49: 0.0387 | P49: 0.0514 | Q49: 0.0505 | R49: 0.0174 | S49: na | T49: na | U49: na | V49: na | W49: na | X49: 0.03679375
B50: 3950 3RD STREET SOUTH | C50: 0.0451 | D50: 0.0858 | E50: 0.0614 | F50: 0.0368 | G50: 0.0354 | H50: 0.0707 | I50: 0.059 | J50: 0.0437 | K50: 0.036 | L50: 0.0711 | M50: 0.00861 | N50: 0.0246 | O50: 0.0496 | P50: 0.0828 | Q50: 0.0642 | R50: 0.0286 | S50: na | T50: na | U50: na | V50: na | W50: na | X50: 0.050213125
B51: 6802 MCFARLAND BLVD | C51: 0.0446 | D51: 0.0576 | E51: 0.0521 | F51: 0.0352 | G51: 0.037 | H51: 0.0762 | I51: 0.0449 | J51: 0.0439 | K51: 0.038 | L51: 0.0606 | M51: 0.044 | N51: 0.0222 | O51: 0.0386 | P51: 0.0762 | Q51: 0.054 | R51: 0.0245 | S51: na | T51: na | U51: na | V51: na | W51: na | X51: 0.04685
B52: #1 BOOTH ESTATES | C52: na | D52: na | E52: na | F52: na | G52: na | H52: na | I52: na | J52: na | K52: na | L52: na | M52: na | N52: na | O52: na | P52: na | Q52: na | R52: na | S52: 0.0426 | T52: 0.0831 | U52: 0.061 | V52: 0.0393 | W52: 0.0298 | X52: 0.05116
B53: 17689 PINE LAKE RD | C53: na | D53: na | E53: na | F53: na | G53: na | H53: na | I53: na | J53: na | K53: na | L53: na | M53: na | N53: na | O53: na | P53: na | Q53: na | R53: na | S53: 0.0532 | T53: 0.0792 | U53: 0.0628 | V53: 0.0352 | W53: 0.0316 | X53: 0.0524
B54: 2920 39TH ST | C54: na | D54: na | E54: na | F54: na | G54: na | H54: na | I54: na | J54: na | K54: na | L54: na | M54: na | N54: na | O54: na | P54: na | Q54: na | R54: na | S54: 0.0603 | T54: 0.0299 | U54: 0.1062 | V54: 0.0316 | W54: 0.0296 | X54: 0.05152
B55: 6425 5TH ST | C55: na | D55: na | E55: na | F55: na | G55: na | H55: na | I55: na | J55: na | K55: na | L55: na | M55: na | N55: na | O55: na | P55: na | Q55: na | R55: na | S55: 0.0493 | T55: 0.0974 | U55: 0.0699 | V55: 0.0351 | W55: 0.0318 | X55: 0.0567
B56: Average | C56: 0.034254 | D56: 0.06006 | E56: 0.04124 | F56: 0.028484 | G56: 0.02916 | H56: 0.05648 | I56: 0.0436 | J56: 0.03496 | K56: 0.0288 | L56: 0.05474 | M56: 0.026644 | N56: 0.018904 | O56: 0.03826 | P56: 0.06326 | Q56: 0.05106 | R56: 0.021158 | S56: 0.04388 | T56: 0.06028 | U56: 0.06506 | V56: 0.03118 | W56: 0.02802 | X56: 0.04092780952

Sheet TTHM Chart

Sheet TTHM Goals
A1: TTHM Goals Calculation
A2: If desired, the goals can be modified on a system-specific basis. Default values are shown in the comment boxes below.
A3: Individual Site Goal: | B3: 0.07
A4: Long-Term System Goal: | B4: 0.06
A5: Water System Name: | B5: ='Data Entry'!K1 -> Water System Name
A6: Yellow | B6: highlighted LRAA exceeds TTHM Individual Site Goal (i.e., default goal is LRAA < 0.07 Mg/L) for that quarter
A7: Blue | B7: highlighted LRAA is the max LRAA for that quarter; unless the LRAA exceeds the Individual Site Goal (see above)
A8: Green | B8: highlighted data exceeds the TTHM Long-Term System Goal (i.e., default goal is ave Max LRAAs < 0.06 Mg/L)
B10: =B11&B12 -> 42016 | C10: =C11&C12 -> 12017 | D10: 22017 | E10: 32017 | F10: 42017 | G10: 12018 | H10: 22018 | I10: 32018 | J10: 42018 | K10: 12019 | L10: 22019
B11: =IF(C11=4,3,IF(C11=3,2,IF(C11=2,1,IF(C11=1,4)))) -> 4 | C11: 1 | D11: 2 | E11: 3 | F11: 4 | G11: 1 | H11: 2 | I11: 3 | J11: 4 | K11: =IF(L11=4,3,IF(L11=3,2,IF(L11=2,1,IF(L11=1,4)))) -> 1 | L11: =RIGHT(LEFT(L10,1),1)*1 -> 2
B12: =IF(C11=4,C12,IF(C11=3,C12,IF(C11=2,C12,IF(C11=1,C12-1)))) -> 2016 | C12: 2017 | D12: 2017 | E12: 2017 | F12: 2017 | G12: 2018 | H12: 2018 | I12: 2018 | J12: 2018 | K12: =IF(L11=4,L12,IF(L11=3,L12,IF(L11=2,L12,IF(L11=1,L12-1)))) -> 2019 | L12: =RIGHT(LEFT(L10,5),4)*1 -> 2019
A13: Sample Site | B13: ="Q"&B11&" "&B12 -> Q4 2016 | C13: ="Q"&C11&" "&C12 -> Q1 2017 | D13: Q2 2017 | E13: Q3 2017 | F13: Q4 2017 | G13: Q1 2018 | H13: Q2 2018 | I13: Q3 2018 | J13: Q4 2018 | K13: Q1 2019 | L13: ="Q"&L11&" "&L12 -> Q2 2019
A14: 11405 LARRY LAKE ROAD | B14: =HLOOKUP($B$10,TTHMTable[],MATCH($A14,TTHMTable[Column1],0),FALSE) -> 0.00861 | C14: =HLOOKUP($C$10,TTHMTable[],MATCH($A14,TTHMTable[Column1],0),FALSE) -> 0.00622 | D14: =HLOOKUP($D$10,TTHMTable[],MATCH($A14,TTHMTable[Column1],0),FALSE) -> 0.0177 | E14: =HLOOKUP($E$10,TTHMTable[],MATCH($A14,TTHMTable[Column1],0),FALSE) -> 0.0266 | F14: =HLOOKUP($F$10,TTHMTable[],MATCH($A14,TTHMTable[Column1],0),FALSE) -> 0.016 | G14: =HLOOKUP($G$10,TTHMTable[],MATCH($A14,TTHMTable[Column1],0),FALSE) -> 0.00869 | H14: =HLOOKUP($H$10,TTHMTable[],MATCH($A14,TTHMTable[Column1],0),FALSE) -> 0.014 | I14: =HLOOKUP($I$10,TTHMTable[],MATCH($A14,TTHMTable[Column1],0),FALSE) -> 0.0118 | J14: =HLOOKUP($J$10,TTHMTable[],MATCH($A14,TTHMTable[Column1],0),FALSE) -> 0.0254 | K14: =HLOOKUP($K$10,TTHMTable[],MATCH($A14,TTHMTable[Column1],0),FALSE) -> 0.0147 | L14: =HLOOKUP($L$10,TTHMTable[],MATCH($A14,TTHMTable[Column1],0),FALSE) -> 0.0173
A15: 13191 DEASON CAMP ROAD | B15: =HLOOKUP($B$10,TTHMTable[],MATCH($A15,TTHMTable[Column1],0),FALSE) -> 0.0425 | C15: =HLOOKUP($C$10,TTHMTable[],MATCH($A15,TTHMTable[Column1],0),FALSE) -> 0.023 | D15: =HLOOKUP($D$10,TTHMTable[],MATCH($A15,TTHMTable[Column1],0),FALSE) -> 0.0467 | E15: =HLOOKUP($E$10,TTHMTable[],MATCH($A15,TTHMTable[Column1],0),FALSE) -> 0.0793 | F15: =HLOOKUP($F$10,TTHMTable[],MATCH($A15,TTHMTable[Column1],0),FALSE) -> 0.0706 | G15: =HLOOKUP($G$10,TTHMTable[],MATCH($A15,TTHMTable[Column1],0),FALSE) -> 0.0266 | H15: =HLOOKUP($H$10,TTHMTable[],MATCH($A15,TTHMTable[Column1],0),FALSE) -> na | I15: =HLOOKUP($I$10,TTHMTable[],MATCH($A15,TTHMTable[Column1],0),FALSE) -> na | J15: =HLOOKUP($J$10,TTHMTable[],MATCH($A15,TTHMTable[Column1],0),FALSE) -> na | K15: =HLOOKUP($K$10,TTHMTable[],MATCH($A15,TTHMTable[Column1],0),FALSE) -> na | L15: =HLOOKUP($L$10,TTHMTable[],MATCH($A15,TTHMTable[Column1],0),FALSE) -> na
A16: 13920 GRAND POINTE ROAD | B16: =HLOOKUP($B$10,TTHMTable[],MATCH($A16,TTHMTable[Column1],0),FALSE) -> 0.0295 | C16: =HLOOKUP($C$10,TTHMTable[],MATCH($A16,TTHMTable[Column1],0),FALSE) -> 0.0185 | D16: =HLOOKUP($D$10,TTHMTable[],MATCH($A16,TTHMTable[Column1],0),FALSE) -> 0.0387 | E16: =HLOOKUP($E$10,TTHMTable[],MATCH($A16,TTHMTable[Column1],0),FALSE) -> 0.0514 | F16: =HLOOKUP($F$10,TTHMTable[],MATCH($A16,TTHMTable[Column1],0),FALSE) -> 0.0505 | G16: =HLOOKUP($G$10,TTHMTable[],MATCH($A16,TTHMTable[Column1],0),FALSE) -> 0.0174 | H16: =HLOOKUP($H$10,TTHMTable[],MATCH($A16,TTHMTable[Column1],0),FALSE) -> na | I16: =HLOOKUP($I$10,TTHMTable[],MATCH($A16,TTHMTable[Column1],0),FALSE) -> na | J16: =HLOOKUP($J$10,TTHMTable[],MATCH($A16,TTHMTable[Column1],0),FALSE) -> na | K16: =HLOOKUP($K$10,TTHMTable[],MATCH($A16,TTHMTable[Column1],0),FALSE) -> na | L16: =HLOOKUP($L$10,TTHMTable[],MATCH($A16,TTHMTable[Column1],0),FALSE) -> na
A17: 3950 3RD STREET SOUTH | B17: =HLOOKUP($B$10,TTHMTable[],MATCH($A17,TTHMTable[Column1],0),FALSE) -> 0.00861 | C17: =HLOOKUP($C$10,TTHMTable[],MATCH($A17,TTHMTable[Column1],0),FALSE) -> 0.0246 | D17: =HLOOKUP($D$10,TTHMTable[],MATCH($A17,TTHMTable[Column1],0),FALSE) -> 0.0496 | E17: =HLOOKUP($E$10,TTHMTable[],MATCH($A17,TTHMTable[Column1],0),FALSE) -> 0.0828 | F17: =HLOOKUP($F$10,TTHMTable[],MATCH($A17,TTHMTable[Column1],0),FALSE) -> 0.0642 | G17: =HLOOKUP($G$10,TTHMTable[],MATCH($A17,TTHMTable[Column1],0),FALSE) -> 0.0286 | H17: =HLOOKUP($H$10,TTHMTable[],MATCH($A17,TTHMTable[Column1],0),FALSE) -> na | I17: =HLOOKUP($I$10,TTHMTable[],MATCH($A17,TTHMTable[Column1],0),FALSE) -> na | J17: =HLOOKUP($J$10,TTHMTable[],MATCH($A17,TTHMTable[Column1],0),FALSE) -> na | K17: =HLOOKUP($K$10,TTHMTable[],MATCH($A17,TTHMTable[Column1],0),FALSE) -> na | L17: =HLOOKUP($L$10,TTHMTable[],MATCH($A17,TTHMTable[Column1],0),FALSE) -> na
A18: 6802 MCFARLAND BLVD | B18: =HLOOKUP($B$10,TTHMTable[],MATCH($A18,TTHMTable[Column1],0),FALSE) -> 0.044 | C18: =HLOOKUP($C$10,TTHMTable[],MATCH($A18,TTHMTable[Column1],0),FALSE) -> 0.0222 | D18: =HLOOKUP($D$10,TTHMTable[],MATCH($A18,TTHMTable[Column1],0),FALSE) -> 0.0386 | E18: =HLOOKUP($E$10,TTHMTable[],MATCH($A18,TTHMTable[Column1],0),FALSE) -> 0.0762 | F18: =HLOOKUP($F$10,TTHMTable[],MATCH($A18,TTHMTable[Column1],0),FALSE) -> 0.054 | G18: =HLOOKUP($G$10,TTHMTable[],MATCH($A18,TTHMTable[Column1],0),FALSE) -> 0.0245 | H18: =HLOOKUP($H$10,TTHMTable[],MATCH($A18,TTHMTable[Column1],0),FALSE) -> na | I18: =HLOOKUP($I$10,TTHMTable[],MATCH($A18,TTHMTable[Column1],0),FALSE) -> na | J18: =HLOOKUP($J$10,TTHMTable[],MATCH($A18,TTHMTable[Column1],0),FALSE) -> na | K18: =HLOOKUP($K$10,TTHMTable[],MATCH($A18,TTHMTable[Column1],0),FALSE) -> na | L18: =HLOOKUP($L$10,TTHMTable[],MATCH($A18,TTHMTable[Column1],0),FALSE) -> na
A19: #1 BOOTH ESTATES | B19: =HLOOKUP($B$10,TTHMTable[],MATCH($A19,TTHMTable[Column1],0),FALSE) -> na | C19: =HLOOKUP($C$10,TTHMTable[],MATCH($A19,TTHMTable[Column1],0),FALSE) -> na | D19: =HLOOKUP($D$10,TTHMTable[],MATCH($A19,TTHMTable[Column1],0),FALSE) -> na | E19: =HLOOKUP($E$10,TTHMTable[],MATCH($A19,TTHMTable[Column1],0),FALSE) -> na | F19: =HLOOKUP($F$10,TTHMTable[],MATCH($A19,TTHMTable[Column1],0),FALSE) -> na | G19: =HLOOKUP($G$10,TTHMTable[],MATCH($A19,TTHMTable[Column1],0),FALSE) -> na | H19: =HLOOKUP($H$10,TTHMTable[],MATCH($A19,TTHMTable[Column1],0),FALSE) -> 0.0426 | I19: =HLOOKUP($I$10,TTHMTable[],MATCH($A19,TTHMTable[Column1],0),FALSE) -> 0.0831 | J19: =HLOOKUP($J$10,TTHMTable[],MATCH($A19,TTHMTable[Column1],0),FALSE) -> 0.061 | K19: =HLOOKUP($K$10,TTHMTable[],MATCH($A19,TTHMTable[Column1],0),FALSE) -> 0.0393 | L19: =HLOOKUP($L$10,TTHMTable[],MATCH($A19,TTHMTable[Column1],0),FALSE) -> 0.0298
A20: 17689 PINE LAKE RD | B20: =HLOOKUP($B$10,TTHMTable[],MATCH($A20,TTHMTable[Column1],0),FALSE) -> na | C20: =HLOOKUP($C$10,TTHMTable[],MATCH($A20,TTHMTable[Column1],0),FALSE) -> na | D20: =HLOOKUP($D$10,TTHMTable[],MATCH($A20,TTHMTable[Column1],0),FALSE) -> na | E20: =HLOOKUP($E$10,TTHMTable[],MATCH($A20,TTHMTable[Column1],0),FALSE) -> na | F20: =HLOOKUP($F$10,TTHMTable[],MATCH($A20,TTHMTable[Column1],0),FALSE) -> na | G20: =HLOOKUP($G$10,TTHMTable[],MATCH($A20,TTHMTable[Column1],0),FALSE) -> na | H20: =HLOOKUP($H$10,TTHMTable[],MATCH($A20,TTHMTable[Column1],0),FALSE) -> 0.0532 | I20: =HLOOKUP($I$10,TTHMTable[],MATCH($A20,TTHMTable[Column1],0),FALSE) -> 0.0792 | J20: =HLOOKUP($J$10,TTHMTable[],MATCH($A20,TTHMTable[Column1],0),FALSE) -> 0.0628 | K20: =HLOOKUP($K$10,TTHMTable[],MATCH($A20,TTHMTable[Column1],0),FALSE) -> 0.0352 | L20: =HLOOKUP($L$10,TTHMTable[],MATCH($A20,TTHMTable[Column1],0),FALSE) -> 0.0316
A21: 2920 39TH ST | B21: =HLOOKUP($B$10,TTHMTable[],MATCH($A21,TTHMTable[Column1],0),FALSE) -> na | C21: =HLOOKUP($C$10,TTHMTable[],MATCH($A21,TTHMTable[Column1],0),FALSE) -> na | D21: =HLOOKUP($D$10,TTHMTable[],MATCH($A21,TTHMTable[Column1],0),FALSE) -> na | E21: =HLOOKUP($E$10,TTHMTable[],MATCH($A21,TTHMTable[Column1],0),FALSE) -> na | F21: =HLOOKUP($F$10,TTHMTable[],MATCH($A21,TTHMTable[Column1],0),FALSE) -> na | G21: =HLOOKUP($G$10,TTHMTable[],MATCH($A21,TTHMTable[Column1],0),FALSE) -> na | H21: =HLOOKUP($H$10,TTHMTable[],MATCH($A21,TTHMTable[Column1],0),FALSE) -> 0.0603 | I21: =HLOOKUP($I$10,TTHMTable[],MATCH($A21,TTHMTable[Column1],0),FALSE) -> 0.0299 | J21: =HLOOKUP($J$10,TTHMTable[],MATCH($A21,TTHMTable[Column1],0),FALSE) -> 0.1062 | K21: =HLOOKUP($K$10,TTHMTable[],MATCH($A21,TTHMTable[Column1],0),FALSE) -> 0.0316 | L21: =HLOOKUP($L$10,TTHMTable[],MATCH($A21,TTHMTable[Column1],0),FALSE) -> 0.0296
A22: 6425 5TH ST | B22: =HLOOKUP($B$10,TTHMTable[],MATCH($A22,TTHMTable[Column1],0),FALSE) -> na | C22: =HLOOKUP($C$10,TTHMTable[],MATCH($A22,TTHMTable[Column1],0),FALSE) -> na | D22: =HLOOKUP($D$10,TTHMTable[],MATCH($A22,TTHMTable[Column1],0),FALSE) -> na | E22: =HLOOKUP($E$10,TTHMTable[],MATCH($A22,TTHMTable[Column1],0),FALSE) -> na | F22: =HLOOKUP($F$10,TTHMTable[],MATCH($A22,TTHMTable[Column1],0),FALSE) -> na | G22: =HLOOKUP($G$10,TTHMTable[],MATCH($A22,TTHMTable[Column1],0),FALSE) -> na | H22: =HLOOKUP($H$10,TTHMTable[],MATCH($A22,TTHMTable[Column1],0),FALSE) -> 0.0493 | I22: =HLOOKUP($I$10,TTHMTable[],MATCH($A22,TTHMTable[Column1],0),FALSE) -> 0.0974 | J22: =HLOOKUP($J$10,TTHMTable[],MATCH($A22,TTHMTable[Column1],0),FALSE) -> 0.0699 | K22: =HLOOKUP($K$10,TTHMTable[],MATCH($A22,TTHMTable[Column1],0),FALSE) -> 0.0351 | L22: =HLOOKUP($L$10,TTHMTable[],MATCH($A22,TTHMTable[Column1],0),FALSE) -> 0.0318
B23: =HLOOKUP($B$10,TTHMTable[],MATCH($A23,TTHMTable[Column1],0),FALSE) ->  | C23: =HLOOKUP($C$10,TTHMTable[],MATCH($A23,TTHMTable[Column1],0),FALSE) ->  | D23: =HLOOKUP($D$10,TTHMTable[],MATCH($A23,TTHMTable[Column1],0),FALSE) ->  | E23: =HLOOKUP($E$10,TTHMTable[],MATCH($A23,TTHMTable[Column1],0),FALSE) ->  | F23: =HLOOKUP($F$10,TTHMTable[],MATCH($A23,TTHMTable[Column1],0),FALSE) ->  | G23: =HLOOKUP($G$10,TTHMTable[],MATCH($A23,TTHMTable[Column1],0),FALSE) ->  | H23: =HLOOKUP($H$10,TTHMTable[],MATCH($A23,TTHMTable[Column1],0),FALSE) ->  | I23: =HLOOKUP($I$10,TTHMTable[],MATCH($A23,TTHMTable[Column1],0),FALSE) ->  | J23: =HLOOKUP($J$10,TTHMTable[],MATCH($A23,TTHMTable[Column1],0),FALSE) ->  | K23: =HLOOKUP($K$10,TTHMTable[],MATCH($A23,TTHMTable[Column1],0),FALSE) ->  | L23: =HLOOKUP($L$10,TTHMTable[],MATCH($A23,TTHMTable[Column1],0),FALSE) -> 
B24: =HLOOKUP($B$10,TTHMTable[],MATCH($A24,TTHMTable[Column1],0),FALSE) ->  | C24: =HLOOKUP($C$10,TTHMTable[],MATCH($A24,TTHMTable[Column1],0),FALSE) ->  | D24: =HLOOKUP($D$10,TTHMTable[],MATCH($A24,TTHMTable[Column1],0),FALSE) ->  | E24: =HLOOKUP($E$10,TTHMTable[],MATCH($A24,TTHMTable[Column1],0),FALSE) ->  | F24: =HLOOKUP($F$10,TTHMTable[],MATCH($A24,TTHMTable[Column1],0),FALSE) ->  | G24: =HLOOKUP($G$10,TTHMTable[],MATCH($A24,TTHMTable[Column1],0),FALSE) ->  | H24: =HLOOKUP($H$10,TTHMTable[],MATCH($A24,TTHMTable[Column1],0),FALSE) ->  | I24: =HLOOKUP($I$10,TTHMTable[],MATCH($A24,TTHMTable[Column1],0),FALSE) ->  | J24: =HLOOKUP($J$10,TTHMTable[],MATCH($A24,TTHMTable[Column1],0),FALSE) ->  | K24: =HLOOKUP($K$10,TTHMTable[],MATCH($A24,TTHMTable[Column1],0),FALSE) ->  | L24: =HLOOKUP($L$10,TTHMTable[],MATCH($A24,TTHMTable[Column1],0),FALSE) -> 
B25: =HLOOKUP($B$10,TTHMTable[],MATCH($A25,TTHMTable[Column1],0),FALSE) ->  | C25: =HLOOKUP($C$10,TTHMTable[],MATCH($A25,TTHMTable[Column1],0),FALSE) ->  | D25: =HLOOKUP($D$10,TTHMTable[],MATCH($A25,TTHMTable[Column1],0),FALSE) ->  | E25: =HLOOKUP($E$10,TTHMTable[],MATCH($A25,TTHMTable[Column1],0),FALSE) ->  | F25: =HLOOKUP($F$10,TTHMTable[],MATCH($A25,TTHMTable[Column1],0),FALSE) ->  | G25: =HLOOKUP($G$10,TTHMTable[],MATCH($A25,TTHMTable[Column1],0),FALSE) ->  | H25: =HLOOKUP($H$10,TTHMTable[],MATCH($A25,TTHMTable[Column1],0),FALSE) ->  | I25: =HLOOKUP($I$10,TTHMTable[],MATCH($A25,TTHMTable[Column1],0),FALSE) ->  | J25: =HLOOKUP($J$10,TTHMTable[],MATCH($A25,TTHMTable[Column1],0),FALSE) ->  | K25: =HLOOKUP($K$10,TTHMTable[],MATCH($A25,TTHMTable[Column1],0),FALSE) ->  | L25: =HLOOKUP($L$10,TTHMTable[],MATCH($A25,TTHMTable[Column1],0),FALSE) -> 
B26: =HLOOKUP($B$10,TTHMTable[],MATCH($A26,TTHMTable[Column1],0),FALSE) ->  | C26: =HLOOKUP($C$10,TTHMTable[],MATCH($A26,TTHMTable[Column1],0),FALSE) ->  | D26: =HLOOKUP($D$10,TTHMTable[],MATCH($A26,TTHMTable[Column1],0),FALSE) ->  | E26: =HLOOKUP($E$10,TTHMTable[],MATCH($A26,TTHMTable[Column1],0),FALSE) ->  | F26: =HLOOKUP($F$10,TTHMTable[],MATCH($A26,TTHMTable[Column1],0),FALSE) ->  | G26: =HLOOKUP($G$10,TTHMTable[],MATCH($A26,TTHMTable[Column1],0),FALSE) ->  | H26: =HLOOKUP($H$10,TTHMTable[],MATCH($A26,TTHMTable[Column1],0),FALSE) ->  | I26: =HLOOKUP($I$10,TTHMTable[],MATCH($A26,TTHMTable[Column1],0),FALSE) ->  | J26: =HLOOKUP($J$10,TTHMTable[],MATCH($A26,TTHMTable[Column1],0),FALSE) ->  | K26: =HLOOKUP($K$10,TTHMTable[],MATCH($A26,TTHMTable[Column1],0),FALSE) ->  | L26: =HLOOKUP($L$10,TTHMTable[],MATCH($A26,TTHMTable[Column1],0),FALSE) -> 
B27: =HLOOKUP($B$10,TTHMTable[],MATCH($A27,TTHMTable[Column1],0),FALSE) ->  | C27: =HLOOKUP($C$10,TTHMTable[],MATCH($A27,TTHMTable[Column1],0),FALSE) ->  | D27: =HLOOKUP($D$10,TTHMTable[],MATCH($A27,TTHMTable[Column1],0),FALSE) ->  | E27: =HLOOKUP($E$10,TTHMTable[],MATCH($A27,TTHMTable[Column1],0),FALSE) ->  | F27: =HLOOKUP($F$10,TTHMTable[],MATCH($A27,TTHMTable[Column1],0),FALSE) ->  | G27: =HLOOKUP($G$10,TTHMTable[],MATCH($A27,TTHMTable[Column1],0),FALSE) ->  | H27: =HLOOKUP($H$10,TTHMTable[],MATCH($A27,TTHMTable[Column1],0),FALSE) ->  | I27: =HLOOKUP($I$10,TTHMTable[],MATCH($A27,TTHMTable[Column1],0),FALSE) ->  | J27: =HLOOKUP($J$10,TTHMTable[],MATCH($A27,TTHMTable[Column1],0),FALSE) ->  | K27: =HLOOKUP($K$10,TTHMTable[],MATCH($A27,TTHMTable[Column1],0),FALSE) ->  | L27: =HLOOKUP($L$10,TTHMTable[],MATCH($A27,TTHMTable[Column1],0),FALSE) -> 
B28: =HLOOKUP($B$10,TTHMTable[],MATCH($A28,TTHMTable[Column1],0),FALSE) ->  | C28: =HLOOKUP($C$10,TTHMTable[],MATCH($A28,TTHMTable[Column1],0),FALSE) ->  | D28: =HLOOKUP($D$10,TTHMTable[],MATCH($A28,TTHMTable[Column1],0),FALSE) ->  | E28: =HLOOKUP($E$10,TTHMTable[],MATCH($A28,TTHMTable[Column1],0),FALSE) ->  | F28: =HLOOKUP($F$10,TTHMTable[],MATCH($A28,TTHMTable[Column1],0),FALSE) ->  | G28: =HLOOKUP($G$10,TTHMTable[],MATCH($A28,TTHMTable[Column1],0),FALSE) ->  | H28: =HLOOKUP($H$10,TTHMTable[],MATCH($A28,TTHMTable[Column1],0),FALSE) ->  | I28: =HLOOKUP($I$10,TTHMTable[],MATCH($A28,TTHMTable[Column1],0),FALSE) ->  | J28: =HLOOKUP($J$10,TTHMTable[],MATCH($A28,TTHMTable[Column1],0),FALSE) ->  | K28: =HLOOKUP($K$10,TTHMTable[],MATCH($A28,TTHMTable[Column1],0),FALSE) ->  | L28: =HLOOKUP($L$10,TTHMTable[],MATCH($A28,TTHMTable[Column1],0),FALSE) ->  | N28: Formulas for labeling max. LRAA sites on LT charts
B29: =HLOOKUP($B$10,TTHMTable[],MATCH($A29,TTHMTable[Column1],0),FALSE) ->  | C29: =HLOOKUP($C$10,TTHMTable[],MATCH($A29,TTHMTable[Column1],0),FALSE) ->  | D29: =HLOOKUP($D$10,TTHMTable[],MATCH($A29,TTHMTable[Column1],0),FALSE) ->  | E29: =HLOOKUP($E$10,TTHMTable[],MATCH($A29,TTHMTable[Column1],0),FALSE) ->  | F29: =HLOOKUP($F$10,TTHMTable[],MATCH($A29,TTHMTable[Column1],0),FALSE) ->  | G29: =HLOOKUP($G$10,TTHMTable[],MATCH($A29,TTHMTable[Column1],0),FALSE) ->  | H29: =HLOOKUP($H$10,TTHMTable[],MATCH($A29,TTHMTable[Column1],0),FALSE) ->  | I29: =HLOOKUP($I$10,TTHMTable[],MATCH($A29,TTHMTable[Column1],0),FALSE) ->  | J29: =HLOOKUP($J$10,TTHMTable[],MATCH($A29,TTHMTable[Column1],0),FALSE) ->  | K29: =HLOOKUP($K$10,TTHMTable[],MATCH($A29,TTHMTable[Column1],0),FALSE) ->  | L29: =HLOOKUP($L$10,TTHMTable[],MATCH($A29,TTHMTable[Column1],0),FALSE) -> 
B30: =HLOOKUP($B$10,TTHMTable[],MATCH($A30,TTHMTable[Column1],0),FALSE) ->  | C30: =HLOOKUP($C$10,TTHMTable[],MATCH($A30,TTHMTable[Column1],0),FALSE) ->  | D30: =HLOOKUP($D$10,TTHMTable[],MATCH($A30,TTHMTable[Column1],0),FALSE) ->  | E30: =HLOOKUP($E$10,TTHMTable[],MATCH($A30,TTHMTable[Column1],0),FALSE) ->  | F30: =HLOOKUP($F$10,TTHMTable[],MATCH($A30,TTHMTable[Column1],0),FALSE) ->  | G30: =HLOOKUP($G$10,TTHMTable[],MATCH($A30,TTHMTable[Column1],0),FALSE) ->  | H30: =HLOOKUP($H$10,TTHMTable[],MATCH($A30,TTHMTable[Column1],0),FALSE) ->  | I30: =HLOOKUP($I$10,TTHMTable[],MATCH($A30,TTHMTable[Column1],0),FALSE) ->  | J30: =HLOOKUP($J$10,TTHMTable[],MATCH($A30,TTHMTable[Column1],0),FALSE) ->  | K30: =HLOOKUP($K$10,TTHMTable[],MATCH($A30,TTHMTable[Column1],0),FALSE) ->  | L30: =HLOOKUP($L$10,TTHMTable[],MATCH($A30,TTHMTable[Column1],0),FALSE) -> 
B31: =HLOOKUP($B$10,TTHMTable[],MATCH($A31,TTHMTable[Column1],0),FALSE) ->  | C31: =HLOOKUP($C$10,TTHMTable[],MATCH($A31,TTHMTable[Column1],0),FALSE) ->  | D31: =HLOOKUP($D$10,TTHMTable[],MATCH($A31,TTHMTable[Column1],0),FALSE) ->  | E31: =HLOOKUP($E$10,TTHMTable[],MATCH($A31,TTHMTable[Column1],0),FALSE) ->  | F31: =HLOOKUP($F$10,TTHMTable[],MATCH($A31,TTHMTable[Column1],0),FALSE) ->  | G31: =HLOOKUP($G$10,TTHMTable[],MATCH($A31,TTHMTable[Column1],0),FALSE) ->  | H31: =HLOOKUP($H$10,TTHMTable[],MATCH($A31,TTHMTable[Column1],0),FALSE) ->  | I31: =HLOOKUP($I$10,TTHMTable[],MATCH($A31,TTHMTable[Column1],0),FALSE) ->  | J31: =HLOOKUP($J$10,TTHMTable[],MATCH($A31,TTHMTable[Column1],0),FALSE) ->  | K31: =HLOOKUP($K$10,TTHMTable[],MATCH($A31,TTHMTable[Column1],0),FALSE) ->  | L31: =HLOOKUP($L$10,TTHMTable[],MATCH($A31,TTHMTable[Column1],0),FALSE) -> 
A32: =IF(ISBLANK(A14),"",A14) -> 11405 LARRY LAKE ROAD | B32: =IF(ISBLANK(A14),"","LRAA") -> LRAA | E32: =IF(COUNT(B14:E14)<4,"NA",AVERAGE(B14:E14)) -> 0.0147825 | F32: 0.01663 | G32: 0.0172475 | H32: 0.0163225 | I32: 0.0126225 | J32: 0.0149725 | K32: 0.016475 | L32: 0.0173 | N32: =A32 -> 11405 LARRY LAKE ROAD | O32: =IF($E$57=A32,A32,IF($F$57=A32,A32,IF($G$57=A32,A32,IF($H$57=A32,A32,IF($I$57=A32,A32,IF($J$57=A32,A32,IF($K$57=A32,A32,IF($L$57=A32,A32,"")))))))) -> 11405 LARRY LAKE ROAD
A33: =IF(ISBLANK(A15),"",A15) -> 13191 DEASON CAMP ROAD | B33: =IF(ISBLANK(A15),"","LRAA") -> LRAA | E33: 0.047875 | F33: 0.0549 | G33: 0.0558 | H33: NA | I33: NA | J33: NA | K33: NA | L33: NA | N33: 13191 DEASON CAMP ROAD | O33: =IF($E$57=A33,A33,IF($F$57=A33,A33,IF($G$57=A33,A33,IF($H$57=A33,A33,IF($I$57=A33,A33,IF($J$57=A33,A33,IF($K$57=A33,A33,IF($L$57=A33,A33,"")))))))) -> 13191 DEASON CAMP ROAD
A34: =IF(ISBLANK(A16),"",A16) -> 13920 GRAND POINTE ROAD | B34: =IF(ISBLANK(A16),"","LRAA") -> LRAA | E34: 0.034525 | F34: 0.039775 | G34: 0.0395 | H34: NA | I34: NA | J34: NA | K34: NA | L34: NA | N34: 13920 GRAND POINTE ROAD | O34: =IF($E$57=A34,A34,IF($F$57=A34,A34,IF($G$57=A34,A34,IF($H$57=A34,A34,IF($I$57=A34,A34,IF($J$57=A34,A34,IF($K$57=A34,A34,IF($L$57=A34,A34,"")))))))) -> 
A35: =IF(ISBLANK(A17),"",A17) -> 3950 3RD STREET SOUTH | B35: =IF(ISBLANK(A17),"","LRAA") -> LRAA | E35: 0.0414025 | F35: 0.0553 | G35: 0.0563 | H35: NA | I35: NA | J35: NA | K35: NA | L35: NA | N35: 3950 3RD STREET SOUTH | O35: =IF($E$57=A35,A35,IF($F$57=A35,A35,IF($G$57=A35,A35,IF($H$57=A35,A35,IF($I$57=A35,A35,IF($J$57=A35,A35,IF($K$57=A35,A35,IF($L$57=A35,A35,"")))))))) -> 3950 3RD STREET SOUTH
A36: =IF(ISBLANK(A18),"",A18) -> 6802 MCFARLAND BLVD | B36: =IF(ISBLANK(A18),"","LRAA") -> LRAA | E36: =IF(COUNT(B18:E18)<4,"NA",AVERAGE(B18:E18)) -> 0.04525 | F36: 0.04775 | G36: 0.048325 | H36: NA | I36: NA | J36: NA | K36: NA | L36: NA
A37: #1 BOOTH ESTATES | B37: LRAA | E37: =IF(COUNT(B19:E19)<4,"NA",AVERAGE(B19:E19)) -> NA | F37: NA | G37: NA | H37: NA | I37: NA | J37: NA | K37: 0.0565 | L37: 0.0533
A38: 17689 PINE LAKE RD | B38: LRAA | E38: =IF(COUNT(B20:E20)<4,"NA",AVERAGE(B20:E20)) -> NA | F38: NA | G38: NA | H38: NA | I38: NA | J38: NA | K38: 0.0576 | L38: 0.0522
A39: =IF(ISBLANK(A21),"",A21) -> 2920 39TH ST | B39: =IF(ISBLANK(A21),"","LRAA") -> LRAA | E39: =IF(COUNT(B21:E21)<4,"NA",AVERAGE(B21:E21)) -> NA | F39: NA | G39: NA | H39: NA | I39: NA | J39: NA | K39: 0.057 | L39: 0.049325 | N39: 2920 39TH ST | O39: =IF($E$57=A39,A39,IF($F$57=A39,A39,IF($G$57=A39,A39,IF($H$57=A39,A39,IF($I$57=A39,A39,IF($J$57=A39,A39,IF($K$57=A39,A39,IF($L$57=A39,A39,"")))))))) -> 
A40: 6425 5TH ST | B40: LRAA | E40: =IF(COUNT(B22:E22)<4,"NA",AVERAGE(B22:E22)) -> NA | F40: NA | G40: NA | H40: NA | I40: NA | J40: NA | K40: 0.062925 | L40: 0.05855 | N40: 6425 5TH ST | O40: 6425 5TH ST
E41: =IF(COUNT(B23:E23)<4,"NA",AVERAGE(B23:E23)) -> NA | F41: NA | G41: NA | H41: NA | I41: NA | J41: NA | K41: NA | L41: NA
E42: =IF(COUNT(B24:E24)<4,"NA",AVERAGE(B24:E24)) -> NA | F42: NA | G42: NA | H42: NA | I42: NA | J42: NA | K42: NA | L42: NA
E43: =IF(COUNT(B25:E25)<4,"NA",AVERAGE(B25:E25)) -> NA | F43: NA | G43: NA | H43: NA | I43: NA | J43: NA | K43: NA | L43: NA
E44: =IF(COUNT(B26:E26)<4,"NA",AVERAGE(B26:E26)) -> NA | F44: NA | G44: NA | H44: NA | I44: NA | J44: NA | K44: NA | L44: NA
E45: =IF(COUNT(B27:E27)<4,"NA",AVERAGE(B27:E27)) -> NA | F45: NA | G45: NA | H45: NA | I45: NA | J45: NA | K45: NA | L45: NA
E46: =IF(COUNT(B28:E28)<4,"NA",AVERAGE(B28:E28)) -> NA | F46: NA | G46: NA | H46: NA | I46: NA | J46: NA | K46: NA | L46: NA
E47: =IF(COUNT(B29:E29)<4,"NA",AVERAGE(B29:E29)) -> NA | F47: NA | G47: NA | H47: NA | I47: NA | J47: NA | K47: NA | L47: NA
E48: =IF(COUNT(B30:E30)<4,"NA",AVERAGE(B30:E30)) -> NA | F48: NA | G48: NA | H48: NA | I48: NA | J48: NA | K48: NA | L48: NA
E49: =IF(COUNT(B31:E31)<4,"NA",AVERAGE(B31:E31)) -> NA | F49: NA | G49: NA | H49: NA | I49: NA | J49: NA | K49: NA | L49: NA
A50: Max LRAA | E50: =IF(COUNT(E32:E49)=0,"NA",MAX(E32:E49)) -> 0.047875 | F50: =IF(COUNT(F32:F49)=0,"NA",MAX(F32:F49)) -> 0.0553 | G50: 0.0563 | H50: 0.0163225 | I50: 0.0126225 | J50: 0.0149725 | K50: 0.062925 | L50: =IF(COUNT(L32:L49)=0,"NA",MAX(L32:L49)) -> 0.05855 | O50: =CONCATENATE(O32," ",O33," ",O34," ",O35," ",O39," ",O40," ",O41," ",O42," ",O43," ",O44," ",O45," ",O46) -> 11405 LARRY LAKE ROAD 13191 DEASON CAMP ROAD 3950 3RD STREET SOUTH 6425 5TH ST
A51: Avg of Max LRAAs | L51: =IF(COUNT(E50:L50)<8,"NA",AVERAGE(E50:L50)) -> 0.0406084375
A53: Data for plotting
A54: Avg of Max LRAAs | E54: =$L$51 -> 0.0406084375 | F54: =$L$51 -> 0.0406084375 | G54: 0.0406084375 | H54: 0.0406084375 | I54: 0.0406084375 | J54: 0.0406084375 | K54: 0.0406084375 | L54: =L51 -> 0.0406084375
A55: Individual Site Goal | E55: =+$B$3 -> 0.07 | F55: 0.07 | G55: 0.07 | H55: 0.07 | I55: 0.07 | J55: 0.07 | K55: 0.07 | L55: 0.07
A56: Long-Term System Goal | E56: =+$B$4 -> 0.06 | F56: 0.06 | G56: 0.06 | H56: 0.06 | I56: 0.06 | J56: 0.06 | K56: 0.06 | L56: 0.06
E57: =IF(SUM(E32:E46)=0,"",(VLOOKUP(MAX(E32:E46),$E$32:$N$46,10,FALSE))) -> 13191 DEASON CAMP ROAD | F57: =IF(SUM(F32:F46)=0,"",(VLOOKUP(MAX(F32:F46),$F$32:$N$46,9,FALSE))) -> 3950 3RD STREET SOUTH | G57: =IF(SUM(G32:G46)=0,"",(VLOOKUP(MAX(G32:G46),$G$32:$N$46,8,FALSE))) -> 3950 3RD STREET SOUTH | H57: =IF(SUM(H32:H46)=0,"",(VLOOKUP(MAX(H32:H46),$H$32:$N$46,7,FALSE))) -> 11405 LARRY LAKE ROAD | I57: =IF(SUM(I32:I46)=0,"",(VLOOKUP(MAX(I32:I46),$I$32:$N$46,6,FALSE))) -> 11405 LARRY LAKE ROAD | J57: =IF(SUM(J32:J46)=0,"",(VLOOKUP(MAX(J32:J46),$J$32:$N$46,5,FALSE))) -> 11405 LARRY LAKE ROAD | K57: =IF(SUM(K32:K46)=0,"",(VLOOKUP(MAX(K32:K46),$K$32:$N$46,4,FALSE))) -> 6425 5TH ST | L57: =IF(SUM(L32:L46)=0,"",(VLOOKUP(MAX(L32:L46),$L$32:$N$46,3,FALSE))) -> 6425 5TH ST
I63: Sites Contributing to Maximum LRAA:
I64: =O50 -> 11405 LARRY LAKE ROAD 13191 DEASON CAMP ROAD 3950 3RD STREET SOUTH 6425 5TH ST

Sheet HAA5 Summary Table (hidden)
A1: Note: If table is not updated go to the "Data Entry" tab and click the "Update Tables" button. If table does not update, make sure that macros are enabled. Go to Trust Center & Macro Settings to enable macros. | N1: ='Data Entry'!K1:K2 -> Water System Name
A3: Average of HAA5, Mg/L | B3: Years | C3: Date
B4: 2014 | E4: 2015 | I4: 2016 | M4: 2017 | Q4: 2018 | U4: 2019 | W4: Average
A5: Sample Site | B5: Qtr2 | C5: Qtr3 | D5: Qtr4 | E5: Qtr1 | F5: Qtr2 | G5: Qtr3 | H5: Qtr4 | I5: Qtr1 | J5: Qtr2 | K5: Qtr3 | L5: Qtr4 | M5: Qtr1 | N5: Qtr2 | O5: Qtr3 | P5: Qtr4 | Q5: Qtr1 | R5: Qtr2 | S5: Qtr3 | T5: Qtr4 | U5: Qtr1 | V5: Qtr2
A6: 11405 LARRY LAKE ROAD | B6: 0.0118 | C6: 0.0127 | D6: 0.0112 | E6: 0.0166 | F6: 0.01 | G6: 0.0168 | H6: 0.0128 | I6: 0.0202 | J6: 0.014 | K6: 0.0172 | L6: 0.00969 | M6: 0.00742 | N6: 0.0193 | O6: 0.0328 | P6: 0.0138 | Q6: 0.00907 | R6: 0.0162 | S6: 0.0147 | T6: 0.0225 | U6: 0.0222 | V6: 0.022 | W6: 0.01585619048
A7: 13191 DEASON CAMP ROAD | B7: 0.0273 | C7: 0.0628 | D7: 0.0364 | E7: 0.0356 | F7: 0.0296 | G7: 0.0495 | H7: 0.0336 | I7: 0.0504 | J7: 0.032 | K7: 0.0461 | L7: 0.0376 | M7: 0.0202 | N7: 0.0378 | O7: 0.0613 | P7: 0.0443 | Q7: 0.0201 | R7: na | S7: na | T7: na | U7: na | V7: na | W7: 0.0390375
A8: 13920 GRAND POINTE ROAD | B8: 0.0249 | C8: 0.047 | D8: 0.0241 | E8: 0.0316 | F8: 0.019 | G8: 0.0342 | H8: 0.0291 | I8: 0.0495 | J8: 0.029 | K8: 0.0478 | L8: 0.0274 | M8: 0.018 | N8: 0.035 | O8: 0.0477 | P8: 0.0384 | Q8: 0.0152 | R8: na | S8: na | T8: na | U8: na | V8: na | W8: 0.03236875
A9: 3950 3RD STREET SOUTH | B9: 0.0299 | C9: 0.0609 | D9: 0.0398 | E9: 0.0345 | F9: 0.0272 | G9: 0.0496 | H9: 0.0385 | I9: 0.0499 | J9: 0.036 | K9: 0.0464 | L9: 0.00969 | M9: 0.0184 | N9: 0.0435 | O9: 0.0617 | P9: 0.0444 | Q9: 0.0191 | R9: na | S9: na | T9: na | U9: na | V9: na | W9: 0.038093125
A10: 6802 MCFARLAND BLVD | B10: 0.03 | C10: 0.0517 | D10: 0.0386 | E10: 0.0329 | F10: 0.0298 | G10: 0.0482 | H10: 0.0341 | I10: 0.0499 | J10: 0.034 | K10: 0.0429 | L10: 0.0366 | M10: 0.0219 | N10: 0.0412 | O10: 0.0608 | P10: 0.0479 | Q10: 0.0182 | R10: na | S10: na | T10: na | U10: na | V10: na | W10: 0.03866875
A11: #1 BOOTH ESTATES | B11: na | C11: na | D11: na | E11: na | F11: na | G11: na | H11: na | I11: na | J11: na | K11: na | L11: na | M11: na | N11: na | O11: na | P11: na | Q11: na | R11: 0.0345 | S11: 0.0656 | T11: 0.0459 | U11: 0.0473 | V11: 0.035 | W11: 0.04566
A12: 17689 PINE LAKE RD | B12: na | C12: na | D12: na | E12: na | F12: na | G12: na | H12: na | I12: na | J12: na | K12: na | L12: na | M12: na | N12: na | O12: na | P12: na | Q12: na | R12: 0.0584 | S12: 0.0615 | T12: 0.0461 | U12: 0.0511 | V12: 0.036 | W12: 0.05062
A13: 2920 39TH ST | B13: na | C13: na | D13: na | E13: na | F13: na | G13: na | H13: na | I13: na | J13: na | K13: na | L13: na | M13: na | N13: na | O13: na | P13: na | Q13: na | R13: 0.0573 | S13: 0.0728 | T13: 0.0689 | U13: 0.038 | V13: 0.0323 | W13: 0.05386
A14: 6425 5TH ST | B14: na | C14: na | D14: na | E14: na | F14: na | G14: na | H14: na | I14: na | J14: na | K14: na | L14: na | M14: na | N14: na | O14: na | P14: na | Q14: na | R14: 0.0409 | S14: 0.0649 | T14: 0.0481 | U14: 0.0469 | V14: 0.034 | W14: 0.04696
A15: Average | B15: 0.02478 | C15: 0.04702 | D15: 0.03002 | E15: 0.03024 | F15: 0.02312 | G15: 0.03966 | H15: 0.02962 | I15: 0.04398 | J15: 0.029 | K15: 0.04008 | L15: 0.024196 | M15: 0.017184 | N15: 0.03536 | O15: 0.05286 | P15: 0.03776 | Q15: 0.016334 | R15: 0.04146 | S15: 0.0559 | T15: 0.0463 | U15: 0.0411 | V15: 0.03186 | W15: 0.03513495238
A40: Column1 | B40: Column2 | C40: Column3 | D40: Column4 | E40: Column5 | F40: Column6 | G40: Column7 | H40: Column8 | I40: Column9 | J40: Column10 | K40: Column11 | L40: Column12 | M40: Column13 | N40: Column14 | O40: Column15 | P40: Column16 | Q40: Column17 | R40: Column18 | S40: Column19 | T40: Column20 | U40: Column21 | V40: Column22 | W40: Column23 | X40: Column24 | Y40: Column25 | Z40: Column26 | AA40: Column27 | AB40: Column28 | AC40: Column29 | AD40: Column30 | AE40: Column31 | AF40: Column32 | AG40: Column33
B41: =RIGHT(LEFT(B45,4),1)&B42 -> 22014 | C41: =RIGHT(LEFT(C45,4),1)&C42 -> 32014 | D41: =RIGHT(LEFT(D45,4),1)&D42 -> 42014 | E41: =RIGHT(LEFT(E45,4),1)&E42 -> 12015 | F41: =RIGHT(LEFT(F45,4),1)&F42 -> 22015 | G41: =RIGHT(LEFT(G45,4),1)&G42 -> 32015 | H41: =RIGHT(LEFT(H45,4),1)&H42 -> 42015 | I41: =RIGHT(LEFT(I45,4),1)&I42 -> 12016 | J41: =RIGHT(LEFT(J45,4),1)&J42 -> 22016 | K41: =RIGHT(LEFT(K45,4),1)&K42 -> 32016 | L41: =RIGHT(LEFT(L45,4),1)&L42 -> 42016 | M41: =RIGHT(LEFT(M45,4),1)&M42 -> 12017 | N41: =RIGHT(LEFT(N45,4),1)&N42 -> 22017 | O41: =RIGHT(LEFT(O45,4),1)&O42 -> 32017 | P41: =RIGHT(LEFT(P45,4),1)&P42 -> 42017 | Q41: =RIGHT(LEFT(Q45,4),1)&Q42 -> 12018 | R41: =RIGHT(LEFT(R45,4),1)&R42 -> 22018 | S41: =RIGHT(LEFT(S45,4),1)&S42 -> 32018 | T41: =RIGHT(LEFT(T45,4),1)&T42 -> 42018 | U41: =RIGHT(LEFT(U45,4),1)&U42 -> 12019 | V41: =RIGHT(LEFT(V45,4),1)&V42 -> 22019 | W41: =RIGHT(LEFT(W45,4),1)&W42 -> Average | X41: =RIGHT(LEFT(X45,4),1)&X42 -> Average | Y41: =RIGHT(LEFT(Y45,4),1)&Y42 -> Average | Z41: =RIGHT(LEFT(Z45,4),1)&Z42 -> Average | AA41: =RIGHT(LEFT(AA45,4),1)&AA42 -> Average | AB41: =RIGHT(LEFT(AB45,4),1)&AB42 -> Average | AC41: =RIGHT(LEFT(AC45,4),1)&AC42 -> Average | AD41: =RIGHT(LEFT(AD45,4),1)&AD42 -> Average | AE41: =RIGHT(LEFT(AE45,4),1)&AE42 -> Average | AF41: =RIGHT(LEFT(AF45,4),1)&AF42 -> Average | AG41: =RIGHT(LEFT(AG45,4),1)&AG42 -> Average
B42: =IF(B44>1,B44,A42) -> 2014 | C42: =IF(C44>1,C44,B42) -> 2014 | D42: =IF(D44>1,D44,C42) -> 2014 | E42: =IF(E44>1,E44,D42) -> 2015 | F42: =IF(F44>1,F44,E42) -> 2015 | G42: =IF(G44>1,G44,F42) -> 2015 | H42: =IF(H44>1,H44,G42) -> 2015 | I42: =IF(I44>1,I44,H42) -> 2016 | J42: =IF(J44>1,J44,I42) -> 2016 | K42: =IF(K44>1,K44,J42) -> 2016 | L42: =IF(L44>1,L44,K42) -> 2016 | M42: =IF(M44>1,M44,L42) -> 2017 | N42: =IF(N44>1,N44,M42) -> 2017 | O42: =IF(O44>1,O44,N42) -> 2017 | P42: =IF(P44>1,P44,O42) -> 2017 | Q42: =IF(Q44>1,Q44,P42) -> 2018 | R42: =IF(R44>1,R44,Q42) -> 2018 | S42: =IF(S44>1,S44,R42) -> 2018 | T42: =IF(T44>1,T44,S42) -> 2018 | U42: =IF(U44>1,U44,T42) -> 2019 | V42: =IF(V44>1,V44,U42) -> 2019 | W42: =IF(W44>1,W44,V42) -> Average | X42: =IF(X44>1,X44,W42) -> Average | Y42: =IF(Y44>1,Y44,X42) -> Average | Z42: =IF(Z44>1,Z44,Y42) -> Average | AA42: =IF(AA44>1,AA44,Z42) -> Average | AB42: =IF(AB44>1,AB44,AA42) -> Average | AC42: =IF(AC44>1,AC44,AB42) -> Average | AD42: =IF(AD44>1,AD44,AC42) -> Average | AE42: =IF(AE44>1,AE44,AD42) -> Average | AF42: =IF(AF44>1,AF44,AE42) -> Average | AG42: =IF(AG44>1,AG44,AF42) -> Average
A43: Average of HAA5, Mg/L | B43: Years | C43: Date
B44: 2014 | E44: 2015 | I44: 2016 | M44: 2017 | Q44: 2018 | U44: 2019 | W44: Average
A45: Sample Site | B45: Qtr2 | C45: Qtr3 | D45: Qtr4 | E45: Qtr1 | F45: Qtr2 | G45: Qtr3 | H45: Qtr4 | I45: Qtr1 | J45: Qtr2 | K45: Qtr3 | L45: Qtr4 | M45: Qtr1 | N45: Qtr2 | O45: Qtr3 | P45: Qtr4 | Q45: Qtr1 | R45: Qtr2 | S45: Qtr3 | T45: Qtr4 | U45: Qtr1 | V45: Qtr2
A46: 11405 LARRY LAKE ROAD | B46: 0.0118 | C46: 0.0127 | D46: 0.0112 | E46: 0.0166 | F46: 0.01 | G46: 0.0168 | H46: 0.0128 | I46: 0.0202 | J46: 0.014 | K46: 0.0172 | L46: 0.00969 | M46: 0.00742 | N46: 0.0193 | O46: 0.0328 | P46: 0.0138 | Q46: 0.00907 | R46: 0.0162 | S46: 0.0147 | T46: 0.0225 | U46: 0.0222 | V46: 0.022 | W46: 0.01585619048
A47: 13191 DEASON CAMP ROAD | B47: 0.0273 | C47: 0.0628 | D47: 0.0364 | E47: 0.0356 | F47: 0.0296 | G47: 0.0495 | H47: 0.0336 | I47: 0.0504 | J47: 0.032 | K47: 0.0461 | L47: 0.0376 | M47: 0.0202 | N47: 0.0378 | O47: 0.0613 | P47: 0.0443 | Q47: 0.0201 | R47: na | S47: na | T47: na | U47: na | V47: na | W47: 0.0390375
A48: 13920 GRAND POINTE ROAD | B48: 0.0249 | C48: 0.047 | D48: 0.0241 | E48: 0.0316 | F48: 0.019 | G48: 0.0342 | H48: 0.0291 | I48: 0.0495 | J48: 0.029 | K48: 0.0478 | L48: 0.0274 | M48: 0.018 | N48: 0.035 | O48: 0.0477 | P48: 0.0384 | Q48: 0.0152 | R48: na | S48: na | T48: na | U48: na | V48: na | W48: 0.03236875
A49: 3950 3RD STREET SOUTH | B49: 0.0299 | C49: 0.0609 | D49: 0.0398 | E49: 0.0345 | F49: 0.0272 | G49: 0.0496 | H49: 0.0385 | I49: 0.0499 | J49: 0.036 | K49: 0.0464 | L49: 0.00969 | M49: 0.0184 | N49: 0.0435 | O49: 0.0617 | P49: 0.0444 | Q49: 0.0191 | R49: na | S49: na | T49: na | U49: na | V49: na | W49: 0.038093125
A50: 6802 MCFARLAND BLVD | B50: 0.03 | C50: 0.0517 | D50: 0.0386 | E50: 0.0329 | F50: 0.0298 | G50: 0.0482 | H50: 0.0341 | I50: 0.0499 | J50: 0.034 | K50: 0.0429 | L50: 0.0366 | M50: 0.0219 | N50: 0.0412 | O50: 0.0608 | P50: 0.0479 | Q50: 0.0182 | R50: na | S50: na | T50: na | U50: na | V50: na | W50: 0.03866875
A51: #1 BOOTH ESTATES | B51: na | C51: na | D51: na | E51: na | F51: na | G51: na | H51: na | I51: na | J51: na | K51: na | L51: na | M51: na | N51: na | O51: na | P51: na | Q51: na | R51: 0.0345 | S51: 0.0656 | T51: 0.0459 | U51: 0.0473 | V51: 0.035 | W51: 0.04566
A52: 17689 PINE LAKE RD | B52: na | C52: na | D52: na | E52: na | F52: na | G52: na | H52: na | I52: na | J52: na | K52: na | L52: na | M52: na | N52: na | O52: na | P52: na | Q52: na | R52: 0.0584 | S52: 0.0615 | T52: 0.0461 | U52: 0.0511 | V52: 0.036 | W52: 0.05062
A53: 2920 39TH ST | B53: na | C53: na | D53: na | E53: na | F53: na | G53: na | H53: na | I53: na | J53: na | K53: na | L53: na | M53: na | N53: na | O53: na | P53: na | Q53: na | R53: 0.0573 | S53: 0.0728 | T53: 0.0689 | U53: 0.038 | V53: 0.0323 | W53: 0.05386
A54: 6425 5TH ST | B54: na | C54: na | D54: na | E54: na | F54: na | G54: na | H54: na | I54: na | J54: na | K54: na | L54: na | M54: na | N54: na | O54: na | P54: na | Q54: na | R54: 0.0409 | S54: 0.0649 | T54: 0.0481 | U54: 0.0469 | V54: 0.034 | W54: 0.04696
A55: Average | B55: 0.02478 | C55: 0.04702 | D55: 0.03002 | E55: 0.03024 | F55: 0.02312 | G55: 0.03966 | H55: 0.02962 | I55: 0.04398 | J55: 0.029 | K55: 0.04008 | L55: 0.024196 | M55: 0.017184 | N55: 0.03536 | O55: 0.05286 | P55: 0.03776 | Q55: 0.016334 | R55: 0.04146 | S55: 0.0559 | T55: 0.0463 | U55: 0.0411 | V55: 0.03186 | W55: 0.03513495238

Sheet HAA5 Chart

Sheet HAA5 Goals
A1: HAA5 Goals Calculation
A2: If desired, the goals can be modified on a system-specific basis. Default values are shown in the comment boxes below.
A3: Individual Site Goal: | B3: 0.05
A4: Long-Term System Goal: | B4: 0.04
A5: Water System Name: | B5: ='TTHM Goals'!B5 -> Water System Name
A6: Yellow | B6: highlighted LRAA exceeds TTHM Individual Site Goal (i.e., default goal is LRAA < 0.050 Mg/L) for that quarter
A7: Blue | B7: highlighted LRAA is the max LRAA for that quarter; unless the LRAA exceeds the Individual Site Goal (see above)
A8: Green | B8: highlighted data exceeds the TTHM Long-Term System Goal (i.e., default goal is ave Max LRAAs < 0.04 Mg/L)
B10: =B11&B12 -> 42016 | C10: =C11&C12 -> 12017 | D10: 22017 | E10: 32017 | F10: 42017 | G10: 12018 | H10: 22018 | I10: 32018 | J10: 42018 | K10: 12019 | L10: 22019
B11: =IF(C11=4,3,IF(C11=3,2,IF(C11=2,1,IF(C11=1,4)))) -> 4 | C11: 1 | D11: 2 | E11: 3 | F11: 4 | G11: 1 | H11: 2 | I11: 3 | J11: 4 | K11: =IF(L11=4,3,IF(L11=3,2,IF(L11=2,1,IF(L11=1,4)))) -> 1 | L11: =RIGHT(LEFT(L10,1),1)*1 -> 2
B12: =IF(C11=4,C12,IF(C11=3,C12,IF(C11=2,C12,IF(C11=1,C12-1)))) -> 2016 | C12: 2017 | D12: 2017 | E12: 2017 | F12: 2017 | G12: 2018 | H12: 2018 | I12: 2018 | J12: 2018 | K12: =IF(L11=4,L12,IF(L11=3,L12,IF(L11=2,L12,IF(L11=1,L12-1)))) -> 2019 | L12: =RIGHT(LEFT(L10,5),4)*1 -> 2019
A13: Sample Site | B13: ="Q"&B11&" "&B12 -> Q4 2016 | C13: ="Q"&C11&" "&C12 -> Q1 2017 | D13: Q2 2017 | E13: Q3 2017 | F13: Q4 2017 | G13: Q1 2018 | H13: Q2 2018 | I13: Q3 2018 | J13: Q4 2018 | K13: Q1 2019 | L13: ="Q"&L11&" "&L12 -> Q2 2019
A14: 11405 LARRY LAKE ROAD | B14: =HLOOKUP($B$10,HAATable[],MATCH($A14,HAATable[Column1],0),FALSE) -> 0.00969 | C14: =HLOOKUP($C$10,HAATable[],MATCH($A14,HAATable[Column1],0),FALSE) -> 0.00742 | D14: =HLOOKUP($D$10,HAATable[],MATCH($A14,HAATable[Column1],0),FALSE) -> 0.0193 | E14: =HLOOKUP($E$10,HAATable[],MATCH($A14,HAATable[Column1],0),FALSE) -> 0.0328 | F14: =HLOOKUP($F$10,HAATable[],MATCH($A14,HAATable[Column1],0),FALSE) -> 0.0138 | G14: =HLOOKUP($G$10,HAATable[],MATCH($A14,HAATable[Column1],0),FALSE) -> 0.00907 | H14: =HLOOKUP($H$10,HAATable[],MATCH($A14,HAATable[Column1],0),FALSE) -> 0.0162 | I14: =HLOOKUP($I$10,HAATable[],MATCH($A14,HAATable[Column1],0),FALSE) -> 0.0147 | J14: =HLOOKUP($J$10,HAATable[],MATCH($A14,HAATable[Column1],0),FALSE) -> 0.0225 | K14: =HLOOKUP($K$10,HAATable[],MATCH($A14,HAATable[Column1],0),FALSE) -> 0.0222 | L14: =HLOOKUP($L$10,HAATable[],MATCH($A14,HAATable[Column1],0),FALSE) -> 0.022
A15: 13191 DEASON CAMP ROAD | B15: =HLOOKUP($B$10,HAATable[],MATCH($A15,HAATable[Column1],0),FALSE) -> 0.0376 | C15: =HLOOKUP($C$10,HAATable[],MATCH($A15,HAATable[Column1],0),FALSE) -> 0.0202 | D15: =HLOOKUP($D$10,HAATable[],MATCH($A15,HAATable[Column1],0),FALSE) -> 0.0378 | E15: =HLOOKUP($E$10,HAATable[],MATCH($A15,HAATable[Column1],0),FALSE) -> 0.0613 | F15: =HLOOKUP($F$10,HAATable[],MATCH($A15,HAATable[Column1],0),FALSE) -> 0.0443 | G15: =HLOOKUP($G$10,HAATable[],MATCH($A15,HAATable[Column1],0),FALSE) -> 0.0201 | H15: =HLOOKUP($H$10,HAATable[],MATCH($A15,HAATable[Column1],0),FALSE) -> na | I15: =HLOOKUP($I$10,HAATable[],MATCH($A15,HAATable[Column1],0),FALSE) -> na | J15: =HLOOKUP($J$10,HAATable[],MATCH($A15,HAATable[Column1],0),FALSE) -> na | K15: =HLOOKUP($K$10,HAATable[],MATCH($A15,HAATable[Column1],0),FALSE) -> na | L15: =HLOOKUP($L$10,HAATable[],MATCH($A15,HAATable[Column1],0),FALSE) -> na
A16: 13920 GRAND POINTE ROAD | B16: =HLOOKUP($B$10,HAATable[],MATCH($A16,HAATable[Column1],0),FALSE) -> 0.0274 | C16: =HLOOKUP($C$10,HAATable[],MATCH($A16,HAATable[Column1],0),FALSE) -> 0.018 | D16: =HLOOKUP($D$10,HAATable[],MATCH($A16,HAATable[Column1],0),FALSE) -> 0.035 | E16: =HLOOKUP($E$10,HAATable[],MATCH($A16,HAATable[Column1],0),FALSE) -> 0.0477 | F16: =HLOOKUP($F$10,HAATable[],MATCH($A16,HAATable[Column1],0),FALSE) -> 0.0384 | G16: =HLOOKUP($G$10,HAATable[],MATCH($A16,HAATable[Column1],0),FALSE) -> 0.0152 | H16: =HLOOKUP($H$10,HAATable[],MATCH($A16,HAATable[Column1],0),FALSE) -> na | I16: =HLOOKUP($I$10,HAATable[],MATCH($A16,HAATable[Column1],0),FALSE) -> na | J16: =HLOOKUP($J$10,HAATable[],MATCH($A16,HAATable[Column1],0),FALSE) -> na | K16: =HLOOKUP($K$10,HAATable[],MATCH($A16,HAATable[Column1],0),FALSE) -> na | L16: =HLOOKUP($L$10,HAATable[],MATCH($A16,HAATable[Column1],0),FALSE) -> na
A17: 3950 3RD STREET SOUTH | B17: =HLOOKUP($B$10,HAATable[],MATCH($A17,HAATable[Column1],0),FALSE) -> 0.00969 | C17: =HLOOKUP($C$10,HAATable[],MATCH($A17,HAATable[Column1],0),FALSE) -> 0.0184 | D17: =HLOOKUP($D$10,HAATable[],MATCH($A17,HAATable[Column1],0),FALSE) -> 0.0435 | E17: =HLOOKUP($E$10,HAATable[],MATCH($A17,HAATable[Column1],0),FALSE) -> 0.0617 | F17: =HLOOKUP($F$10,HAATable[],MATCH($A17,HAATable[Column1],0),FALSE) -> 0.0444 | G17: =HLOOKUP($G$10,HAATable[],MATCH($A17,HAATable[Column1],0),FALSE) -> 0.0191 | H17: =HLOOKUP($H$10,HAATable[],MATCH($A17,HAATable[Column1],0),FALSE) -> na | I17: =HLOOKUP($I$10,HAATable[],MATCH($A17,HAATable[Column1],0),FALSE) -> na | J17: =HLOOKUP($J$10,HAATable[],MATCH($A17,HAATable[Column1],0),FALSE) -> na | K17: =HLOOKUP($K$10,HAATable[],MATCH($A17,HAATable[Column1],0),FALSE) -> na | L17: =HLOOKUP($L$10,HAATable[],MATCH($A17,HAATable[Column1],0),FALSE) -> na
A18: 6802 MCFARLAND BLVD | B18: =HLOOKUP($B$10,HAATable[],MATCH($A18,HAATable[Column1],0),FALSE) -> 0.0366 | C18: =HLOOKUP($C$10,HAATable[],MATCH($A18,HAATable[Column1],0),FALSE) -> 0.0219 | D18: =HLOOKUP($D$10,HAATable[],MATCH($A18,HAATable[Column1],0),FALSE) -> 0.0412 | E18: =HLOOKUP($E$10,HAATable[],MATCH($A18,HAATable[Column1],0),FALSE) -> 0.0608 | F18: =HLOOKUP($F$10,HAATable[],MATCH($A18,HAATable[Column1],0),FALSE) -> 0.0479 | G18: =HLOOKUP($G$10,HAATable[],MATCH($A18,HAATable[Column1],0),FALSE) -> 0.0182 | H18: =HLOOKUP($H$10,HAATable[],MATCH($A18,HAATable[Column1],0),FALSE) -> na | I18: =HLOOKUP($I$10,HAATable[],MATCH($A18,HAATable[Column1],0),FALSE) -> na | J18: =HLOOKUP($J$10,HAATable[],MATCH($A18,HAATable[Column1],0),FALSE) -> na | K18: =HLOOKUP($K$10,HAATable[],MATCH($A18,HAATable[Column1],0),FALSE) -> na | L18: =HLOOKUP($L$10,HAATable[],MATCH($A18,HAATable[Column1],0),FALSE) -> na
A19: #1 BOOTH ESTATES | B19: =HLOOKUP($B$10,HAATable[],MATCH($A19,HAATable[Column1],0),FALSE) -> na | C19: =HLOOKUP($C$10,HAATable[],MATCH($A19,HAATable[Column1],0),FALSE) -> na | D19: =HLOOKUP($D$10,HAATable[],MATCH($A19,HAATable[Column1],0),FALSE) -> na | E19: =HLOOKUP($E$10,HAATable[],MATCH($A19,HAATable[Column1],0),FALSE) -> na | F19: =HLOOKUP($F$10,HAATable[],MATCH($A19,HAATable[Column1],0),FALSE) -> na | G19: =HLOOKUP($G$10,HAATable[],MATCH($A19,HAATable[Column1],0),FALSE) -> na | H19: =HLOOKUP($H$10,HAATable[],MATCH($A19,HAATable[Column1],0),FALSE) -> 0.0345 | I19: =HLOOKUP($I$10,HAATable[],MATCH($A19,HAATable[Column1],0),FALSE) -> 0.0656 | J19: =HLOOKUP($J$10,HAATable[],MATCH($A19,HAATable[Column1],0),FALSE) -> 0.0459 | K19: =HLOOKUP($K$10,HAATable[],MATCH($A19,HAATable[Column1],0),FALSE) -> 0.0473 | L19: =HLOOKUP($L$10,HAATable[],MATCH($A19,HAATable[Column1],0),FALSE) -> 0.035
A20: 17689 PINE LAKE RD | B20: =HLOOKUP($B$10,HAATable[],MATCH($A20,HAATable[Column1],0),FALSE) -> na | C20: =HLOOKUP($C$10,HAATable[],MATCH($A20,HAATable[Column1],0),FALSE) -> na | D20: =HLOOKUP($D$10,HAATable[],MATCH($A20,HAATable[Column1],0),FALSE) -> na | E20: =HLOOKUP($E$10,HAATable[],MATCH($A20,HAATable[Column1],0),FALSE) -> na | F20: =HLOOKUP($F$10,HAATable[],MATCH($A20,HAATable[Column1],0),FALSE) -> na | G20: =HLOOKUP($G$10,HAATable[],MATCH($A20,HAATable[Column1],0),FALSE) -> na | H20: =HLOOKUP($H$10,HAATable[],MATCH($A20,HAATable[Column1],0),FALSE) -> 0.0584 | I20: =HLOOKUP($I$10,HAATable[],MATCH($A20,HAATable[Column1],0),FALSE) -> 0.0615 | J20: =HLOOKUP($J$10,HAATable[],MATCH($A20,HAATable[Column1],0),FALSE) -> 0.0461 | K20: =HLOOKUP($K$10,HAATable[],MATCH($A20,HAATable[Column1],0),FALSE) -> 0.0511 | L20: =HLOOKUP($L$10,HAATable[],MATCH($A20,HAATable[Column1],0),FALSE) -> 0.036
A21: 2920 39TH ST | B21: =HLOOKUP($B$10,HAATable[],MATCH($A21,HAATable[Column1],0),FALSE) -> na | C21: =HLOOKUP($C$10,HAATable[],MATCH($A21,HAATable[Column1],0),FALSE) -> na | D21: =HLOOKUP($D$10,HAATable[],MATCH($A21,HAATable[Column1],0),FALSE) -> na | E21: =HLOOKUP($E$10,HAATable[],MATCH($A21,HAATable[Column1],0),FALSE) -> na | F21: =HLOOKUP($F$10,HAATable[],MATCH($A21,HAATable[Column1],0),FALSE) -> na | G21: =HLOOKUP($G$10,HAATable[],MATCH($A21,HAATable[Column1],0),FALSE) -> na | H21: =HLOOKUP($H$10,HAATable[],MATCH($A21,HAATable[Column1],0),FALSE) -> 0.0573 | I21: =HLOOKUP($I$10,HAATable[],MATCH($A21,HAATable[Column1],0),FALSE) -> 0.0728 | J21: =HLOOKUP($J$10,HAATable[],MATCH($A21,HAATable[Column1],0),FALSE) -> 0.0689 | K21: =HLOOKUP($K$10,HAATable[],MATCH($A21,HAATable[Column1],0),FALSE) -> 0.038 | L21: =HLOOKUP($L$10,HAATable[],MATCH($A21,HAATable[Column1],0),FALSE) -> 0.0323
A22: 6425 5TH ST | B22: =HLOOKUP($B$10,HAATable[],MATCH($A22,HAATable[Column1],0),FALSE) -> na | C22: =HLOOKUP($C$10,HAATable[],MATCH($A22,HAATable[Column1],0),FALSE) -> na | D22: =HLOOKUP($D$10,HAATable[],MATCH($A22,HAATable[Column1],0),FALSE) -> na | E22: =HLOOKUP($E$10,HAATable[],MATCH($A22,HAATable[Column1],0),FALSE) -> na | F22: =HLOOKUP($F$10,HAATable[],MATCH($A22,HAATable[Column1],0),FALSE) -> na | G22: =HLOOKUP($G$10,HAATable[],MATCH($A22,HAATable[Column1],0),FALSE) -> na | H22: =HLOOKUP($H$10,HAATable[],MATCH($A22,HAATable[Column1],0),FALSE) -> 0.0409 | I22: =HLOOKUP($I$10,HAATable[],MATCH($A22,HAATable[Column1],0),FALSE) -> 0.0649 | J22: =HLOOKUP($J$10,HAATable[],MATCH($A22,HAATable[Column1],0),FALSE) -> 0.0481 | K22: =HLOOKUP($K$10,HAATable[],MATCH($A22,HAATable[Column1],0),FALSE) -> 0.0469 | L22: =HLOOKUP($L$10,HAATable[],MATCH($A22,HAATable[Column1],0),FALSE) -> 0.034
B23: =HLOOKUP($B$10,HAATable[],MATCH($A23,HAATable[Column1],0),FALSE) ->  | C23: =HLOOKUP($C$10,HAATable[],MATCH($A23,HAATable[Column1],0),FALSE) ->  | D23: =HLOOKUP($D$10,HAATable[],MATCH($A23,HAATable[Column1],0),FALSE) ->  | E23: =HLOOKUP($E$10,HAATable[],MATCH($A23,HAATable[Column1],0),FALSE) ->  | F23: =HLOOKUP($F$10,HAATable[],MATCH($A23,HAATable[Column1],0),FALSE) ->  | G23: =HLOOKUP($G$10,HAATable[],MATCH($A23,HAATable[Column1],0),FALSE) ->  | H23: =HLOOKUP($H$10,HAATable[],MATCH($A23,HAATable[Column1],0),FALSE) ->  | I23: =HLOOKUP($I$10,HAATable[],MATCH($A23,HAATable[Column1],0),FALSE) ->  | J23: =HLOOKUP($J$10,HAATable[],MATCH($A23,HAATable[Column1],0),FALSE) ->  | K23: =HLOOKUP($K$10,HAATable[],MATCH($A23,HAATable[Column1],0),FALSE) ->  | L23: =HLOOKUP($L$10,HAATable[],MATCH($A23,HAATable[Column1],0),FALSE) -> 
B24: =HLOOKUP($B$10,HAATable[],MATCH($A24,HAATable[Column1],0),FALSE) ->  | C24: =HLOOKUP($C$10,HAATable[],MATCH($A24,HAATable[Column1],0),FALSE) ->  | D24: =HLOOKUP($D$10,HAATable[],MATCH($A24,HAATable[Column1],0),FALSE) ->  | E24: =HLOOKUP($E$10,HAATable[],MATCH($A24,HAATable[Column1],0),FALSE) ->  | F24: =HLOOKUP($F$10,HAATable[],MATCH($A24,HAATable[Column1],0),FALSE) ->  | G24: =HLOOKUP($G$10,HAATable[],MATCH($A24,HAATable[Column1],0),FALSE) ->  | H24: =HLOOKUP($H$10,HAATable[],MATCH($A24,HAATable[Column1],0),FALSE) ->  | I24: =HLOOKUP($I$10,HAATable[],MATCH($A24,HAATable[Column1],0),FALSE) ->  | J24: =HLOOKUP($J$10,HAATable[],MATCH($A24,HAATable[Column1],0),FALSE) ->  | K24: =HLOOKUP($K$10,HAATable[],MATCH($A24,HAATable[Column1],0),FALSE) ->  | L24: =HLOOKUP($L$10,HAATable[],MATCH($A24,HAATable[Column1],0),FALSE) -> 
B25: =HLOOKUP($B$10,HAATable[],MATCH($A25,HAATable[Column1],0),FALSE) ->  | C25: =HLOOKUP($C$10,HAATable[],MATCH($A25,HAATable[Column1],0),FALSE) ->  | D25: =HLOOKUP($D$10,HAATable[],MATCH($A25,HAATable[Column1],0),FALSE) ->  | E25: =HLOOKUP($E$10,HAATable[],MATCH($A25,HAATable[Column1],0),FALSE) ->  | F25: =HLOOKUP($F$10,HAATable[],MATCH($A25,HAATable[Column1],0),FALSE) ->  | G25: =HLOOKUP($G$10,HAATable[],MATCH($A25,HAATable[Column1],0),FALSE) ->  | H25: =HLOOKUP($H$10,HAATable[],MATCH($A25,HAATable[Column1],0),FALSE) ->  | I25: =HLOOKUP($I$10,HAATable[],MATCH($A25,HAATable[Column1],0),FALSE) ->  | J25: =HLOOKUP($J$10,HAATable[],MATCH($A25,HAATable[Column1],0),FALSE) ->  | K25: =HLOOKUP($K$10,HAATable[],MATCH($A25,HAATable[Column1],0),FALSE) ->  | L25: =HLOOKUP($L$10,HAATable[],MATCH($A25,HAATable[Column1],0),FALSE) -> 
B26: =HLOOKUP($B$10,HAATable[],MATCH($A26,HAATable[Column1],0),FALSE) ->  | C26: =HLOOKUP($C$10,HAATable[],MATCH($A26,HAATable[Column1],0),FALSE) ->  | D26: =HLOOKUP($D$10,HAATable[],MATCH($A26,HAATable[Column1],0),FALSE) ->  | E26: =HLOOKUP($E$10,HAATable[],MATCH($A26,HAATable[Column1],0),FALSE) ->  | F26: =HLOOKUP($F$10,HAATable[],MATCH($A26,HAATable[Column1],0),FALSE) ->  | G26: =HLOOKUP($G$10,HAATable[],MATCH($A26,HAATable[Column1],0),FALSE) ->  | H26: =HLOOKUP($H$10,HAATable[],MATCH($A26,HAATable[Column1],0),FALSE) ->  | I26: =HLOOKUP($I$10,HAATable[],MATCH($A26,HAATable[Column1],0),FALSE) ->  | J26: =HLOOKUP($J$10,HAATable[],MATCH($A26,HAATable[Column1],0),FALSE) ->  | K26: =HLOOKUP($K$10,HAATable[],MATCH($A26,HAATable[Column1],0),FALSE) ->  | L26: =HLOOKUP($L$10,HAATable[],MATCH($A26,HAATable[Column1],0),FALSE) -> 
B27: =HLOOKUP($B$10,HAATable[],MATCH($A27,HAATable[Column1],0),FALSE) ->  | C27: =HLOOKUP($C$10,HAATable[],MATCH($A27,HAATable[Column1],0),FALSE) ->  | D27: =HLOOKUP($D$10,HAATable[],MATCH($A27,HAATable[Column1],0),FALSE) ->  | E27: =HLOOKUP($E$10,HAATable[],MATCH($A27,HAATable[Column1],0),FALSE) ->  | F27: =HLOOKUP($F$10,HAATable[],MATCH($A27,HAATable[Column1],0),FALSE) ->  | G27: =HLOOKUP($G$10,HAATable[],MATCH($A27,HAATable[Column1],0),FALSE) ->  | H27: =HLOOKUP($H$10,HAATable[],MATCH($A27,HAATable[Column1],0),FALSE) ->  | I27: =HLOOKUP($I$10,HAATable[],MATCH($A27,HAATable[Column1],0),FALSE) ->  | J27: =HLOOKUP($J$10,HAATable[],MATCH($A27,HAATable[Column1],0),FALSE) ->  | K27: =HLOOKUP($K$10,HAATable[],MATCH($A27,HAATable[Column1],0),FALSE) ->  | L27: =HLOOKUP($L$10,HAATable[],MATCH($A27,HAATable[Column1],0),FALSE) -> 
B28: =HLOOKUP($B$10,HAATable[],MATCH($A28,HAATable[Column1],0),FALSE) ->  | C28: =HLOOKUP($C$10,HAATable[],MATCH($A28,HAATable[Column1],0),FALSE) ->  | D28: =HLOOKUP($D$10,HAATable[],MATCH($A28,HAATable[Column1],0),FALSE) ->  | E28: =HLOOKUP($E$10,HAATable[],MATCH($A28,HAATable[Column1],0),FALSE) ->  | F28: =HLOOKUP($F$10,HAATable[],MATCH($A28,HAATable[Column1],0),FALSE) ->  | G28: =HLOOKUP($G$10,HAATable[],MATCH($A28,HAATable[Column1],0),FALSE) ->  | H28: =HLOOKUP($H$10,HAATable[],MATCH($A28,HAATable[Column1],0),FALSE) ->  | I28: =HLOOKUP($I$10,HAATable[],MATCH($A28,HAATable[Column1],0),FALSE) ->  | J28: =HLOOKUP($J$10,HAATable[],MATCH($A28,HAATable[Column1],0),FALSE) ->  | K28: =HLOOKUP($K$10,HAATable[],MATCH($A28,HAATable[Column1],0),FALSE) ->  | L28: =HLOOKUP($L$10,HAATable[],MATCH($A28,HAATable[Column1],0),FALSE) ->  | N28: Formulas for labeling max. LRAA sites on LT charts
B29: =HLOOKUP($B$10,HAATable[],MATCH($A29,HAATable[Column1],0),FALSE) ->  | C29: =HLOOKUP($C$10,HAATable[],MATCH($A29,HAATable[Column1],0),FALSE) ->  | D29: =HLOOKUP($D$10,HAATable[],MATCH($A29,HAATable[Column1],0),FALSE) ->  | E29: =HLOOKUP($E$10,HAATable[],MATCH($A29,HAATable[Column1],0),FALSE) ->  | F29: =HLOOKUP($F$10,HAATable[],MATCH($A29,HAATable[Column1],0),FALSE) ->  | G29: =HLOOKUP($G$10,HAATable[],MATCH($A29,HAATable[Column1],0),FALSE) ->  | H29: =HLOOKUP($H$10,HAATable[],MATCH($A29,HAATable[Column1],0),FALSE) ->  | I29: =HLOOKUP($I$10,HAATable[],MATCH($A29,HAATable[Column1],0),FALSE) ->  | J29: =HLOOKUP($J$10,HAATable[],MATCH($A29,HAATable[Column1],0),FALSE) ->  | K29: =HLOOKUP($K$10,HAATable[],MATCH($A29,HAATable[Column1],0),FALSE) ->  | L29: =HLOOKUP($L$10,HAATable[],MATCH($A29,HAATable[Column1],0),FALSE) -> 
B30: =HLOOKUP($B$10,HAATable[],MATCH($A30,HAATable[Column1],0),FALSE) ->  | C30: =HLOOKUP($C$10,HAATable[],MATCH($A30,HAATable[Column1],0),FALSE) ->  | D30: =HLOOKUP($D$10,HAATable[],MATCH($A30,HAATable[Column1],0),FALSE) ->  | E30: =HLOOKUP($E$10,HAATable[],MATCH($A30,HAATable[Column1],0),FALSE) ->  | F30: =HLOOKUP($F$10,HAATable[],MATCH($A30,HAATable[Column1],0),FALSE) ->  | G30: =HLOOKUP($G$10,HAATable[],MATCH($A30,HAATable[Column1],0),FALSE) ->  | H30: =HLOOKUP($H$10,HAATable[],MATCH($A30,HAATable[Column1],0),FALSE) ->  | I30: =HLOOKUP($I$10,HAATable[],MATCH($A30,HAATable[Column1],0),FALSE) ->  | J30: =HLOOKUP($J$10,HAATable[],MATCH($A30,HAATable[Column1],0),FALSE) ->  | K30: =HLOOKUP($K$10,HAATable[],MATCH($A30,HAATable[Column1],0),FALSE) ->  | L30: =HLOOKUP($L$10,HAATable[],MATCH($A30,HAATable[Column1],0),FALSE) -> 
B31: =HLOOKUP($B$10,HAATable[],MATCH($A31,HAATable[Column1],0),FALSE) ->  | C31: =HLOOKUP($C$10,HAATable[],MATCH($A31,HAATable[Column1],0),FALSE) ->  | D31: =HLOOKUP($D$10,HAATable[],MATCH($A31,HAATable[Column1],0),FALSE) ->  | E31: =HLOOKUP($E$10,HAATable[],MATCH($A31,HAATable[Column1],0),FALSE) ->  | F31: =HLOOKUP($F$10,HAATable[],MATCH($A31,HAATable[Column1],0),FALSE) ->  | G31: =HLOOKUP($G$10,HAATable[],MATCH($A31,HAATable[Column1],0),FALSE) ->  | H31: =HLOOKUP($H$10,HAATable[],MATCH($A31,HAATable[Column1],0),FALSE) ->  | I31: =HLOOKUP($I$10,HAATable[],MATCH($A31,HAATable[Column1],0),FALSE) ->  | J31: =HLOOKUP($J$10,HAATable[],MATCH($A31,HAATable[Column1],0),FALSE) ->  | K31: =HLOOKUP($K$10,HAATable[],MATCH($A31,HAATable[Column1],0),FALSE) ->  | L31: =HLOOKUP($L$10,HAATable[],MATCH($A31,HAATable[Column1],0),FALSE) -> 
A32: =IF(ISBLANK(A14),"",A14) -> 11405 LARRY LAKE ROAD | B32: =IF(ISBLANK(A14),"","LRAA") -> LRAA | E32: =IF(COUNT(B14:E14)<4,"NA",AVERAGE(B14:E14)) -> 0.0173025 | F32: 0.01833 | G32: 0.0187425 | H32: 0.0179675 | I32: 0.0134425 | J32: 0.0156175 | K32: 0.0189 | L32: 0.02035 | N32: =A32 -> 11405 LARRY LAKE ROAD | O32: =IF($E$57=A32,A32,IF($F$57=A32,A32,IF($G$57=A32,A32,IF($H$57=A32,A32,IF($I$57=A32,A32,IF($J$57=A32,A32,IF($K$57=A32,A32,IF($L$57=A32,A32,"")))))))) -> 11405 LARRY LAKE ROAD
A33: 13191 DEASON CAMP ROAD | B33: =IF(ISBLANK(A15),"","LRAA") -> LRAA | E33: 0.039225 | F33: 0.0409 | G33: 0.040875 | H33: NA | I33: NA | J33: NA | K33: NA | L33: NA | N33: 13191 DEASON CAMP ROAD
A34: 13920 GRAND POINTE ROAD | B34: =IF(ISBLANK(A16),"","LRAA") -> LRAA | E34: 0.032025 | F34: 0.034775 | G34: 0.034075 | H34: NA | I34: NA | J34: NA | K34: NA | L34: NA | N34: 13920 GRAND POINTE ROAD
A35: 3950 3RD STREET SOUTH | B35: LRAA | E35: 0.0333225 | F35: 0.042 | G35: 0.042175 | H35: NA | I35: NA | J35: NA | K35: NA | L35: NA | N35: 3950 3RD STREET SOUTH | O35: 3950 3RD STREET SOUTH
A36: 6802 MCFARLAND BLVD | B36: LRAA | E36: 0.040125 | F36: 0.04295 | G36: 0.042025 | H36: NA | I36: NA | J36: NA | K36: NA | L36: NA | N36: 6802 MCFARLAND BLVD | O36: 6802 MCFARLAND BLVD
A37: #1 BOOTH ESTATES | B37: LRAA | E37: =IF(COUNT(B19:E19)<4,"NA",AVERAGE(B19:E19)) -> NA | F37: NA | G37: NA | H37: NA | I37: NA | J37: NA | K37: 0.048325 | L37: =IF(COUNT(I19:L19)<4,"NA",AVERAGE(I19:L19)) -> 0.04845 | N37: #1 BOOTH ESTATES
A38: 17689 PINE LAKE RD | B38: LRAA | E38: =IF(COUNT(B20:E20)<4,"NA",AVERAGE(B20:E20)) -> NA | F38: NA | G38: NA | H38: NA | I38: NA | J38: NA | K38: 0.054275 | L38: 0.048675 | N38: 17689 PINE LAKE RD
A39: 2920 39TH ST | B39: LRAA | E39: =IF(COUNT(B21:E21)<4,"NA",AVERAGE(B21:E21)) -> NA | F39: NA | G39: NA | H39: NA | I39: NA | J39: NA | K39: 0.05925 | L39: 0.053 | N39: 2920 39TH ST | O39: 2920 39TH ST
A40: 6425 5TH ST | B40: LRAA | E40: =IF(COUNT(B22:E22)<4,"NA",AVERAGE(B22:E22)) -> NA | F40: NA | G40: NA | H40: NA | I40: NA | J40: NA | K40: 0.0502 | L40: 0.048475
E41: =IF(COUNT(B23:E23)<4,"NA",AVERAGE(B23:E23)) -> NA | F41: NA | G41: NA | H41: NA | I41: NA | J41: NA | K41: NA | L41: NA
E42: =IF(COUNT(B24:E24)<4,"NA",AVERAGE(B24:E24)) -> NA | F42: NA | G42: NA | H42: NA | I42: NA | J42: NA | K42: NA | L42: NA
E43: =IF(COUNT(B25:E25)<4,"NA",AVERAGE(B25:E25)) -> NA | F43: NA | G43: NA | H43: NA | I43: NA | J43: NA | K43: NA | L43: NA | O43: =IF($E$57=A43,A43,IF($F$57=A43,A43,IF($G$57=A43,A43,IF($H$57=A43,A43,IF($I$57=A43,A43,IF($J$57=A43,A43,IF($K$57=A43,A43,IF($L$57=A43,A43,"")))))))) -> 
E44: =IF(COUNT(B26:E26)<4,"NA",AVERAGE(B26:E26)) -> NA | F44: NA | G44: NA | H44: NA | I44: NA | J44: NA | K44: NA | L44: NA | O44: =IF($E$57=A44,A44,IF($F$57=A44,A44,IF($G$57=A44,A44,IF($H$57=A44,A44,IF($I$57=A44,A44,IF($J$57=A44,A44,IF($K$57=A44,A44,IF($L$57=A44,A44,"")))))))) -> 
E45: =IF(COUNT(B27:E27)<4,"NA",AVERAGE(B27:E27)) -> NA | F45: NA | G45: NA | H45: NA | I45: NA | J45: NA | K45: NA | L45: NA | O45: =IF($E$57=A45,A45,IF($F$57=A45,A45,IF($G$57=A45,A45,IF($H$57=A45,A45,IF($I$57=A45,A45,IF($J$57=A45,A45,IF($K$57=A45,A45,IF($L$57=A45,A45,"")))))))) -> 
E46: =IF(COUNT(B28:E28)<4,"NA",AVERAGE(B28:E28)) -> NA | F46: NA | G46: NA | H46: NA | I46: NA | J46: NA | K46: NA | L46: NA | O46: =IF($E$57=A46,A46,IF($F$57=A46,A46,IF($G$57=A46,A46,IF($H$57=A46,A46,IF($I$57=A46,A46,IF($J$57=A46,A46,IF($K$57=A46,A46,IF($L$57=A46,A46,"")))))))) -> 
E47: =IF(COUNT(B29:E29)<4,"NA",AVERAGE(B29:E29)) -> NA | F47: NA | G47: NA | H47: NA | I47: NA | J47: NA | K47: NA | L47: NA
A48: =IF(ISBLANK(A30),"",A30) ->  | E48: =IF(COUNT(B30:E30)<4,"NA",AVERAGE(B30:E30)) -> NA | F48: NA | G48: NA | H48: NA | I48: NA | J48: NA | K48: NA | L48: NA
B49: =IF(ISBLANK(A31),"","LRAA") ->  | E49: =IF(COUNT(B31:E31)<4,"NA",AVERAGE(B31:E31)) -> NA | F49: NA | G49: NA | H49: NA | I49: NA | J49: NA | K49: NA | L49: NA
A50: Max LRAA | E50: =IF(COUNT(E32:E49)=0,"NA",MAX(E32:E49)) -> 0.040125 | F50: =IF(COUNT(F32:F49)=0,"NA",MAX(F32:F49)) -> 0.04295 | G50: 0.042175 | H50: 0.0179675 | I50: 0.0134425 | J50: =IF(COUNT(J32:J49)=0,"NA",MAX(J32:J49)) -> 0.0156175 | K50: 0.05925 | L50: 0.053 | O50: =CONCATENATE(O32," ",O33," ",O34," ",O35," ",O36," ",O37," ",O38," ",O39," ",O43," ",O44," ",O45," ",O46) -> 11405 LARRY LAKE ROAD 3950 3RD STREET SOUTH 6802 MCFARLAND BLVD 2920 39TH ST
A51: Avg of Max LRAAs | L51: =IF(COUNT(E50:L50)<8,"NA",AVERAGE(E50:L50)) -> 0.0355659375
A53: Data for plotting
A54: Avg of Max LRAAs | E54: =$L$51 -> 0.0355659375 | F54: =$L$51 -> 0.0355659375 | G54: 0.0355659375 | H54: 0.0355659375 | I54: 0.0355659375 | J54: 0.0355659375 | K54: 0.0355659375 | L54: =L51 -> 0.0355659375
A55: Individual Site Goal | E55: =+$B$3 -> 0.05 | F55: 0.05 | G55: 0.05 | H55: 0.05 | I55: 0.05 | J55: 0.05 | K55: 0.05 | L55: 0.05
A56: Long-Term System Goal | E56: =+$B$4 -> 0.04 | F56: 0.04 | G56: 0.04 | H56: 0.04 | I56: 0.04 | J56: 0.04 | K56: 0.04 | L56: 0.04
E57: =IF(SUM(E32:E46)=0,"",(VLOOKUP(MAX(E32:E46),$E$32:$N$46,10,FALSE))) -> 6802 MCFARLAND BLVD | F57: =IF(SUM(F32:F46)=0,"",(VLOOKUP(MAX(F32:F46),$F$32:$N$46,9,FALSE))) -> 6802 MCFARLAND BLVD | G57: =IF(SUM(G32:G46)=0,"",(VLOOKUP(MAX(G32:G46),$G$32:$N$46,8,FALSE))) -> 3950 3RD STREET SOUTH | H57: =IF(SUM(H32:H46)=0,"",(VLOOKUP(MAX(H32:H46),$H$32:$N$46,7,FALSE))) -> 11405 LARRY LAKE ROAD | I57: =IF(SUM(I32:I46)=0,"",(VLOOKUP(MAX(I32:I46),$I$32:$N$46,6,FALSE))) -> 11405 LARRY LAKE ROAD | J57: =IF(SUM(J32:J46)=0,"",(VLOOKUP(MAX(J32:J46),$J$32:$N$46,5,FALSE))) -> 11405 LARRY LAKE ROAD | K57: =IF(SUM(K32:K46)=0,"",(VLOOKUP(MAX(K32:K46),$K$32:$N$46,4,FALSE))) -> 2920 39TH ST | L57: =IF(SUM(L32:L46)=0,"",(VLOOKUP(MAX(L32:L46),$L$32:$N$46,3,FALSE))) -> 2920 39TH ST
I63: Sites Contributing to Maximum LRAA:
I64: =O50 -> 11405 LARRY LAKE ROAD 3950 3RD STREET SOUTH 6802 MCFARLAND BLVD 2920 39TH ST

Sheet OEL Calc
B1: ='Data Entry'!K1:K2 -> Water System Name
B3: TTHM OEL Table
B4: Operational Evaluation Level (OEL) | C4: 0.0804 | D4: Colored cell indicates OEL was exceeded
C5: ='TTHM Goals'!B13 -> Q4 2016 | D5: ='TTHM Goals'!C13 -> Q1 2017 | E5: ='TTHM Goals'!D13 -> Q2 2017 | F5: ='TTHM Goals'!E13 -> Q3 2017 | G5: ='TTHM Goals'!F13 -> Q4 2017 | H5: ='TTHM Goals'!G13 -> Q1 2018 | I5: ='TTHM Goals'!H13 -> Q2 2018 | J5: ='TTHM Goals'!I13 -> Q3 2018 | K5: ='TTHM Goals'!J13 -> Q4 2018 | L5: ='TTHM Goals'!K13 -> Q1 2019 | M5: ='TTHM Goals'!L13 -> Q2 2019
B6: =IF(ISBLANK('TTHM Goals'!A14),"",'TTHM Goals'!A14) -> 11405 LARRY LAKE ROAD | E6: =IF(ISERROR(('TTHM Goals'!D14*2+SUM('TTHM Goals'!B14:C14))/4),"",(('TTHM Goals'!D14*2+SUM('TTHM Goals'!B14:C14))/4)) -> 0.0125575 | F6: =IF(ISERROR(('TTHM Goals'!E14*2+SUM('TTHM Goals'!C14:D14))/4),"",(('TTHM Goals'!E14*2+SUM('TTHM Goals'!C14:D14))/4)) -> 0.01928 | G6: =IF(ISERROR(('TTHM Goals'!F14*2+SUM('TTHM Goals'!D14:E14))/4),"",(('TTHM Goals'!F14*2+SUM('TTHM Goals'!D14:E14))/4)) -> 0.019075 | H6: =IF(ISERROR(('TTHM Goals'!G14*2+SUM('TTHM Goals'!E14:F14))/4),"",(('TTHM Goals'!G14*2+SUM('TTHM Goals'!E14:F14))/4)) -> 0.014995 | I6: =IF(ISERROR(('TTHM Goals'!H14*2+SUM('TTHM Goals'!F14:G14))/4),"",(('TTHM Goals'!H14*2+SUM('TTHM Goals'!F14:G14))/4)) -> 0.0131725 | J6: =IF(ISERROR(('TTHM Goals'!I14*2+SUM('TTHM Goals'!G14:H14))/4),"",(('TTHM Goals'!I14*2+SUM('TTHM Goals'!G14:H14))/4)) -> 0.0115725 | K6: =IF(ISERROR(('TTHM Goals'!J14*2+SUM('TTHM Goals'!H14:I14))/4),"",(('TTHM Goals'!J14*2+SUM('TTHM Goals'!H14:I14))/4)) -> 0.01915 | L6: =IF(ISERROR(('TTHM Goals'!K14*2+SUM('TTHM Goals'!I14:J14))/4),"",(('TTHM Goals'!K14*2+SUM('TTHM Goals'!I14:J14))/4)) -> 0.01665 | M6: =IF(ISERROR(('TTHM Goals'!L14*2+SUM('TTHM Goals'!J14:K14))/4),"",(('TTHM Goals'!L14*2+SUM('TTHM Goals'!J14:K14))/4)) -> 0.018675
B7: =IF(ISBLANK('TTHM Goals'!A15),"",'TTHM Goals'!A15) -> 13191 DEASON CAMP ROAD | E7: =IF(ISERROR(('TTHM Goals'!D15*2+SUM('TTHM Goals'!B15:C15))/4),"",(('TTHM Goals'!D15*2+SUM('TTHM Goals'!B15:C15))/4)) -> 0.039725 | F7: =IF(ISERROR(('TTHM Goals'!E15*2+SUM('TTHM Goals'!C15:D15))/4),"",(('TTHM Goals'!E15*2+SUM('TTHM Goals'!C15:D15))/4)) -> 0.057075 | G7: =IF(ISERROR(('TTHM Goals'!F15*2+SUM('TTHM Goals'!D15:E15))/4),"",(('TTHM Goals'!F15*2+SUM('TTHM Goals'!D15:E15))/4)) -> 0.0668 | H7: =IF(ISERROR(('TTHM Goals'!G15*2+SUM('TTHM Goals'!E15:F15))/4),"",(('TTHM Goals'!G15*2+SUM('TTHM Goals'!E15:F15))/4)) -> 0.050775 | I7: =IF(ISERROR(('TTHM Goals'!H15*2+SUM('TTHM Goals'!F15:G15))/4),"",(('TTHM Goals'!H15*2+SUM('TTHM Goals'!F15:G15))/4)) ->  | J7: =IF(ISERROR(('TTHM Goals'!I15*2+SUM('TTHM Goals'!G15:H15))/4),"",(('TTHM Goals'!I15*2+SUM('TTHM Goals'!G15:H15))/4)) ->  | K7: =IF(ISERROR(('TTHM Goals'!J15*2+SUM('TTHM Goals'!H15:I15))/4),"",(('TTHM Goals'!J15*2+SUM('TTHM Goals'!H15:I15))/4)) ->  | L7: =IF(ISERROR(('TTHM Goals'!K15*2+SUM('TTHM Goals'!I15:J15))/4),"",(('TTHM Goals'!K15*2+SUM('TTHM Goals'!I15:J15))/4)) ->  | M7: =IF(ISERROR(('TTHM Goals'!L15*2+SUM('TTHM Goals'!J15:K15))/4),"",(('TTHM Goals'!L15*2+SUM('TTHM Goals'!J15:K15))/4)) -> 
B8: =IF(ISBLANK('TTHM Goals'!A16),"",'TTHM Goals'!A16) -> 13920 GRAND POINTE ROAD | E8: =IF(ISERROR(('TTHM Goals'!D16*2+SUM('TTHM Goals'!B16:C16))/4),"",(('TTHM Goals'!D16*2+SUM('TTHM Goals'!B16:C16))/4)) -> 0.03135 | F8: =IF(ISERROR(('TTHM Goals'!E16*2+SUM('TTHM Goals'!C16:D16))/4),"",(('TTHM Goals'!E16*2+SUM('TTHM Goals'!C16:D16))/4)) -> 0.04 | G8: =IF(ISERROR(('TTHM Goals'!F16*2+SUM('TTHM Goals'!D16:E16))/4),"",(('TTHM Goals'!F16*2+SUM('TTHM Goals'!D16:E16))/4)) -> 0.047775 | H8: =IF(ISERROR(('TTHM Goals'!G16*2+SUM('TTHM Goals'!E16:F16))/4),"",(('TTHM Goals'!G16*2+SUM('TTHM Goals'!E16:F16))/4)) -> 0.034175 | I8: =IF(ISERROR(('TTHM Goals'!H16*2+SUM('TTHM Goals'!F16:G16))/4),"",(('TTHM Goals'!H16*2+SUM('TTHM Goals'!F16:G16))/4)) ->  | J8: =IF(ISERROR(('TTHM Goals'!I16*2+SUM('TTHM Goals'!G16:H16))/4),"",(('TTHM Goals'!I16*2+SUM('TTHM Goals'!G16:H16))/4)) ->  | K8: =IF(ISERROR(('TTHM Goals'!J16*2+SUM('TTHM Goals'!H16:I16))/4),"",(('TTHM Goals'!J16*2+SUM('TTHM Goals'!H16:I16))/4)) ->  | L8: =IF(ISERROR(('TTHM Goals'!K16*2+SUM('TTHM Goals'!I16:J16))/4),"",(('TTHM Goals'!K16*2+SUM('TTHM Goals'!I16:J16))/4)) ->  | M8: =IF(ISERROR(('TTHM Goals'!L16*2+SUM('TTHM Goals'!J16:K16))/4),"",(('TTHM Goals'!L16*2+SUM('TTHM Goals'!J16:K16))/4)) -> 
B9: =IF(ISBLANK('TTHM Goals'!A17),"",'TTHM Goals'!A17) -> 3950 3RD STREET SOUTH | E9: =IF(ISERROR(('TTHM Goals'!D17*2+SUM('TTHM Goals'!B17:C17))/4),"",(('TTHM Goals'!D17*2+SUM('TTHM Goals'!B17:C17))/4)) -> 0.0331025 | F9: =IF(ISERROR(('TTHM Goals'!E17*2+SUM('TTHM Goals'!C17:D17))/4),"",(('TTHM Goals'!E17*2+SUM('TTHM Goals'!C17:D17))/4)) -> 0.05995 | G9: =IF(ISERROR(('TTHM Goals'!F17*2+SUM('TTHM Goals'!D17:E17))/4),"",(('TTHM Goals'!F17*2+SUM('TTHM Goals'!D17:E17))/4)) -> 0.0652 | H9: =IF(ISERROR(('TTHM Goals'!G17*2+SUM('TTHM Goals'!E17:F17))/4),"",(('TTHM Goals'!G17*2+SUM('TTHM Goals'!E17:F17))/4)) -> 0.05105 | I9: =IF(ISERROR(('TTHM Goals'!H17*2+SUM('TTHM Goals'!F17:G17))/4),"",(('TTHM Goals'!H17*2+SUM('TTHM Goals'!F17:G17))/4)) ->  | J9: =IF(ISERROR(('TTHM Goals'!I17*2+SUM('TTHM Goals'!G17:H17))/4),"",(('TTHM Goals'!I17*2+SUM('TTHM Goals'!G17:H17))/4)) ->  | K9: =IF(ISERROR(('TTHM Goals'!J17*2+SUM('TTHM Goals'!H17:I17))/4),"",(('TTHM Goals'!J17*2+SUM('TTHM Goals'!H17:I17))/4)) ->  | L9: =IF(ISERROR(('TTHM Goals'!K17*2+SUM('TTHM Goals'!I17:J17))/4),"",(('TTHM Goals'!K17*2+SUM('TTHM Goals'!I17:J17))/4)) ->  | M9: =IF(ISERROR(('TTHM Goals'!L17*2+SUM('TTHM Goals'!J17:K17))/4),"",(('TTHM Goals'!L17*2+SUM('TTHM Goals'!J17:K17))/4)) -> 
B10: =IF(ISBLANK('TTHM Goals'!A18),"",'TTHM Goals'!A18) -> 6802 MCFARLAND BLVD | E10: =IF(ISERROR(('TTHM Goals'!D18*2+SUM('TTHM Goals'!B18:C18))/4),"",(('TTHM Goals'!D18*2+SUM('TTHM Goals'!B18:C18))/4)) -> 0.03585 | F10: =IF(ISERROR(('TTHM Goals'!E18*2+SUM('TTHM Goals'!C18:D18))/4),"",(('TTHM Goals'!E18*2+SUM('TTHM Goals'!C18:D18))/4)) -> 0.0533 | G10: =IF(ISERROR(('TTHM Goals'!F18*2+SUM('TTHM Goals'!D18:E18))/4),"",(('TTHM Goals'!F18*2+SUM('TTHM Goals'!D18:E18))/4)) -> 0.0557 | H10: =IF(ISERROR(('TTHM Goals'!G18*2+SUM('TTHM Goals'!E18:F18))/4),"",(('TTHM Goals'!G18*2+SUM('TTHM Goals'!E18:F18))/4)) -> 0.0448 | I10: =IF(ISERROR(('TTHM Goals'!H18*2+SUM('TTHM Goals'!F18:G18))/4),"",(('TTHM Goals'!H18*2+SUM('TTHM Goals'!F18:G18))/4)) ->  | J10: =IF(ISERROR(('TTHM Goals'!I18*2+SUM('TTHM Goals'!G18:H18))/4),"",(('TTHM Goals'!I18*2+SUM('TTHM Goals'!G18:H18))/4)) ->  | K10: =IF(ISERROR(('TTHM Goals'!J18*2+SUM('TTHM Goals'!H18:I18))/4),"",(('TTHM Goals'!J18*2+SUM('TTHM Goals'!H18:I18))/4)) ->  | L10: =IF(ISERROR(('TTHM Goals'!K18*2+SUM('TTHM Goals'!I18:J18))/4),"",(('TTHM Goals'!K18*2+SUM('TTHM Goals'!I18:J18))/4)) ->  | M10: =IF(ISERROR(('TTHM Goals'!L18*2+SUM('TTHM Goals'!J18:K18))/4),"",(('TTHM Goals'!L18*2+SUM('TTHM Goals'!J18:K18))/4)) -> 
B11: =IF(ISBLANK('TTHM Goals'!A19),"",'TTHM Goals'!A19) -> #1 BOOTH ESTATES | E11: =IF(ISERROR(('TTHM Goals'!D19*2+SUM('TTHM Goals'!B19:C19))/4),"",(('TTHM Goals'!D19*2+SUM('TTHM Goals'!B19:C19))/4)) ->  | F11: =IF(ISERROR(('TTHM Goals'!E19*2+SUM('TTHM Goals'!C19:D19))/4),"",(('TTHM Goals'!E19*2+SUM('TTHM Goals'!C19:D19))/4)) ->  | G11: =IF(ISERROR(('TTHM Goals'!F19*2+SUM('TTHM Goals'!D19:E19))/4),"",(('TTHM Goals'!F19*2+SUM('TTHM Goals'!D19:E19))/4)) ->  | H11: =IF(ISERROR(('TTHM Goals'!G19*2+SUM('TTHM Goals'!E19:F19))/4),"",(('TTHM Goals'!G19*2+SUM('TTHM Goals'!E19:F19))/4)) ->  | I11: =IF(ISERROR(('TTHM Goals'!H19*2+SUM('TTHM Goals'!F19:G19))/4),"",(('TTHM Goals'!H19*2+SUM('TTHM Goals'!F19:G19))/4)) -> 0.0213 | J11: =IF(ISERROR(('TTHM Goals'!I19*2+SUM('TTHM Goals'!G19:H19))/4),"",(('TTHM Goals'!I19*2+SUM('TTHM Goals'!G19:H19))/4)) -> 0.0522 | K11: =IF(ISERROR(('TTHM Goals'!J19*2+SUM('TTHM Goals'!H19:I19))/4),"",(('TTHM Goals'!J19*2+SUM('TTHM Goals'!H19:I19))/4)) -> 0.061925 | L11: =IF(ISERROR(('TTHM Goals'!K19*2+SUM('TTHM Goals'!I19:J19))/4),"",(('TTHM Goals'!K19*2+SUM('TTHM Goals'!I19:J19))/4)) -> 0.055675 | M11: =IF(ISERROR(('TTHM Goals'!L19*2+SUM('TTHM Goals'!J19:K19))/4),"",(('TTHM Goals'!L19*2+SUM('TTHM Goals'!J19:K19))/4)) -> 0.039975
B12: =IF(ISBLANK('TTHM Goals'!A20),"",'TTHM Goals'!A20) -> 17689 PINE LAKE RD | E12: =IF(ISERROR(('TTHM Goals'!D20*2+SUM('TTHM Goals'!B20:C20))/4),"",(('TTHM Goals'!D20*2+SUM('TTHM Goals'!B20:C20))/4)) ->  | F12: =IF(ISERROR(('TTHM Goals'!E20*2+SUM('TTHM Goals'!C20:D20))/4),"",(('TTHM Goals'!E20*2+SUM('TTHM Goals'!C20:D20))/4)) ->  | G12: =IF(ISERROR(('TTHM Goals'!F20*2+SUM('TTHM Goals'!D20:E20))/4),"",(('TTHM Goals'!F20*2+SUM('TTHM Goals'!D20:E20))/4)) ->  | H12: =IF(ISERROR(('TTHM Goals'!G20*2+SUM('TTHM Goals'!E20:F20))/4),"",(('TTHM Goals'!G20*2+SUM('TTHM Goals'!E20:F20))/4)) ->  | I12: =IF(ISERROR(('TTHM Goals'!H20*2+SUM('TTHM Goals'!F20:G20))/4),"",(('TTHM Goals'!H20*2+SUM('TTHM Goals'!F20:G20))/4)) -> 0.0266 | J12: =IF(ISERROR(('TTHM Goals'!I20*2+SUM('TTHM Goals'!G20:H20))/4),"",(('TTHM Goals'!I20*2+SUM('TTHM Goals'!G20:H20))/4)) -> 0.0529 | K12: =IF(ISERROR(('TTHM Goals'!J20*2+SUM('TTHM Goals'!H20:I20))/4),"",(('TTHM Goals'!J20*2+SUM('TTHM Goals'!H20:I20))/4)) -> 0.0645 | L12: =IF(ISERROR(('TTHM Goals'!K20*2+SUM('TTHM Goals'!I20:J20))/4),"",(('TTHM Goals'!K20*2+SUM('TTHM Goals'!I20:J20))/4)) -> 0.0531 | M12: =IF(ISERROR(('TTHM Goals'!L20*2+SUM('TTHM Goals'!J20:K20))/4),"",(('TTHM Goals'!L20*2+SUM('TTHM Goals'!J20:K20))/4)) -> 0.0403
B13: =IF(ISBLANK('TTHM Goals'!A21),"",'TTHM Goals'!A21) -> 2920 39TH ST | E13: =IF(ISERROR(('TTHM Goals'!D21*2+SUM('TTHM Goals'!B21:C21))/4),"",(('TTHM Goals'!D21*2+SUM('TTHM Goals'!B21:C21))/4)) ->  | F13: =IF(ISERROR(('TTHM Goals'!E21*2+SUM('TTHM Goals'!C21:D21))/4),"",(('TTHM Goals'!E21*2+SUM('TTHM Goals'!C21:D21))/4)) ->  | G13: =IF(ISERROR(('TTHM Goals'!F21*2+SUM('TTHM Goals'!D21:E21))/4),"",(('TTHM Goals'!F21*2+SUM('TTHM Goals'!D21:E21))/4)) ->  | H13: =IF(ISERROR(('TTHM Goals'!G21*2+SUM('TTHM Goals'!E21:F21))/4),"",(('TTHM Goals'!G21*2+SUM('TTHM Goals'!E21:F21))/4)) ->  | I13: =IF(ISERROR(('TTHM Goals'!H21*2+SUM('TTHM Goals'!F21:G21))/4),"",(('TTHM Goals'!H21*2+SUM('TTHM Goals'!F21:G21))/4)) -> 0.03015 | J13: =IF(ISERROR(('TTHM Goals'!I21*2+SUM('TTHM Goals'!G21:H21))/4),"",(('TTHM Goals'!I21*2+SUM('TTHM Goals'!G21:H21))/4)) -> 0.030025 | K13: =IF(ISERROR(('TTHM Goals'!J21*2+SUM('TTHM Goals'!H21:I21))/4),"",(('TTHM Goals'!J21*2+SUM('TTHM Goals'!H21:I21))/4)) -> 0.07565 | L13: =IF(ISERROR(('TTHM Goals'!K21*2+SUM('TTHM Goals'!I21:J21))/4),"",(('TTHM Goals'!K21*2+SUM('TTHM Goals'!I21:J21))/4)) -> 0.049825 | M13: =IF(ISERROR(('TTHM Goals'!L21*2+SUM('TTHM Goals'!J21:K21))/4),"",(('TTHM Goals'!L21*2+SUM('TTHM Goals'!J21:K21))/4)) -> 0.04925
B14: =IF(ISBLANK('TTHM Goals'!A22),"",'TTHM Goals'!A22) -> 6425 5TH ST | E14: =IF(ISERROR(('TTHM Goals'!D22*2+SUM('TTHM Goals'!B22:C22))/4),"",(('TTHM Goals'!D22*2+SUM('TTHM Goals'!B22:C22))/4)) ->  | F14: =IF(ISERROR(('TTHM Goals'!E22*2+SUM('TTHM Goals'!C22:D22))/4),"",(('TTHM Goals'!E22*2+SUM('TTHM Goals'!C22:D22))/4)) ->  | G14: =IF(ISERROR(('TTHM Goals'!F22*2+SUM('TTHM Goals'!D22:E22))/4),"",(('TTHM Goals'!F22*2+SUM('TTHM Goals'!D22:E22))/4)) ->  | H14: =IF(ISERROR(('TTHM Goals'!G22*2+SUM('TTHM Goals'!E22:F22))/4),"",(('TTHM Goals'!G22*2+SUM('TTHM Goals'!E22:F22))/4)) ->  | I14: =IF(ISERROR(('TTHM Goals'!H22*2+SUM('TTHM Goals'!F22:G22))/4),"",(('TTHM Goals'!H22*2+SUM('TTHM Goals'!F22:G22))/4)) -> 0.02465 | J14: =IF(ISERROR(('TTHM Goals'!I22*2+SUM('TTHM Goals'!G22:H22))/4),"",(('TTHM Goals'!I22*2+SUM('TTHM Goals'!G22:H22))/4)) -> 0.061025 | K14: =IF(ISERROR(('TTHM Goals'!J22*2+SUM('TTHM Goals'!H22:I22))/4),"",(('TTHM Goals'!J22*2+SUM('TTHM Goals'!H22:I22))/4)) -> 0.071625 | L14: =IF(ISERROR(('TTHM Goals'!K22*2+SUM('TTHM Goals'!I22:J22))/4),"",(('TTHM Goals'!K22*2+SUM('TTHM Goals'!I22:J22))/4)) -> 0.059375 | M14: =IF(ISERROR(('TTHM Goals'!L22*2+SUM('TTHM Goals'!J22:K22))/4),"",(('TTHM Goals'!L22*2+SUM('TTHM Goals'!J22:K22))/4)) -> 0.04215
B15: =IF(ISBLANK('TTHM Goals'!A23),"",'TTHM Goals'!A23) ->  | E15: =IF(ISERROR(('TTHM Goals'!D23*2+SUM('TTHM Goals'!B23:C23))/4),"",(('TTHM Goals'!D23*2+SUM('TTHM Goals'!B23:C23))/4)) ->  | F15: =IF(ISERROR(('TTHM Goals'!E23*2+SUM('TTHM Goals'!C23:D23))/4),"",(('TTHM Goals'!E23*2+SUM('TTHM Goals'!C23:D23))/4)) ->  | G15: =IF(ISERROR(('TTHM Goals'!F23*2+SUM('TTHM Goals'!D23:E23))/4),"",(('TTHM Goals'!F23*2+SUM('TTHM Goals'!D23:E23))/4)) ->  | H15: =IF(ISERROR(('TTHM Goals'!G23*2+SUM('TTHM Goals'!E23:F23))/4),"",(('TTHM Goals'!G23*2+SUM('TTHM Goals'!E23:F23))/4)) ->  | I15: =IF(ISERROR(('TTHM Goals'!H23*2+SUM('TTHM Goals'!F23:G23))/4),"",(('TTHM Goals'!H23*2+SUM('TTHM Goals'!F23:G23))/4)) ->  | J15: =IF(ISERROR(('TTHM Goals'!I23*2+SUM('TTHM Goals'!G23:H23))/4),"",(('TTHM Goals'!I23*2+SUM('TTHM Goals'!G23:H23))/4)) ->  | K15: =IF(ISERROR(('TTHM Goals'!J23*2+SUM('TTHM Goals'!H23:I23))/4),"",(('TTHM Goals'!J23*2+SUM('TTHM Goals'!H23:I23))/4)) ->  | L15: =IF(ISERROR(('TTHM Goals'!K23*2+SUM('TTHM Goals'!I23:J23))/4),"",(('TTHM Goals'!K23*2+SUM('TTHM Goals'!I23:J23))/4)) ->  | M15: =IF(ISERROR(('TTHM Goals'!L23*2+SUM('TTHM Goals'!J23:K23))/4),"",(('TTHM Goals'!L23*2+SUM('TTHM Goals'!J23:K23))/4)) -> 
B16: =IF(ISBLANK('TTHM Goals'!A24),"",'TTHM Goals'!A24) ->  | E16: =IF(ISERROR(('TTHM Goals'!D24*2+SUM('TTHM Goals'!B24:C24))/4),"",(('TTHM Goals'!D24*2+SUM('TTHM Goals'!B24:C24))/4)) ->  | F16: =IF(ISERROR(('TTHM Goals'!E24*2+SUM('TTHM Goals'!C24:D24))/4),"",(('TTHM Goals'!E24*2+SUM('TTHM Goals'!C24:D24))/4)) ->  | G16: =IF(ISERROR(('TTHM Goals'!F24*2+SUM('TTHM Goals'!D24:E24))/4),"",(('TTHM Goals'!F24*2+SUM('TTHM Goals'!D24:E24))/4)) ->  | H16: =IF(ISERROR(('TTHM Goals'!G24*2+SUM('TTHM Goals'!E24:F24))/4),"",(('TTHM Goals'!G24*2+SUM('TTHM Goals'!E24:F24))/4)) ->  | I16: =IF(ISERROR(('TTHM Goals'!H24*2+SUM('TTHM Goals'!F24:G24))/4),"",(('TTHM Goals'!H24*2+SUM('TTHM Goals'!F24:G24))/4)) ->  | J16: =IF(ISERROR(('TTHM Goals'!I24*2+SUM('TTHM Goals'!G24:H24))/4),"",(('TTHM Goals'!I24*2+SUM('TTHM Goals'!G24:H24))/4)) ->  | K16: =IF(ISERROR(('TTHM Goals'!J24*2+SUM('TTHM Goals'!H24:I24))/4),"",(('TTHM Goals'!J24*2+SUM('TTHM Goals'!H24:I24))/4)) ->  | L16: =IF(ISERROR(('TTHM Goals'!K24*2+SUM('TTHM Goals'!I24:J24))/4),"",(('TTHM Goals'!K24*2+SUM('TTHM Goals'!I24:J24))/4)) ->  | M16: =IF(ISERROR(('TTHM Goals'!L24*2+SUM('TTHM Goals'!J24:K24))/4),"",(('TTHM Goals'!L24*2+SUM('TTHM Goals'!J24:K24))/4)) -> 
B17: =IF(ISBLANK('TTHM Goals'!A25),"",'TTHM Goals'!A25) ->  | E17: =IF(ISERROR(('TTHM Goals'!D25*2+SUM('TTHM Goals'!B25:C25))/4),"",(('TTHM Goals'!D25*2+SUM('TTHM Goals'!B25:C25))/4)) ->  | F17: =IF(ISERROR(('TTHM Goals'!E25*2+SUM('TTHM Goals'!C25:D25))/4),"",(('TTHM Goals'!E25*2+SUM('TTHM Goals'!C25:D25))/4)) ->  | G17: =IF(ISERROR(('TTHM Goals'!F25*2+SUM('TTHM Goals'!D25:E25))/4),"",(('TTHM Goals'!F25*2+SUM('TTHM Goals'!D25:E25))/4)) ->  | H17: =IF(ISERROR(('TTHM Goals'!G25*2+SUM('TTHM Goals'!E25:F25))/4),"",(('TTHM Goals'!G25*2+SUM('TTHM Goals'!E25:F25))/4)) ->  | I17: =IF(ISERROR(('TTHM Goals'!H25*2+SUM('TTHM Goals'!F25:G25))/4),"",(('TTHM Goals'!H25*2+SUM('TTHM Goals'!F25:G25))/4)) ->  | J17: =IF(ISERROR(('TTHM Goals'!I25*2+SUM('TTHM Goals'!G25:H25))/4),"",(('TTHM Goals'!I25*2+SUM('TTHM Goals'!G25:H25))/4)) ->  | K17: =IF(ISERROR(('TTHM Goals'!J25*2+SUM('TTHM Goals'!H25:I25))/4),"",(('TTHM Goals'!J25*2+SUM('TTHM Goals'!H25:I25))/4)) ->  | L17: =IF(ISERROR(('TTHM Goals'!K25*2+SUM('TTHM Goals'!I25:J25))/4),"",(('TTHM Goals'!K25*2+SUM('TTHM Goals'!I25:J25))/4)) ->  | M17: =IF(ISERROR(('TTHM Goals'!L25*2+SUM('TTHM Goals'!J25:K25))/4),"",(('TTHM Goals'!L25*2+SUM('TTHM Goals'!J25:K25))/4)) -> 
B18: =IF(ISBLANK('TTHM Goals'!A26),"",'TTHM Goals'!A26) ->  | E18: =IF(ISERROR(('TTHM Goals'!D26*2+SUM('TTHM Goals'!B26:C26))/4),"",(('TTHM Goals'!D26*2+SUM('TTHM Goals'!B26:C26))/4)) ->  | F18: =IF(ISERROR(('TTHM Goals'!E26*2+SUM('TTHM Goals'!C26:D26))/4),"",(('TTHM Goals'!E26*2+SUM('TTHM Goals'!C26:D26))/4)) ->  | G18: =IF(ISERROR(('TTHM Goals'!F26*2+SUM('TTHM Goals'!D26:E26))/4),"",(('TTHM Goals'!F26*2+SUM('TTHM Goals'!D26:E26))/4)) ->  | H18: =IF(ISERROR(('TTHM Goals'!G26*2+SUM('TTHM Goals'!E26:F26))/4),"",(('TTHM Goals'!G26*2+SUM('TTHM Goals'!E26:F26))/4)) ->  | I18: =IF(ISERROR(('TTHM Goals'!H26*2+SUM('TTHM Goals'!F26:G26))/4),"",(('TTHM Goals'!H26*2+SUM('TTHM Goals'!F26:G26))/4)) ->  | J18: =IF(ISERROR(('TTHM Goals'!I26*2+SUM('TTHM Goals'!G26:H26))/4),"",(('TTHM Goals'!I26*2+SUM('TTHM Goals'!G26:H26))/4)) ->  | K18: =IF(ISERROR(('TTHM Goals'!J26*2+SUM('TTHM Goals'!H26:I26))/4),"",(('TTHM Goals'!J26*2+SUM('TTHM Goals'!H26:I26))/4)) ->  | L18: =IF(ISERROR(('TTHM Goals'!K26*2+SUM('TTHM Goals'!I26:J26))/4),"",(('TTHM Goals'!K26*2+SUM('TTHM Goals'!I26:J26))/4)) ->  | M18: =IF(ISERROR(('TTHM Goals'!L26*2+SUM('TTHM Goals'!J26:K26))/4),"",(('TTHM Goals'!L26*2+SUM('TTHM Goals'!J26:K26))/4)) -> 
B19: =IF(ISBLANK('TTHM Goals'!A27),"",'TTHM Goals'!A27) ->  | E19: =IF(ISERROR(('TTHM Goals'!D27*2+SUM('TTHM Goals'!B27:C27))/4),"",(('TTHM Goals'!D27*2+SUM('TTHM Goals'!B27:C27))/4)) ->  | F19: =IF(ISERROR(('TTHM Goals'!E27*2+SUM('TTHM Goals'!C27:D27))/4),"",(('TTHM Goals'!E27*2+SUM('TTHM Goals'!C27:D27))/4)) ->  | G19: =IF(ISERROR(('TTHM Goals'!F27*2+SUM('TTHM Goals'!D27:E27))/4),"",(('TTHM Goals'!F27*2+SUM('TTHM Goals'!D27:E27))/4)) ->  | H19: =IF(ISERROR(('TTHM Goals'!G27*2+SUM('TTHM Goals'!E27:F27))/4),"",(('TTHM Goals'!G27*2+SUM('TTHM Goals'!E27:F27))/4)) ->  | I19: =IF(ISERROR(('TTHM Goals'!H27*2+SUM('TTHM Goals'!F27:G27))/4),"",(('TTHM Goals'!H27*2+SUM('TTHM Goals'!F27:G27))/4)) ->  | J19: =IF(ISERROR(('TTHM Goals'!I27*2+SUM('TTHM Goals'!G27:H27))/4),"",(('TTHM Goals'!I27*2+SUM('TTHM Goals'!G27:H27))/4)) ->  | K19: =IF(ISERROR(('TTHM Goals'!J27*2+SUM('TTHM Goals'!H27:I27))/4),"",(('TTHM Goals'!J27*2+SUM('TTHM Goals'!H27:I27))/4)) ->  | L19: =IF(ISERROR(('TTHM Goals'!K27*2+SUM('TTHM Goals'!I27:J27))/4),"",(('TTHM Goals'!K27*2+SUM('TTHM Goals'!I27:J27))/4)) ->  | M19: =IF(ISERROR(('TTHM Goals'!L27*2+SUM('TTHM Goals'!J27:K27))/4),"",(('TTHM Goals'!L27*2+SUM('TTHM Goals'!J27:K27))/4)) -> 
B20: =IF(ISBLANK('TTHM Goals'!A28),"",'TTHM Goals'!A28) ->  | E20: =IF(ISERROR(('TTHM Goals'!D28*2+SUM('TTHM Goals'!B28:C28))/4),"",(('TTHM Goals'!D28*2+SUM('TTHM Goals'!B28:C28))/4)) ->  | F20: =IF(ISERROR(('TTHM Goals'!E28*2+SUM('TTHM Goals'!C28:D28))/4),"",(('TTHM Goals'!E28*2+SUM('TTHM Goals'!C28:D28))/4)) ->  | G20: =IF(ISERROR(('TTHM Goals'!F28*2+SUM('TTHM Goals'!D28:E28))/4),"",(('TTHM Goals'!F28*2+SUM('TTHM Goals'!D28:E28))/4)) ->  | H20: =IF(ISERROR(('TTHM Goals'!G28*2+SUM('TTHM Goals'!E28:F28))/4),"",(('TTHM Goals'!G28*2+SUM('TTHM Goals'!E28:F28))/4)) ->  | I20: =IF(ISERROR(('TTHM Goals'!H28*2+SUM('TTHM Goals'!F28:G28))/4),"",(('TTHM Goals'!H28*2+SUM('TTHM Goals'!F28:G28))/4)) ->  | J20: =IF(ISERROR(('TTHM Goals'!I28*2+SUM('TTHM Goals'!G28:H28))/4),"",(('TTHM Goals'!I28*2+SUM('TTHM Goals'!G28:H28))/4)) ->  | K20: =IF(ISERROR(('TTHM Goals'!J28*2+SUM('TTHM Goals'!H28:I28))/4),"",(('TTHM Goals'!J28*2+SUM('TTHM Goals'!H28:I28))/4)) ->  | L20: =IF(ISERROR(('TTHM Goals'!K28*2+SUM('TTHM Goals'!I28:J28))/4),"",(('TTHM Goals'!K28*2+SUM('TTHM Goals'!I28:J28))/4)) ->  | M20: =IF(ISERROR(('TTHM Goals'!L28*2+SUM('TTHM Goals'!J28:K28))/4),"",(('TTHM Goals'!L28*2+SUM('TTHM Goals'!J28:K28))/4)) -> 
B21: =IF(ISBLANK('TTHM Goals'!A29),"",'TTHM Goals'!A29) ->  | E21: =IF(ISERROR(('TTHM Goals'!D29*2+SUM('TTHM Goals'!B29:C29))/4),"",(('TTHM Goals'!D29*2+SUM('TTHM Goals'!B29:C29))/4)) ->  | F21: =IF(ISERROR(('TTHM Goals'!E29*2+SUM('TTHM Goals'!C29:D29))/4),"",(('TTHM Goals'!E29*2+SUM('TTHM Goals'!C29:D29))/4)) ->  | G21: =IF(ISERROR(('TTHM Goals'!F29*2+SUM('TTHM Goals'!D29:E29))/4),"",(('TTHM Goals'!F29*2+SUM('TTHM Goals'!D29:E29))/4)) ->  | H21: =IF(ISERROR(('TTHM Goals'!G29*2+SUM('TTHM Goals'!E29:F29))/4),"",(('TTHM Goals'!G29*2+SUM('TTHM Goals'!E29:F29))/4)) ->  | I21: =IF(ISERROR(('TTHM Goals'!H29*2+SUM('TTHM Goals'!F29:G29))/4),"",(('TTHM Goals'!H29*2+SUM('TTHM Goals'!F29:G29))/4)) ->  | J21: =IF(ISERROR(('TTHM Goals'!I29*2+SUM('TTHM Goals'!G29:H29))/4),"",(('TTHM Goals'!I29*2+SUM('TTHM Goals'!G29:H29))/4)) ->  | K21: =IF(ISERROR(('TTHM Goals'!J29*2+SUM('TTHM Goals'!H29:I29))/4),"",(('TTHM Goals'!J29*2+SUM('TTHM Goals'!H29:I29))/4)) ->  | L21: =IF(ISERROR(('TTHM Goals'!K29*2+SUM('TTHM Goals'!I29:J29))/4),"",(('TTHM Goals'!K29*2+SUM('TTHM Goals'!I29:J29))/4)) ->  | M21: =IF(ISERROR(('TTHM Goals'!L29*2+SUM('TTHM Goals'!J29:K29))/4),"",(('TTHM Goals'!L29*2+SUM('TTHM Goals'!J29:K29))/4)) -> 
B22: =IF(ISBLANK('TTHM Goals'!A30),"",'TTHM Goals'!A30) ->  | E22: =IF(ISERROR(('TTHM Goals'!D30*2+SUM('TTHM Goals'!B30:C30))/4),"",(('TTHM Goals'!D30*2+SUM('TTHM Goals'!B30:C30))/4)) ->  | F22: =IF(ISERROR(('TTHM Goals'!E30*2+SUM('TTHM Goals'!C30:D30))/4),"",(('TTHM Goals'!E30*2+SUM('TTHM Goals'!C30:D30))/4)) ->  | G22: =IF(ISERROR(('TTHM Goals'!F30*2+SUM('TTHM Goals'!D30:E30))/4),"",(('TTHM Goals'!F30*2+SUM('TTHM Goals'!D30:E30))/4)) ->  | H22: =IF(ISERROR(('TTHM Goals'!G30*2+SUM('TTHM Goals'!E30:F30))/4),"",(('TTHM Goals'!G30*2+SUM('TTHM Goals'!E30:F30))/4)) ->  | I22: =IF(ISERROR(('TTHM Goals'!H30*2+SUM('TTHM Goals'!F30:G30))/4),"",(('TTHM Goals'!H30*2+SUM('TTHM Goals'!F30:G30))/4)) ->  | J22: =IF(ISERROR(('TTHM Goals'!I30*2+SUM('TTHM Goals'!G30:H30))/4),"",(('TTHM Goals'!I30*2+SUM('TTHM Goals'!G30:H30))/4)) ->  | K22: =IF(ISERROR(('TTHM Goals'!J30*2+SUM('TTHM Goals'!H30:I30))/4),"",(('TTHM Goals'!J30*2+SUM('TTHM Goals'!H30:I30))/4)) ->  | L22: =IF(ISERROR(('TTHM Goals'!K30*2+SUM('TTHM Goals'!I30:J30))/4),"",(('TTHM Goals'!K30*2+SUM('TTHM Goals'!I30:J30))/4)) ->  | M22: =IF(ISERROR(('TTHM Goals'!L30*2+SUM('TTHM Goals'!J30:K30))/4),"",(('TTHM Goals'!L30*2+SUM('TTHM Goals'!J30:K30))/4)) -> 
B23: =IF(ISBLANK('TTHM Goals'!A31),"",'TTHM Goals'!A31) ->  | E23: =IF(ISERROR(('TTHM Goals'!D31*2+SUM('TTHM Goals'!B31:C31))/4),"",(('TTHM Goals'!D31*2+SUM('TTHM Goals'!B31:C31))/4)) ->  | F23: =IF(ISERROR(('TTHM Goals'!E31*2+SUM('TTHM Goals'!C31:D31))/4),"",(('TTHM Goals'!E31*2+SUM('TTHM Goals'!C31:D31))/4)) ->  | G23: =IF(ISERROR(('TTHM Goals'!F31*2+SUM('TTHM Goals'!D31:E31))/4),"",(('TTHM Goals'!F31*2+SUM('TTHM Goals'!D31:E31))/4)) ->  | H23: =IF(ISERROR(('TTHM Goals'!G31*2+SUM('TTHM Goals'!E31:F31))/4),"",(('TTHM Goals'!G31*2+SUM('TTHM Goals'!E31:F31))/4)) ->  | I23: =IF(ISERROR(('TTHM Goals'!H31*2+SUM('TTHM Goals'!F31:G31))/4),"",(('TTHM Goals'!H31*2+SUM('TTHM Goals'!F31:G31))/4)) ->  | J23: =IF(ISERROR(('TTHM Goals'!I31*2+SUM('TTHM Goals'!G31:H31))/4),"",(('TTHM Goals'!I31*2+SUM('TTHM Goals'!G31:H31))/4)) ->  | K23: =IF(ISERROR(('TTHM Goals'!J31*2+SUM('TTHM Goals'!H31:I31))/4),"",(('TTHM Goals'!J31*2+SUM('TTHM Goals'!H31:I31))/4)) ->  | L23: =IF(ISERROR(('TTHM Goals'!K31*2+SUM('TTHM Goals'!I31:J31))/4),"",(('TTHM Goals'!K31*2+SUM('TTHM Goals'!I31:J31))/4)) ->  | M23: =IF(ISERROR(('TTHM Goals'!L31*2+SUM('TTHM Goals'!J31:K31))/4),"",(('TTHM Goals'!L31*2+SUM('TTHM Goals'!J31:K31))/4)) -> 
B25: HAA5 OEL Table
B26: Operational Evaluation Level (OEL) | C26: 0.0604 | D26: Colored cell indicates OEL was exceeded
C27: ='HAA5 Goals'!B13 -> Q4 2016 | D27: ='HAA5 Goals'!C13 -> Q1 2017 | E27: ='HAA5 Goals'!D13 -> Q2 2017 | F27: ='HAA5 Goals'!E13 -> Q3 2017 | G27: ='HAA5 Goals'!F13 -> Q4 2017 | H27: ='HAA5 Goals'!G13 -> Q1 2018 | I27: ='HAA5 Goals'!H13 -> Q2 2018 | J27: ='HAA5 Goals'!I13 -> Q3 2018 | K27: ='HAA5 Goals'!J13 -> Q4 2018 | L27: ='HAA5 Goals'!K13 -> Q1 2019 | M27: ='HAA5 Goals'!L13 -> Q2 2019
B28: =IF(ISBLANK('HAA5 Goals'!A14),"",'HAA5 Goals'!A14) -> 11405 LARRY LAKE ROAD | E28: =IF(ISERROR(('HAA5 Goals'!D14*2+SUM('HAA5 Goals'!B14:C14))/4),"",(('HAA5 Goals'!D14*2+SUM('HAA5 Goals'!B14:C14))/4)) -> 0.0139275 | F28: =IF(ISERROR(('HAA5 Goals'!E14*2+SUM('HAA5 Goals'!C14:D14))/4),"",(('HAA5 Goals'!E14*2+SUM('HAA5 Goals'!C14:D14))/4)) -> 0.02308 | G28: =IF(ISERROR(('HAA5 Goals'!F14*2+SUM('HAA5 Goals'!D14:E14))/4),"",(('HAA5 Goals'!F14*2+SUM('HAA5 Goals'!D14:E14))/4)) -> 0.019925 | H28: =IF(ISERROR(('HAA5 Goals'!G14*2+SUM('HAA5 Goals'!E14:F14))/4),"",(('HAA5 Goals'!G14*2+SUM('HAA5 Goals'!E14:F14))/4)) -> 0.016185 | I28: =IF(ISERROR(('HAA5 Goals'!H14*2+SUM('HAA5 Goals'!F14:G14))/4),"",(('HAA5 Goals'!H14*2+SUM('HAA5 Goals'!F14:G14))/4)) -> 0.0138175 | J28: =IF(ISERROR(('HAA5 Goals'!I14*2+SUM('HAA5 Goals'!G14:H14))/4),"",(('HAA5 Goals'!I14*2+SUM('HAA5 Goals'!G14:H14))/4)) -> 0.0136675 | K28: =IF(ISERROR(('HAA5 Goals'!J14*2+SUM('HAA5 Goals'!H14:I14))/4),"",(('HAA5 Goals'!J14*2+SUM('HAA5 Goals'!H14:I14))/4)) -> 0.018975 | L28: =IF(ISERROR(('HAA5 Goals'!K14*2+SUM('HAA5 Goals'!I14:J14))/4),"",(('HAA5 Goals'!K14*2+SUM('HAA5 Goals'!I14:J14))/4)) -> 0.0204 | M28: =IF(ISERROR(('HAA5 Goals'!L14*2+SUM('HAA5 Goals'!J14:K14))/4),"",(('HAA5 Goals'!L14*2+SUM('HAA5 Goals'!J14:K14))/4)) -> 0.022175
B29: =IF(ISBLANK('HAA5 Goals'!A15),"",'HAA5 Goals'!A15) -> 13191 DEASON CAMP ROAD | E29: =IF(ISERROR(('HAA5 Goals'!D15*2+SUM('HAA5 Goals'!B15:C15))/4),"",(('HAA5 Goals'!D15*2+SUM('HAA5 Goals'!B15:C15))/4)) -> 0.03335 | F29: =IF(ISERROR(('HAA5 Goals'!E15*2+SUM('HAA5 Goals'!C15:D15))/4),"",(('HAA5 Goals'!E15*2+SUM('HAA5 Goals'!C15:D15))/4)) -> 0.04515 | G29: =IF(ISERROR(('HAA5 Goals'!F15*2+SUM('HAA5 Goals'!D15:E15))/4),"",(('HAA5 Goals'!F15*2+SUM('HAA5 Goals'!D15:E15))/4)) -> 0.046925 | H29: =IF(ISERROR(('HAA5 Goals'!G15*2+SUM('HAA5 Goals'!E15:F15))/4),"",(('HAA5 Goals'!G15*2+SUM('HAA5 Goals'!E15:F15))/4)) -> 0.03645 | I29: =IF(ISERROR(('HAA5 Goals'!H15*2+SUM('HAA5 Goals'!F15:G15))/4),"",(('HAA5 Goals'!H15*2+SUM('HAA5 Goals'!F15:G15))/4)) ->  | J29: =IF(ISERROR(('HAA5 Goals'!I15*2+SUM('HAA5 Goals'!G15:H15))/4),"",(('HAA5 Goals'!I15*2+SUM('HAA5 Goals'!G15:H15))/4)) ->  | K29: =IF(ISERROR(('HAA5 Goals'!J15*2+SUM('HAA5 Goals'!H15:I15))/4),"",(('HAA5 Goals'!J15*2+SUM('HAA5 Goals'!H15:I15))/4)) ->  | L29: =IF(ISERROR(('HAA5 Goals'!K15*2+SUM('HAA5 Goals'!I15:J15))/4),"",(('HAA5 Goals'!K15*2+SUM('HAA5 Goals'!I15:J15))/4)) ->  | M29: =IF(ISERROR(('HAA5 Goals'!L15*2+SUM('HAA5 Goals'!J15:K15))/4),"",(('HAA5 Goals'!L15*2+SUM('HAA5 Goals'!J15:K15))/4)) -> 
B30: =IF(ISBLANK('HAA5 Goals'!A16),"",'HAA5 Goals'!A16) -> 13920 GRAND POINTE ROAD | E30: =IF(ISERROR(('HAA5 Goals'!D16*2+SUM('HAA5 Goals'!B16:C16))/4),"",(('HAA5 Goals'!D16*2+SUM('HAA5 Goals'!B16:C16))/4)) -> 0.02885 | F30: =IF(ISERROR(('HAA5 Goals'!E16*2+SUM('HAA5 Goals'!C16:D16))/4),"",(('HAA5 Goals'!E16*2+SUM('HAA5 Goals'!C16:D16))/4)) -> 0.0371 | G30: =IF(ISERROR(('HAA5 Goals'!F16*2+SUM('HAA5 Goals'!D16:E16))/4),"",(('HAA5 Goals'!F16*2+SUM('HAA5 Goals'!D16:E16))/4)) -> 0.039875 | H30: =IF(ISERROR(('HAA5 Goals'!G16*2+SUM('HAA5 Goals'!E16:F16))/4),"",(('HAA5 Goals'!G16*2+SUM('HAA5 Goals'!E16:F16))/4)) -> 0.029125 | I30: =IF(ISERROR(('HAA5 Goals'!H16*2+SUM('HAA5 Goals'!F16:G16))/4),"",(('HAA5 Goals'!H16*2+SUM('HAA5 Goals'!F16:G16))/4)) ->  | J30: =IF(ISERROR(('HAA5 Goals'!I16*2+SUM('HAA5 Goals'!G16:H16))/4),"",(('HAA5 Goals'!I16*2+SUM('HAA5 Goals'!G16:H16))/4)) ->  | K30: =IF(ISERROR(('HAA5 Goals'!J16*2+SUM('HAA5 Goals'!H16:I16))/4),"",(('HAA5 Goals'!J16*2+SUM('HAA5 Goals'!H16:I16))/4)) ->  | L30: =IF(ISERROR(('HAA5 Goals'!K16*2+SUM('HAA5 Goals'!I16:J16))/4),"",(('HAA5 Goals'!K16*2+SUM('HAA5 Goals'!I16:J16))/4)) ->  | M30: =IF(ISERROR(('HAA5 Goals'!L16*2+SUM('HAA5 Goals'!J16:K16))/4),"",(('HAA5 Goals'!L16*2+SUM('HAA5 Goals'!J16:K16))/4)) -> 
B31: =IF(ISBLANK('HAA5 Goals'!A17),"",'HAA5 Goals'!A17) -> 3950 3RD STREET SOUTH | E31: =IF(ISERROR(('HAA5 Goals'!D17*2+SUM('HAA5 Goals'!B17:C17))/4),"",(('HAA5 Goals'!D17*2+SUM('HAA5 Goals'!B17:C17))/4)) -> 0.0287725 | F31: =IF(ISERROR(('HAA5 Goals'!E17*2+SUM('HAA5 Goals'!C17:D17))/4),"",(('HAA5 Goals'!E17*2+SUM('HAA5 Goals'!C17:D17))/4)) -> 0.046325 | G31: =IF(ISERROR(('HAA5 Goals'!F17*2+SUM('HAA5 Goals'!D17:E17))/4),"",(('HAA5 Goals'!F17*2+SUM('HAA5 Goals'!D17:E17))/4)) -> 0.0485 | H31: =IF(ISERROR(('HAA5 Goals'!G17*2+SUM('HAA5 Goals'!E17:F17))/4),"",(('HAA5 Goals'!G17*2+SUM('HAA5 Goals'!E17:F17))/4)) -> 0.036075 | I31: =IF(ISERROR(('HAA5 Goals'!H17*2+SUM('HAA5 Goals'!F17:G17))/4),"",(('HAA5 Goals'!H17*2+SUM('HAA5 Goals'!F17:G17))/4)) ->  | J31: =IF(ISERROR(('HAA5 Goals'!I17*2+SUM('HAA5 Goals'!G17:H17))/4),"",(('HAA5 Goals'!I17*2+SUM('HAA5 Goals'!G17:H17))/4)) ->  | K31: =IF(ISERROR(('HAA5 Goals'!J17*2+SUM('HAA5 Goals'!H17:I17))/4),"",(('HAA5 Goals'!J17*2+SUM('HAA5 Goals'!H17:I17))/4)) ->  | L31: =IF(ISERROR(('HAA5 Goals'!K17*2+SUM('HAA5 Goals'!I17:J17))/4),"",(('HAA5 Goals'!K17*2+SUM('HAA5 Goals'!I17:J17))/4)) ->  | M31: =IF(ISERROR(('HAA5 Goals'!L17*2+SUM('HAA5 Goals'!J17:K17))/4),"",(('HAA5 Goals'!L17*2+SUM('HAA5 Goals'!J17:K17))/4)) -> 
B32: =IF(ISBLANK('HAA5 Goals'!A18),"",'HAA5 Goals'!A18) -> 6802 MCFARLAND BLVD | E32: =IF(ISERROR(('HAA5 Goals'!D18*2+SUM('HAA5 Goals'!B18:C18))/4),"",(('HAA5 Goals'!D18*2+SUM('HAA5 Goals'!B18:C18))/4)) -> 0.035225 | F32: =IF(ISERROR(('HAA5 Goals'!E18*2+SUM('HAA5 Goals'!C18:D18))/4),"",(('HAA5 Goals'!E18*2+SUM('HAA5 Goals'!C18:D18))/4)) -> 0.046175 | G32: =IF(ISERROR(('HAA5 Goals'!F18*2+SUM('HAA5 Goals'!D18:E18))/4),"",(('HAA5 Goals'!F18*2+SUM('HAA5 Goals'!D18:E18))/4)) -> 0.04945 | H32: =IF(ISERROR(('HAA5 Goals'!G18*2+SUM('HAA5 Goals'!E18:F18))/4),"",(('HAA5 Goals'!G18*2+SUM('HAA5 Goals'!E18:F18))/4)) -> 0.036275 | I32: =IF(ISERROR(('HAA5 Goals'!H18*2+SUM('HAA5 Goals'!F18:G18))/4),"",(('HAA5 Goals'!H18*2+SUM('HAA5 Goals'!F18:G18))/4)) ->  | J32: =IF(ISERROR(('HAA5 Goals'!I18*2+SUM('HAA5 Goals'!G18:H18))/4),"",(('HAA5 Goals'!I18*2+SUM('HAA5 Goals'!G18:H18))/4)) ->  | K32: =IF(ISERROR(('HAA5 Goals'!J18*2+SUM('HAA5 Goals'!H18:I18))/4),"",(('HAA5 Goals'!J18*2+SUM('HAA5 Goals'!H18:I18))/4)) ->  | L32: =IF(ISERROR(('HAA5 Goals'!K18*2+SUM('HAA5 Goals'!I18:J18))/4),"",(('HAA5 Goals'!K18*2+SUM('HAA5 Goals'!I18:J18))/4)) ->  | M32: =IF(ISERROR(('HAA5 Goals'!L18*2+SUM('HAA5 Goals'!J18:K18))/4),"",(('HAA5 Goals'!L18*2+SUM('HAA5 Goals'!J18:K18))/4)) -> 
B33: =IF(ISBLANK('HAA5 Goals'!A19),"",'HAA5 Goals'!A19) -> #1 BOOTH ESTATES | E33: =IF(ISERROR(('HAA5 Goals'!D19*2+SUM('HAA5 Goals'!B19:C19))/4),"",(('HAA5 Goals'!D19*2+SUM('HAA5 Goals'!B19:C19))/4)) ->  | F33: =IF(ISERROR(('HAA5 Goals'!E19*2+SUM('HAA5 Goals'!C19:D19))/4),"",(('HAA5 Goals'!E19*2+SUM('HAA5 Goals'!C19:D19))/4)) ->  | G33: =IF(ISERROR(('HAA5 Goals'!F19*2+SUM('HAA5 Goals'!D19:E19))/4),"",(('HAA5 Goals'!F19*2+SUM('HAA5 Goals'!D19:E19))/4)) ->  | H33: =IF(ISERROR(('HAA5 Goals'!G19*2+SUM('HAA5 Goals'!E19:F19))/4),"",(('HAA5 Goals'!G19*2+SUM('HAA5 Goals'!E19:F19))/4)) ->  | I33: =IF(ISERROR(('HAA5 Goals'!H19*2+SUM('HAA5 Goals'!F19:G19))/4),"",(('HAA5 Goals'!H19*2+SUM('HAA5 Goals'!F19:G19))/4)) -> 0.01725 | J33: =IF(ISERROR(('HAA5 Goals'!I19*2+SUM('HAA5 Goals'!G19:H19))/4),"",(('HAA5 Goals'!I19*2+SUM('HAA5 Goals'!G19:H19))/4)) -> 0.041425 | K33: =IF(ISERROR(('HAA5 Goals'!J19*2+SUM('HAA5 Goals'!H19:I19))/4),"",(('HAA5 Goals'!J19*2+SUM('HAA5 Goals'!H19:I19))/4)) -> 0.047975 | L33: =IF(ISERROR(('HAA5 Goals'!K19*2+SUM('HAA5 Goals'!I19:J19))/4),"",(('HAA5 Goals'!K19*2+SUM('HAA5 Goals'!I19:J19))/4)) -> 0.051525 | M33: =IF(ISERROR(('HAA5 Goals'!L19*2+SUM('HAA5 Goals'!J19:K19))/4),"",(('HAA5 Goals'!L19*2+SUM('HAA5 Goals'!J19:K19))/4)) -> 0.0408
B34: =IF(ISBLANK('HAA5 Goals'!A20),"",'HAA5 Goals'!A20) -> 17689 PINE LAKE RD | E34: =IF(ISERROR(('HAA5 Goals'!D20*2+SUM('HAA5 Goals'!B20:C20))/4),"",(('HAA5 Goals'!D20*2+SUM('HAA5 Goals'!B20:C20))/4)) ->  | F34: =IF(ISERROR(('HAA5 Goals'!E20*2+SUM('HAA5 Goals'!C20:D20))/4),"",(('HAA5 Goals'!E20*2+SUM('HAA5 Goals'!C20:D20))/4)) ->  | G34: =IF(ISERROR(('HAA5 Goals'!F20*2+SUM('HAA5 Goals'!D20:E20))/4),"",(('HAA5 Goals'!F20*2+SUM('HAA5 Goals'!D20:E20))/4)) ->  | H34: =IF(ISERROR(('HAA5 Goals'!G20*2+SUM('HAA5 Goals'!E20:F20))/4),"",(('HAA5 Goals'!G20*2+SUM('HAA5 Goals'!E20:F20))/4)) ->  | I34: =IF(ISERROR(('HAA5 Goals'!H20*2+SUM('HAA5 Goals'!F20:G20))/4),"",(('HAA5 Goals'!H20*2+SUM('HAA5 Goals'!F20:G20))/4)) -> 0.0292 | J34: =IF(ISERROR(('HAA5 Goals'!I20*2+SUM('HAA5 Goals'!G20:H20))/4),"",(('HAA5 Goals'!I20*2+SUM('HAA5 Goals'!G20:H20))/4)) -> 0.04535 | K34: =IF(ISERROR(('HAA5 Goals'!J20*2+SUM('HAA5 Goals'!H20:I20))/4),"",(('HAA5 Goals'!J20*2+SUM('HAA5 Goals'!H20:I20))/4)) -> 0.053025 | L34: =IF(ISERROR(('HAA5 Goals'!K20*2+SUM('HAA5 Goals'!I20:J20))/4),"",(('HAA5 Goals'!K20*2+SUM('HAA5 Goals'!I20:J20))/4)) -> 0.05245 | M34: =IF(ISERROR(('HAA5 Goals'!L20*2+SUM('HAA5 Goals'!J20:K20))/4),"",(('HAA5 Goals'!L20*2+SUM('HAA5 Goals'!J20:K20))/4)) -> 0.0423
B35: =IF(ISBLANK('HAA5 Goals'!A21),"",'HAA5 Goals'!A21) -> 2920 39TH ST | E35: =IF(ISERROR(('HAA5 Goals'!D21*2+SUM('HAA5 Goals'!B21:C21))/4),"",(('HAA5 Goals'!D21*2+SUM('HAA5 Goals'!B21:C21))/4)) ->  | F35: =IF(ISERROR(('HAA5 Goals'!E21*2+SUM('HAA5 Goals'!C21:D21))/4),"",(('HAA5 Goals'!E21*2+SUM('HAA5 Goals'!C21:D21))/4)) ->  | G35: =IF(ISERROR(('HAA5 Goals'!F21*2+SUM('HAA5 Goals'!D21:E21))/4),"",(('HAA5 Goals'!F21*2+SUM('HAA5 Goals'!D21:E21))/4)) ->  | H35: =IF(ISERROR(('HAA5 Goals'!G21*2+SUM('HAA5 Goals'!E21:F21))/4),"",(('HAA5 Goals'!G21*2+SUM('HAA5 Goals'!E21:F21))/4)) ->  | I35: =IF(ISERROR(('HAA5 Goals'!H21*2+SUM('HAA5 Goals'!F21:G21))/4),"",(('HAA5 Goals'!H21*2+SUM('HAA5 Goals'!F21:G21))/4)) -> 0.02865 | J35: =IF(ISERROR(('HAA5 Goals'!I21*2+SUM('HAA5 Goals'!G21:H21))/4),"",(('HAA5 Goals'!I21*2+SUM('HAA5 Goals'!G21:H21))/4)) -> 0.050725 | K35: =IF(ISERROR(('HAA5 Goals'!J21*2+SUM('HAA5 Goals'!H21:I21))/4),"",(('HAA5 Goals'!J21*2+SUM('HAA5 Goals'!H21:I21))/4)) -> 0.066975 | L35: =IF(ISERROR(('HAA5 Goals'!K21*2+SUM('HAA5 Goals'!I21:J21))/4),"",(('HAA5 Goals'!K21*2+SUM('HAA5 Goals'!I21:J21))/4)) -> 0.054425 | M35: =IF(ISERROR(('HAA5 Goals'!L21*2+SUM('HAA5 Goals'!J21:K21))/4),"",(('HAA5 Goals'!L21*2+SUM('HAA5 Goals'!J21:K21))/4)) -> 0.042875
B36: =IF(ISBLANK('HAA5 Goals'!A22),"",'HAA5 Goals'!A22) -> 6425 5TH ST | E36: =IF(ISERROR(('HAA5 Goals'!D22*2+SUM('HAA5 Goals'!B22:C22))/4),"",(('HAA5 Goals'!D22*2+SUM('HAA5 Goals'!B22:C22))/4)) ->  | F36: =IF(ISERROR(('HAA5 Goals'!E22*2+SUM('HAA5 Goals'!C22:D22))/4),"",(('HAA5 Goals'!E22*2+SUM('HAA5 Goals'!C22:D22))/4)) ->  | G36: =IF(ISERROR(('HAA5 Goals'!F22*2+SUM('HAA5 Goals'!D22:E22))/4),"",(('HAA5 Goals'!F22*2+SUM('HAA5 Goals'!D22:E22))/4)) ->  | H36: =IF(ISERROR(('HAA5 Goals'!G22*2+SUM('HAA5 Goals'!E22:F22))/4),"",(('HAA5 Goals'!G22*2+SUM('HAA5 Goals'!E22:F22))/4)) ->  | I36: =IF(ISERROR(('HAA5 Goals'!H22*2+SUM('HAA5 Goals'!F22:G22))/4),"",(('HAA5 Goals'!H22*2+SUM('HAA5 Goals'!F22:G22))/4)) -> 0.02045 | J36: =IF(ISERROR(('HAA5 Goals'!I22*2+SUM('HAA5 Goals'!G22:H22))/4),"",(('HAA5 Goals'!I22*2+SUM('HAA5 Goals'!G22:H22))/4)) -> 0.042675 | K36: =IF(ISERROR(('HAA5 Goals'!J22*2+SUM('HAA5 Goals'!H22:I22))/4),"",(('HAA5 Goals'!J22*2+SUM('HAA5 Goals'!H22:I22))/4)) -> 0.0505 | L36: =IF(ISERROR(('HAA5 Goals'!K22*2+SUM('HAA5 Goals'!I22:J22))/4),"",(('HAA5 Goals'!K22*2+SUM('HAA5 Goals'!I22:J22))/4)) -> 0.0517 | M36: =IF(ISERROR(('HAA5 Goals'!L22*2+SUM('HAA5 Goals'!J22:K22))/4),"",(('HAA5 Goals'!L22*2+SUM('HAA5 Goals'!J22:K22))/4)) -> 0.04075
B37: =IF(ISBLANK('HAA5 Goals'!A23),"",'HAA5 Goals'!A23) ->  | E37: =IF(ISERROR(('HAA5 Goals'!D23*2+SUM('HAA5 Goals'!B23:C23))/4),"",(('HAA5 Goals'!D23*2+SUM('HAA5 Goals'!B23:C23))/4)) ->  | F37: =IF(ISERROR(('HAA5 Goals'!E23*2+SUM('HAA5 Goals'!C23:D23))/4),"",(('HAA5 Goals'!E23*2+SUM('HAA5 Goals'!C23:D23))/4)) ->  | G37: =IF(ISERROR(('HAA5 Goals'!F23*2+SUM('HAA5 Goals'!D23:E23))/4),"",(('HAA5 Goals'!F23*2+SUM('HAA5 Goals'!D23:E23))/4)) ->  | H37: =IF(ISERROR(('HAA5 Goals'!G23*2+SUM('HAA5 Goals'!E23:F23))/4),"",(('HAA5 Goals'!G23*2+SUM('HAA5 Goals'!E23:F23))/4)) ->  | I37: =IF(ISERROR(('HAA5 Goals'!H23*2+SUM('HAA5 Goals'!F23:G23))/4),"",(('HAA5 Goals'!H23*2+SUM('HAA5 Goals'!F23:G23))/4)) ->  | J37: =IF(ISERROR(('HAA5 Goals'!I23*2+SUM('HAA5 Goals'!G23:H23))/4),"",(('HAA5 Goals'!I23*2+SUM('HAA5 Goals'!G23:H23))/4)) ->  | K37: =IF(ISERROR(('HAA5 Goals'!J23*2+SUM('HAA5 Goals'!H23:I23))/4),"",(('HAA5 Goals'!J23*2+SUM('HAA5 Goals'!H23:I23))/4)) ->  | L37: =IF(ISERROR(('HAA5 Goals'!K23*2+SUM('HAA5 Goals'!I23:J23))/4),"",(('HAA5 Goals'!K23*2+SUM('HAA5 Goals'!I23:J23))/4)) ->  | M37: =IF(ISERROR(('HAA5 Goals'!L23*2+SUM('HAA5 Goals'!J23:K23))/4),"",(('HAA5 Goals'!L23*2+SUM('HAA5 Goals'!J23:K23))/4)) -> 
B38: =IF(ISBLANK('HAA5 Goals'!A24),"",'HAA5 Goals'!A24) ->  | E38: =IF(ISERROR(('HAA5 Goals'!D24*2+SUM('HAA5 Goals'!B24:C24))/4),"",(('HAA5 Goals'!D24*2+SUM('HAA5 Goals'!B24:C24))/4)) ->  | F38: =IF(ISERROR(('HAA5 Goals'!E24*2+SUM('HAA5 Goals'!C24:D24))/4),"",(('HAA5 Goals'!E24*2+SUM('HAA5 Goals'!C24:D24))/4)) ->  | G38: =IF(ISERROR(('HAA5 Goals'!F24*2+SUM('HAA5 Goals'!D24:E24))/4),"",(('HAA5 Goals'!F24*2+SUM('HAA5 Goals'!D24:E24))/4)) ->  | H38: =IF(ISERROR(('HAA5 Goals'!G24*2+SUM('HAA5 Goals'!E24:F24))/4),"",(('HAA5 Goals'!G24*2+SUM('HAA5 Goals'!E24:F24))/4)) ->  | I38: =IF(ISERROR(('HAA5 Goals'!H24*2+SUM('HAA5 Goals'!F24:G24))/4),"",(('HAA5 Goals'!H24*2+SUM('HAA5 Goals'!F24:G24))/4)) ->  | J38: =IF(ISERROR(('HAA5 Goals'!I24*2+SUM('HAA5 Goals'!G24:H24))/4),"",(('HAA5 Goals'!I24*2+SUM('HAA5 Goals'!G24:H24))/4)) ->  | K38: =IF(ISERROR(('HAA5 Goals'!J24*2+SUM('HAA5 Goals'!H24:I24))/4),"",(('HAA5 Goals'!J24*2+SUM('HAA5 Goals'!H24:I24))/4)) ->  | L38: =IF(ISERROR(('HAA5 Goals'!K24*2+SUM('HAA5 Goals'!I24:J24))/4),"",(('HAA5 Goals'!K24*2+SUM('HAA5 Goals'!I24:J24))/4)) ->  | M38: =IF(ISERROR(('HAA5 Goals'!L24*2+SUM('HAA5 Goals'!J24:K24))/4),"",(('HAA5 Goals'!L24*2+SUM('HAA5 Goals'!J24:K24))/4)) -> 
B39: =IF(ISBLANK('HAA5 Goals'!A25),"",'HAA5 Goals'!A25) ->  | E39: =IF(ISERROR(('HAA5 Goals'!D25*2+SUM('HAA5 Goals'!B25:C25))/4),"",(('HAA5 Goals'!D25*2+SUM('HAA5 Goals'!B25:C25))/4)) ->  | F39: =IF(ISERROR(('HAA5 Goals'!E25*2+SUM('HAA5 Goals'!C25:D25))/4),"",(('HAA5 Goals'!E25*2+SUM('HAA5 Goals'!C25:D25))/4)) ->  | G39: =IF(ISERROR(('HAA5 Goals'!F25*2+SUM('HAA5 Goals'!D25:E25))/4),"",(('HAA5 Goals'!F25*2+SUM('HAA5 Goals'!D25:E25))/4)) ->  | H39: =IF(ISERROR(('HAA5 Goals'!G25*2+SUM('HAA5 Goals'!E25:F25))/4),"",(('HAA5 Goals'!G25*2+SUM('HAA5 Goals'!E25:F25))/4)) ->  | I39: =IF(ISERROR(('HAA5 Goals'!H25*2+SUM('HAA5 Goals'!F25:G25))/4),"",(('HAA5 Goals'!H25*2+SUM('HAA5 Goals'!F25:G25))/4)) ->  | J39: =IF(ISERROR(('HAA5 Goals'!I25*2+SUM('HAA5 Goals'!G25:H25))/4),"",(('HAA5 Goals'!I25*2+SUM('HAA5 Goals'!G25:H25))/4)) ->  | K39: =IF(ISERROR(('HAA5 Goals'!J25*2+SUM('HAA5 Goals'!H25:I25))/4),"",(('HAA5 Goals'!J25*2+SUM('HAA5 Goals'!H25:I25))/4)) ->  | L39: =IF(ISERROR(('HAA5 Goals'!K25*2+SUM('HAA5 Goals'!I25:J25))/4),"",(('HAA5 Goals'!K25*2+SUM('HAA5 Goals'!I25:J25))/4)) ->  | M39: =IF(ISERROR(('HAA5 Goals'!L25*2+SUM('HAA5 Goals'!J25:K25))/4),"",(('HAA5 Goals'!L25*2+SUM('HAA5 Goals'!J25:K25))/4)) -> 
B40: =IF(ISBLANK('HAA5 Goals'!A26),"",'HAA5 Goals'!A26) ->  | E40: =IF(ISERROR(('HAA5 Goals'!D26*2+SUM('HAA5 Goals'!B26:C26))/4),"",(('HAA5 Goals'!D26*2+SUM('HAA5 Goals'!B26:C26))/4)) ->  | F40: =IF(ISERROR(('HAA5 Goals'!E26*2+SUM('HAA5 Goals'!C26:D26))/4),"",(('HAA5 Goals'!E26*2+SUM('HAA5 Goals'!C26:D26))/4)) ->  | G40: =IF(ISERROR(('HAA5 Goals'!F26*2+SUM('HAA5 Goals'!D26:E26))/4),"",(('HAA5 Goals'!F26*2+SUM('HAA5 Goals'!D26:E26))/4)) ->  | H40: =IF(ISERROR(('HAA5 Goals'!G26*2+SUM('HAA5 Goals'!E26:F26))/4),"",(('HAA5 Goals'!G26*2+SUM('HAA5 Goals'!E26:F26))/4)) ->  | I40: =IF(ISERROR(('HAA5 Goals'!H26*2+SUM('HAA5 Goals'!F26:G26))/4),"",(('HAA5 Goals'!H26*2+SUM('HAA5 Goals'!F26:G26))/4)) ->  | J40: =IF(ISERROR(('HAA5 Goals'!I26*2+SUM('HAA5 Goals'!G26:H26))/4),"",(('HAA5 Goals'!I26*2+SUM('HAA5 Goals'!G26:H26))/4)) ->  | K40: =IF(ISERROR(('HAA5 Goals'!J26*2+SUM('HAA5 Goals'!H26:I26))/4),"",(('HAA5 Goals'!J26*2+SUM('HAA5 Goals'!H26:I26))/4)) ->  | L40: =IF(ISERROR(('HAA5 Goals'!K26*2+SUM('HAA5 Goals'!I26:J26))/4),"",(('HAA5 Goals'!K26*2+SUM('HAA5 Goals'!I26:J26))/4)) ->  | M40: =IF(ISERROR(('HAA5 Goals'!L26*2+SUM('HAA5 Goals'!J26:K26))/4),"",(('HAA5 Goals'!L26*2+SUM('HAA5 Goals'!J26:K26))/4)) -> 
B41: =IF(ISBLANK('HAA5 Goals'!A27),"",'HAA5 Goals'!A27) ->  | E41: =IF(ISERROR(('HAA5 Goals'!D27*2+SUM('HAA5 Goals'!B27:C27))/4),"",(('HAA5 Goals'!D27*2+SUM('HAA5 Goals'!B27:C27))/4)) ->  | F41: =IF(ISERROR(('HAA5 Goals'!E27*2+SUM('HAA5 Goals'!C27:D27))/4),"",(('HAA5 Goals'!E27*2+SUM('HAA5 Goals'!C27:D27))/4)) ->  | G41: =IF(ISERROR(('HAA5 Goals'!F27*2+SUM('HAA5 Goals'!D27:E27))/4),"",(('HAA5 Goals'!F27*2+SUM('HAA5 Goals'!D27:E27))/4)) ->  | H41: =IF(ISERROR(('HAA5 Goals'!G27*2+SUM('HAA5 Goals'!E27:F27))/4),"",(('HAA5 Goals'!G27*2+SUM('HAA5 Goals'!E27:F27))/4)) ->  | I41: =IF(ISERROR(('HAA5 Goals'!H27*2+SUM('HAA5 Goals'!F27:G27))/4),"",(('HAA5 Goals'!H27*2+SUM('HAA5 Goals'!F27:G27))/4)) ->  | J41: =IF(ISERROR(('HAA5 Goals'!I27*2+SUM('HAA5 Goals'!G27:H27))/4),"",(('HAA5 Goals'!I27*2+SUM('HAA5 Goals'!G27:H27))/4)) ->  | K41: =IF(ISERROR(('HAA5 Goals'!J27*2+SUM('HAA5 Goals'!H27:I27))/4),"",(('HAA5 Goals'!J27*2+SUM('HAA5 Goals'!H27:I27))/4)) ->  | L41: =IF(ISERROR(('HAA5 Goals'!K27*2+SUM('HAA5 Goals'!I27:J27))/4),"",(('HAA5 Goals'!K27*2+SUM('HAA5 Goals'!I27:J27))/4)) ->  | M41: =IF(ISERROR(('HAA5 Goals'!L27*2+SUM('HAA5 Goals'!J27:K27))/4),"",(('HAA5 Goals'!L27*2+SUM('HAA5 Goals'!J27:K27))/4)) -> 
B42: =IF(ISBLANK('HAA5 Goals'!A28),"",'HAA5 Goals'!A28) ->  | E42: =IF(ISERROR(('HAA5 Goals'!D28*2+SUM('HAA5 Goals'!B28:C28))/4),"",(('HAA5 Goals'!D28*2+SUM('HAA5 Goals'!B28:C28))/4)) ->  | F42: =IF(ISERROR(('HAA5 Goals'!E28*2+SUM('HAA5 Goals'!C28:D28))/4),"",(('HAA5 Goals'!E28*2+SUM('HAA5 Goals'!C28:D28))/4)) ->  | G42: =IF(ISERROR(('HAA5 Goals'!F28*2+SUM('HAA5 Goals'!D28:E28))/4),"",(('HAA5 Goals'!F28*2+SUM('HAA5 Goals'!D28:E28))/4)) ->  | H42: =IF(ISERROR(('HAA5 Goals'!G28*2+SUM('HAA5 Goals'!E28:F28))/4),"",(('HAA5 Goals'!G28*2+SUM('HAA5 Goals'!E28:F28))/4)) ->  | I42: =IF(ISERROR(('HAA5 Goals'!H28*2+SUM('HAA5 Goals'!F28:G28))/4),"",(('HAA5 Goals'!H28*2+SUM('HAA5 Goals'!F28:G28))/4)) ->  | J42: =IF(ISERROR(('HAA5 Goals'!I28*2+SUM('HAA5 Goals'!G28:H28))/4),"",(('HAA5 Goals'!I28*2+SUM('HAA5 Goals'!G28:H28))/4)) ->  | K42: =IF(ISERROR(('HAA5 Goals'!J28*2+SUM('HAA5 Goals'!H28:I28))/4),"",(('HAA5 Goals'!J28*2+SUM('HAA5 Goals'!H28:I28))/4)) ->  | L42: =IF(ISERROR(('HAA5 Goals'!K28*2+SUM('HAA5 Goals'!I28:J28))/4),"",(('HAA5 Goals'!K28*2+SUM('HAA5 Goals'!I28:J28))/4)) ->  | M42: =IF(ISERROR(('HAA5 Goals'!L28*2+SUM('HAA5 Goals'!J28:K28))/4),"",(('HAA5 Goals'!L28*2+SUM('HAA5 Goals'!J28:K28))/4)) -> 
B43: =IF(ISBLANK('HAA5 Goals'!A29),"",'HAA5 Goals'!A29) ->  | E43: =IF(ISERROR(('HAA5 Goals'!D29*2+SUM('HAA5 Goals'!B29:C29))/4),"",(('HAA5 Goals'!D29*2+SUM('HAA5 Goals'!B29:C29))/4)) ->  | F43: =IF(ISERROR(('HAA5 Goals'!E29*2+SUM('HAA5 Goals'!C29:D29))/4),"",(('HAA5 Goals'!E29*2+SUM('HAA5 Goals'!C29:D29))/4)) ->  | G43: =IF(ISERROR(('HAA5 Goals'!F29*2+SUM('HAA5 Goals'!D29:E29))/4),"",(('HAA5 Goals'!F29*2+SUM('HAA5 Goals'!D29:E29))/4)) ->  | H43: =IF(ISERROR(('HAA5 Goals'!G29*2+SUM('HAA5 Goals'!E29:F29))/4),"",(('HAA5 Goals'!G29*2+SUM('HAA5 Goals'!E29:F29))/4)) ->  | I43: =IF(ISERROR(('HAA5 Goals'!H29*2+SUM('HAA5 Goals'!F29:G29))/4),"",(('HAA5 Goals'!H29*2+SUM('HAA5 Goals'!F29:G29))/4)) ->  | J43: =IF(ISERROR(('HAA5 Goals'!I29*2+SUM('HAA5 Goals'!G29:H29))/4),"",(('HAA5 Goals'!I29*2+SUM('HAA5 Goals'!G29:H29))/4)) ->  | K43: =IF(ISERROR(('HAA5 Goals'!J29*2+SUM('HAA5 Goals'!H29:I29))/4),"",(('HAA5 Goals'!J29*2+SUM('HAA5 Goals'!H29:I29))/4)) ->  | L43: =IF(ISERROR(('HAA5 Goals'!K29*2+SUM('HAA5 Goals'!I29:J29))/4),"",(('HAA5 Goals'!K29*2+SUM('HAA5 Goals'!I29:J29))/4)) ->  | M43: =IF(ISERROR(('HAA5 Goals'!L29*2+SUM('HAA5 Goals'!J29:K29))/4),"",(('HAA5 Goals'!L29*2+SUM('HAA5 Goals'!J29:K29))/4)) -> 
B44: =IF(ISBLANK('HAA5 Goals'!A30),"",'HAA5 Goals'!A30) ->  | E44: =IF(ISERROR(('HAA5 Goals'!D30*2+SUM('HAA5 Goals'!B30:C30))/4),"",(('HAA5 Goals'!D30*2+SUM('HAA5 Goals'!B30:C30))/4)) ->  | F44: =IF(ISERROR(('HAA5 Goals'!E30*2+SUM('HAA5 Goals'!C30:D30))/4),"",(('HAA5 Goals'!E30*2+SUM('HAA5 Goals'!C30:D30))/4)) ->  | G44: =IF(ISERROR(('HAA5 Goals'!F30*2+SUM('HAA5 Goals'!D30:E30))/4),"",(('HAA5 Goals'!F30*2+SUM('HAA5 Goals'!D30:E30))/4)) ->  | H44: =IF(ISERROR(('HAA5 Goals'!G30*2+SUM('HAA5 Goals'!E30:F30))/4),"",(('HAA5 Goals'!G30*2+SUM('HAA5 Goals'!E30:F30))/4)) ->  | I44: =IF(ISERROR(('HAA5 Goals'!H30*2+SUM('HAA5 Goals'!F30:G30))/4),"",(('HAA5 Goals'!H30*2+SUM('HAA5 Goals'!F30:G30))/4)) ->  | J44: =IF(ISERROR(('HAA5 Goals'!I30*2+SUM('HAA5 Goals'!G30:H30))/4),"",(('HAA5 Goals'!I30*2+SUM('HAA5 Goals'!G30:H30))/4)) ->  | K44: =IF(ISERROR(('HAA5 Goals'!J30*2+SUM('HAA5 Goals'!H30:I30))/4),"",(('HAA5 Goals'!J30*2+SUM('HAA5 Goals'!H30:I30))/4)) ->  | L44: =IF(ISERROR(('HAA5 Goals'!K30*2+SUM('HAA5 Goals'!I30:J30))/4),"",(('HAA5 Goals'!K30*2+SUM('HAA5 Goals'!I30:J30))/4)) ->  | M44: =IF(ISERROR(('HAA5 Goals'!L30*2+SUM('HAA5 Goals'!J30:K30))/4),"",(('HAA5 Goals'!L30*2+SUM('HAA5 Goals'!J30:K30))/4)) -> 
B45: =IF(ISBLANK('HAA5 Goals'!A31),"",'HAA5 Goals'!A31) ->  | E45: =IF(ISERROR(('HAA5 Goals'!D31*2+SUM('HAA5 Goals'!B31:C31))/4),"",(('HAA5 Goals'!D31*2+SUM('HAA5 Goals'!B31:C31))/4)) ->  | F45: =IF(ISERROR(('HAA5 Goals'!E31*2+SUM('HAA5 Goals'!C31:D31))/4),"",(('HAA5 Goals'!E31*2+SUM('HAA5 Goals'!C31:D31))/4)) ->  | G45: =IF(ISERROR(('HAA5 Goals'!F31*2+SUM('HAA5 Goals'!D31:E31))/4),"",(('HAA5 Goals'!F31*2+SUM('HAA5 Goals'!D31:E31))/4)) ->  | H45: =IF(ISERROR(('HAA5 Goals'!G31*2+SUM('HAA5 Goals'!E31:F31))/4),"",(('HAA5 Goals'!G31*2+SUM('HAA5 Goals'!E31:F31))/4)) ->  | I45: =IF(ISERROR(('HAA5 Goals'!H31*2+SUM('HAA5 Goals'!F31:G31))/4),"",(('HAA5 Goals'!H31*2+SUM('HAA5 Goals'!F31:G31))/4)) ->  | J45: =IF(ISERROR(('HAA5 Goals'!I31*2+SUM('HAA5 Goals'!G31:H31))/4),"",(('HAA5 Goals'!I31*2+SUM('HAA5 Goals'!G31:H31))/4)) ->  | K45: =IF(ISERROR(('HAA5 Goals'!J31*2+SUM('HAA5 Goals'!H31:I31))/4),"",(('HAA5 Goals'!J31*2+SUM('HAA5 Goals'!H31:I31))/4)) ->  | L45: =IF(ISERROR(('HAA5 Goals'!K31*2+SUM('HAA5 Goals'!I31:J31))/4),"",(('HAA5 Goals'!K31*2+SUM('HAA5 Goals'!I31:J31))/4)) ->  | M45: =IF(ISERROR(('HAA5 Goals'!L31*2+SUM('HAA5 Goals'!J31:K31))/4),"",(('HAA5 Goals'!L31*2+SUM('HAA5 Goals'!J31:K31))/4)) -> 

Sheet Site Info (hidden)
B1: Note: Change W longitude to negative value
B2: Enter water qaulity data (e.g., chlorine residual) to plot in GE Graph from a summary table worksheet.
B3: Name | C3: Latitude | D3: Longitude | E3: Value
B4: EP | C4: 35.493 | D4: -94.222 | E4: 1.25
B5: S5 | C5: 35.4996 | D5: -94.2588 | E5: 0.68
B19: Select sample site data in blue shaded area above and copy to transfer to GE Graph software
